Body Name,Body,Service Label,Service Code,Service Division ,Service Division Code,Organisational Unit,Expenditure Category - SeRCOP,Expenditure Code - SeRCOP,Expenditure Category - ProClass,Expenditure Code - ProClass,SeRCOP Detailed Expenditure Type,SeRCOP Detailed Expenditure Code,Date,Transaction Number,Amount,Capital and Revenue,Supplier Name,Supplier ID
Fareham Borough Council,http://statistics.data.gov.uk/id/local-authority/24UE,OTHER REVENUE ACCOUNTS,RV,CONTRACT SERVICES D.S.O.,RV14,DEPT STREETSCENE,SUPPLIES & SERVICES,4,Sports & Playground Equipment & Maintenance,33,MATERIALS (OPERATIONAL),4007,18/11/2016,565096,141.00 ,Revenue,G.B. SPORT & LEISURE,07524601
Fareham Borough Council,http://statistics.data.gov.uk/id/local-authority/24UE,OTHER REVENUE ACCOUNTS,RV,CONTRACT SERVICES D.S.O.,RV14,DEPT STREETSCENE,SUPPLIES & SERVICES,4,Sports & Playground Equipment & Maintenance,33,MATERIALS (OPERATIONAL),4007,18/11/2016,565096,77.01 ,Revenue,G.B. SPORT & LEISURE,07524601
Fareham Borough Council,http://statistics.data.gov.uk/id/local-authority/24UE,OTHER REVENUE ACCOUNTS,RV,CONTRACT SERVICES D.S.O.,RV14,DEPT STREETSCENE,SUPPLIES & SERVICES,4,Sports & Playground Equipment & Maintenance,33,MATERIALS (OPERATIONAL),4007,18/11/2016,565096,155.00 ,Revenue,G.B. SPORT & LEISURE,07524601
Fareham Borough Council,http://statistics.data.gov.uk/id/local-authority/24UE,OTHER REVENUE ACCOUNTS,RV,CONTRACT SERVICES D.S.O.,RV14,DEPT STREETSCENE,SUPPLIES & SERVICES,4,Sports & Playground Equipment & Maintenance,33,MATERIALS (OPERATIONAL),4007,18/11/2016,565096,40.00 ,Revenue,G.B. SPORT & LEISURE,07524601
Fareham Borough Council,http://statistics.data.gov.uk/id/local-authority/24UE,OTHER REVENUE ACCOUNTS,RV,CONTRACT SERVICES D.S.O.,RV14,DEPT STREETSCENE,SUPPLIES & SERVICES,4,Sports & Playground Equipment & Maintenance,33,MATERIALS (OPERATIONAL),4007,18/11/2016,565096,485.00 ,Revenue,G.B. SPORT & LEISURE,07524601
Fareham Borough Council,http://statistics.data.gov.uk/id/local-authority/24UE,OTHER REVENUE ACCOUNTS,RV,CONTRACT SERVICES D.S.O.,RV14,DEPT STREETSCENE,SUPPLIES & SERVICES,4,Sports & Playground Equipment & Maintenance,33,MATERIALS (OPERATIONAL),4007,18/11/2016,565096,112.08 ,Revenue,G.B. SPORT & LEISURE,07524601
Fareham Borough Council,http://statistics.data.gov.uk/id/local-authority/24UE,OTHER REVENUE ACCOUNTS,RV,CONTRACT SERVICES D.S.O.,RV14,DEPT STREETSCENE,SUPPLIES & SERVICES,4,Sports & Playground Equipment & Maintenance,33,MATERIALS (OPERATIONAL),4007,18/11/2016,565096,56.04 ,Revenue,G.B. SPORT & LEISURE,07524601
Fareham Borough Council,http://statistics.data.gov.uk/id/local-authority/24UE,OTHER REVENUE ACCOUNTS,RV,CONTRACT SERVICES D.S.O.,RV14,DEPT STREETSCENE,SUPPLIES & SERVICES,4,Sports & Playground Equipment & Maintenance,33,MATERIALS (OPERATIONAL),4007,18/11/2016,565096,390.88 ,Revenue,G.B. SPORT & LEISURE,07524601
Fareham Borough Council,http://statistics.data.gov.uk/id/local-authority/24UE,OTHER REVENUE ACCOUNTS,RV,CONTRACT SERVICES D.S.O.,RV14,DEPT STREETSCENE,SUPPLIES & SERVICES,4,Sports & Playground Equipment & Maintenance,33,MATERIALS (OPERATIONAL),4007,18/11/2016,565096,972.08 ,Revenue,G.B. SPORT & LEISURE,07524601
Fareham Borough Council,http://statistics.data.gov.uk/id/local-authority/24UE,OTHER REVENUE ACCOUNTS,RV,CONTRACT SERVICES D.S.O.,RV14,DEPT STREETSCENE,SUPPLIES & SERVICES,4,Sports & Playground Equipment & Maintenance,33,MATERIALS (OPERATIONAL),4007,18/11/2016,565096,380.58 ,Revenue,G.B. SPORT & LEISURE,07524601
Fareham Borough Council,http://statistics.data.gov.uk/id/local-authority/24UE,OTHER REVENUE ACCOUNTS,RV,CONTRACT SERVICES D.S.O.,RV14,DEPT STREETSCENE,SUPPLIES & SERVICES,4,Sports & Playground Equipment & Maintenance,33,MATERIALS (OPERATIONAL),4007,18/11/2016,565096,85.14 ,Revenue,G.B. SPORT & LEISURE,07524601
Fareham Borough Council,http://statistics.data.gov.uk/id/local-authority/24UE,OTHER REVENUE ACCOUNTS,RV,CONTRACT SERVICES D.S.O.,RV14,DEPT STREETSCENE,SUPPLIES & SERVICES,4,Sports & Playground Equipment & Maintenance,33,MATERIALS (OPERATIONAL),4007,18/11/2016,565096,254.01 ,Revenue,G.B. SPORT & LEISURE,07524601
Fareham Borough Council,http://statistics.data.gov.uk/id/local-authority/24UE,OTHER REVENUE ACCOUNTS,RV,CONTRACT SERVICES D.S.O.,RV14,DEPT STREETSCENE,SUPPLIES & SERVICES,4,Sports & Playground Equipment & Maintenance,33,MATERIALS (OPERATIONAL),4007,18/11/2016,565096,67.56 ,Revenue,G.B. SPORT & LEISURE,07524601
Fareham Borough Council,http://statistics.data.gov.uk/id/local-authority/24UE,OTHER REVENUE ACCOUNTS,RV,CONTRACT SERVICES D.S.O.,RV14,DEPT STREETSCENE,SUPPLIES & SERVICES,4,Sports & Playground Equipment & Maintenance,33,MATERIALS (OPERATIONAL),4007,18/11/2016,565096,43.75 ,Revenue,G.B. SPORT & LEISURE,07524601
Fareham Borough Council,http://statistics.data.gov.uk/id/local-authority/24UE,OTHER REVENUE ACCOUNTS,RV,CONTRACT SERVICES D.S.O.,RV14,DEPT STREETSCENE,SUPPLIES & SERVICES,4,Sports & Playground Equipment & Maintenance,33,MATERIALS (OPERATIONAL),4007,18/11/2016,565096,554.00 ,Revenue,G.B. SPORT & LEISURE,07524601
Fareham Borough Council,http://statistics.data.gov.uk/id/local-authority/24UE,OTHER REVENUE ACCOUNTS,RV,CONTRACT SERVICES D.S.O.,RV14,DEPT STREETSCENE,SUPPLIES & SERVICES,4,Sports & Playground Equipment & Maintenance,33,MATERIALS (OPERATIONAL),4007,18/11/2016,565096,18.00 ,Revenue,G.B. SPORT & LEISURE,07524601
Fareham Borough Council,http://statistics.data.gov.uk/id/local-authority/24UE,OTHER REVENUE ACCOUNTS,RV,CONTRACT SERVICES D.S.O.,RV14,DEPT STREETSCENE,SUPPLIES & SERVICES,4,Sports & Playground Equipment & Maintenance,33,MATERIALS (OPERATIONAL),4007,18/11/2016,565096,5.00 ,Revenue,G.B. SPORT & LEISURE,07524601
Fareham Borough Council,http://statistics.data.gov.uk/id/local-authority/24UE,OTHER REVENUE ACCOUNTS,RV,CONTRACT SERVICES D.S.O.,RV14,DEPT STREETSCENE,SUPPLIES & SERVICES,4,Sports & Playground Equipment & Maintenance,33,MATERIALS (OPERATIONAL),4007,18/11/2016,565096,375.00 ,Revenue,G.B. SPORT & LEISURE,07524601
Fareham Borough Council,http://statistics.data.gov.uk/id/local-authority/24UE,OTHER REVENUE ACCOUNTS,RV,CONTRACT SERVICES D.S.O.,RV14,DEPT STREETSCENE,SUPPLIES & SERVICES,4,Sports & Playground Equipment & Maintenance,33,MATERIALS (OPERATIONAL),4007,18/11/2016,565096,18.00 ,Revenue,G.B. SPORT & LEISURE,07524601
Fareham Borough Council,http://statistics.data.gov.uk/id/local-authority/24UE,OTHER REVENUE ACCOUNTS,RV,CONTRACT SERVICES D.S.O.,RV14,DEPT STREETSCENE,SUPPLIES & SERVICES,4,Sports & Playground Equipment & Maintenance,33,MATERIALS (OPERATIONAL),4007,18/11/2016,565096,1.20 ,Revenue,G.B. SPORT & LEISURE,07524601
Fareham Borough Council,http://statistics.data.gov.uk/id/local-authority/24UE,OTHER REVENUE ACCOUNTS,RV,CONTRACT SERVICES D.S.O.,RV14,DEPT STREETSCENE,SUPPLIES & SERVICES,4,Sports & Playground Equipment & Maintenance,33,MATERIALS (OPERATIONAL),4007,18/11/2016,565096,253.38 ,Revenue,G.B. SPORT & LEISURE,07524601
Fareham Borough Council,http://statistics.data.gov.uk/id/local-authority/24UE,OTHER REVENUE ACCOUNTS,RV,CONTRACT SERVICES D.S.O.,RV14,DEPT STREETSCENE,SUPPLIES & SERVICES,4,Sports & Playground Equipment & Maintenance,33,MATERIALS (OPERATIONAL),4007,18/11/2016,565096,11.00 ,Revenue,G.B. SPORT & LEISURE,07524601
Fareham Borough Council,http://statistics.data.gov.uk/id/local-authority/24UE,OTHER REVENUE ACCOUNTS,RV,CONTRACT SERVICES D.S.O.,RV14,DEPT STREETSCENE,SUPPLIES & SERVICES,4,Sports & Playground Equipment & Maintenance,33,MATERIALS (OPERATIONAL),4007,18/11/2016,565096,10.00 ,Revenue,G.B. SPORT & LEISURE,07524601
Fareham Borough Council,http://statistics.data.gov.uk/id/local-authority/24UE,OTHER REVENUE ACCOUNTS,RV,CONTRACT SERVICES D.S.O.,RV14,DEPT STREETSCENE,SUPPLIES & SERVICES,4,Sports & Playground Equipment & Maintenance,33,MATERIALS (OPERATIONAL),4007,18/11/2016,565096,31.00 ,Revenue,G.B. SPORT & LEISURE,07524601
Fareham Borough Council,http://statistics.data.gov.uk/id/local-authority/24UE,OTHER REVENUE ACCOUNTS,RV,CONTRACT SERVICES D.S.O.,RV14,DEPT STREETSCENE,SUPPLIES & SERVICES,4,Sports & Playground Equipment & Maintenance,33,MATERIALS (OPERATIONAL),4007,18/11/2016,565096,67.50 ,Revenue,G.B. SPORT & LEISURE,07524601
Fareham Borough Council,http://statistics.data.gov.uk/id/local-authority/24UE,OTHER REVENUE ACCOUNTS,RV,CONTRACT SERVICES D.S.O.,RV14,DEPT STREETSCENE,SUPPLIES & SERVICES,4,Sports & Playground Equipment & Maintenance,33,MATERIALS (OPERATIONAL),4007,18/11/2016,565096,25.50 ,Revenue,G.B. SPORT & LEISURE,07524601
Fareham Borough Council,http://statistics.data.gov.uk/id/local-authority/24UE,OTHER REVENUE ACCOUNTS,RV,CONTRACT SERVICES D.S.O.,RV14,DEPT STREETSCENE,SUPPLIES & SERVICES,4,Sports & Playground Equipment & Maintenance,33,MATERIALS (OPERATIONAL),4007,18/11/2016,565096,31.00 ,Revenue,G.B. SPORT & LEISURE,07524601
Fareham Borough Council,http://statistics.data.gov.uk/id/local-authority/24UE,OTHER REVENUE ACCOUNTS,RV,CONTRACT SERVICES D.S.O.,RV14,DEPT STREETSCENE,SUPPLIES & SERVICES,4,Sports & Playground Equipment & Maintenance,33,MATERIALS (OPERATIONAL),4007,18/11/2016,565096,42.00 ,Revenue,G.B. SPORT & LEISURE,07524601
Fareham Borough Council,http://statistics.data.gov.uk/id/local-authority/24UE,OTHER REVENUE ACCOUNTS,RV,CONTRACT SERVICES D.S.O.,RV14,DEPT STREETSCENE,SUPPLIES & SERVICES,4,Sports & Playground Equipment & Maintenance,33,MATERIALS (OPERATIONAL),4007,18/11/2016,565096,64.00 ,Revenue,G.B. SPORT & LEISURE,07524601
Fareham Borough Council,http://statistics.data.gov.uk/id/local-authority/24UE,OTHER REVENUE ACCOUNTS,RV,CONTRACT SERVICES D.S.O.,RV14,DEPT STREETSCENE,SUPPLIES & SERVICES,4,Sports & Playground Equipment & Maintenance,33,MATERIALS (OPERATIONAL),4007,18/11/2016,565096,247.50 ,Revenue,G.B. SPORT & LEISURE,07524601
Fareham Borough Council,http://statistics.data.gov.uk/id/local-authority/24UE,OTHER REVENUE ACCOUNTS,RV,CONTRACT SERVICES D.S.O.,RV14,DEPT STREETSCENE,SUPPLIES & SERVICES,4,Sports & Playground Equipment & Maintenance,33,MATERIALS (OPERATIONAL),4007,18/11/2016,565096,114.00 ,Revenue,G.B. SPORT & LEISURE,07524601
Fareham Borough Council,http://statistics.data.gov.uk/id/local-authority/24UE,OTHER REVENUE ACCOUNTS,RV,CONTRACT SERVICES D.S.O.,RV14,DEPT STREETSCENE,SUPPLIES & SERVICES,4,Sports & Playground Equipment & Maintenance,33,MATERIALS (OPERATIONAL),4007,18/11/2016,565096,175.20 ,Revenue,G.B. SPORT & LEISURE,07524601
Fareham Borough Council,http://statistics.data.gov.uk/id/local-authority/24UE,OTHER REVENUE ACCOUNTS,RV,CONTRACT SERVICES D.S.O.,RV14,DEPT STREETSCENE,SUPPLIES & SERVICES,4,Sports & Playground Equipment & Maintenance,33,MATERIALS (OPERATIONAL),4007,18/11/2016,565096,150.00 ,Revenue,G.B. SPORT & LEISURE,07524601
Fareham Borough Council,http://statistics.data.gov.uk/id/local-authority/24UE,OTHER REVENUE ACCOUNTS,RV,CONTRACT SERVICES D.S.O.,RV14,DEPT STREETSCENE,SUPPLIES & SERVICES,4,Sports & Playground Equipment & Maintenance,33,MATERIALS (OPERATIONAL),4007,18/11/2016,565096,40.00 ,Revenue,G.B. SPORT & LEISURE,07524601
Fareham Borough Council,http://statistics.data.gov.uk/id/local-authority/24UE,OTHER REVENUE ACCOUNTS,RV,CONTRACT SERVICES D.S.O.,RV14,DEPT STREETSCENE,SUPPLIES & SERVICES,4,Sports & Playground Equipment & Maintenance,33,MATERIALS (OPERATIONAL),4007,18/11/2016,565096,37.50 ,Revenue,G.B. SPORT & LEISURE,07524601
Fareham Borough Council,http://statistics.data.gov.uk/id/local-authority/24UE,OTHER REVENUE ACCOUNTS,RV,CONTRACT SERVICES D.S.O.,RV14,DEPT STREETSCENE,SUPPLIES & SERVICES,4,Sports & Playground Equipment & Maintenance,33,MATERIALS (OPERATIONAL),4007,18/11/2016,565096,25.00 ,Revenue,G.B. SPORT & LEISURE,07524601
Fareham Borough Council,http://statistics.data.gov.uk/id/local-authority/24UE,OTHER REVENUE ACCOUNTS,RV,CONTRACT SERVICES D.S.O.,RV14,DEPT STREETSCENE,SUPPLIES & SERVICES,4,Sports & Playground Equipment & Maintenance,33,MATERIALS (OPERATIONAL),4007,18/11/2016,565096,63.00 ,Revenue,G.B. SPORT & LEISURE,07524601
Fareham Borough Council,http://statistics.data.gov.uk/id/local-authority/24UE,OTHER REVENUE ACCOUNTS,RV,CONTRACT SERVICES D.S.O.,RV14,DEPT STREETSCENE,SUPPLIES & SERVICES,4,Sports & Playground Equipment & Maintenance,33,MATERIALS (OPERATIONAL),4007,18/11/2016,565096,43.00 ,Revenue,G.B. SPORT & LEISURE,07524601
Fareham Borough Council,http://statistics.data.gov.uk/id/local-authority/24UE,OTHER REVENUE ACCOUNTS,RV,CONTRACT SERVICES D.S.O.,RV14,DEPT STREETSCENE,SUPPLIES & SERVICES,4,Sports & Playground Equipment & Maintenance,33,MATERIALS (OPERATIONAL),4007,18/11/2016,565096,43.00 ,Revenue,G.B. SPORT & LEISURE,07524601
Fareham Borough Council,http://statistics.data.gov.uk/id/local-authority/24UE,OTHER REVENUE ACCOUNTS,RV,CONTRACT SERVICES D.S.O.,RV14,DEPT STREETSCENE,SUPPLIES & SERVICES,4,Sports & Playground Equipment & Maintenance,33,MATERIALS (OPERATIONAL),4007,18/11/2016,565096,17.60 ,Revenue,G.B. SPORT & LEISURE,07524601
Fareham Borough Council,http://statistics.data.gov.uk/id/local-authority/24UE,OTHER REVENUE ACCOUNTS,RV,CONTRACT SERVICES D.S.O.,RV14,DEPT STREETSCENE,SUPPLIES & SERVICES,4,Sports & Playground Equipment & Maintenance,33,MATERIALS (OPERATIONAL),4007,18/11/2016,565096,5.50 ,Revenue,G.B. SPORT & LEISURE,07524601
Fareham Borough Council,http://statistics.data.gov.uk/id/local-authority/24UE,OTHER REVENUE ACCOUNTS,RV,CONTRACT SERVICES D.S.O.,RV14,DEPT STREETSCENE,SUPPLIES & SERVICES,4,Sports & Playground Equipment & Maintenance,33,MATERIALS (OPERATIONAL),4007,18/11/2016,565096,282.00 ,Revenue,G.B. SPORT & LEISURE,07524601
Fareham Borough Council,http://statistics.data.gov.uk/id/local-authority/24UE,OTHER REVENUE ACCOUNTS,RV,CONTRACT SERVICES D.S.O.,RV14,DEPT STREETSCENE,SUPPLIES & SERVICES,4,Sports & Playground Equipment & Maintenance,33,MATERIALS (OPERATIONAL),4007,18/11/2016,565096,58.40 ,Revenue,G.B. SPORT & LEISURE,07524601
Fareham Borough Council,http://statistics.data.gov.uk/id/local-authority/24UE,OTHER REVENUE ACCOUNTS,RV,CONTRACT SERVICES D.S.O.,RV14,DEPT STREETSCENE,SUPPLIES & SERVICES,4,Sports & Playground Equipment & Maintenance,33,MATERIALS (OPERATIONAL),4007,18/11/2016,565096,168.00 ,Revenue,G.B. SPORT & LEISURE,07524601
Fareham Borough Council,http://statistics.data.gov.uk/id/local-authority/24UE,OTHER REVENUE ACCOUNTS,RV,CONTRACT SERVICES D.S.O.,RV14,DEPT STREETSCENE,SUPPLIES & SERVICES,4,Sports & Playground Equipment & Maintenance,33,MATERIALS (OPERATIONAL),4007,18/11/2016,565096,170.79 ,Revenue,G.B. SPORT & LEISURE,07524601
Fareham Borough Council,http://statistics.data.gov.uk/id/local-authority/24UE,OTHER REVENUE ACCOUNTS,RV,CONTRACT SERVICES D.S.O.,RV14,DEPT STREETSCENE,SUPPLIES & SERVICES,4,Sports & Playground Equipment & Maintenance,33,MATERIALS (OPERATIONAL),4007,18/11/2016,565096,50.00 ,Revenue,G.B. SPORT & LEISURE,07524601
Fareham Borough Council,http://statistics.data.gov.uk/id/local-authority/24UE,OTHER REVENUE ACCOUNTS,RV,CONTRACT SERVICES D.S.O.,RV14,DEPT STREETSCENE,SUPPLIES & SERVICES,4,Sports & Playground Equipment & Maintenance,33,MATERIALS (OPERATIONAL),4007,18/11/2016,565096,1689.87 ,Revenue,G.B. SPORT & LEISURE,07524601
Fareham Borough Council,http://statistics.data.gov.uk/id/local-authority/24UE,OTHER REVENUE ACCOUNTS,RV,CONTRACT SERVICES D.S.O.,RV14,DEPT STREETSCENE,SUPPLIES & SERVICES,4,Sports & Playground Equipment & Maintenance,33,MATERIALS (OPERATIONAL),4007,18/11/2016,565096,485.00 ,Revenue,G.B. SPORT & LEISURE,07524601
Fareham Borough Council,http://statistics.data.gov.uk/id/local-authority/24UE,OTHER REVENUE ACCOUNTS,RV,CONTRACT SERVICES D.S.O.,RV14,DEPT STREETSCENE,SUPPLIES & SERVICES,4,Building Construction Materials,10,MATERIALS (OPERATIONAL),4007,18/11/2016,565972,-502.50 ,Revenue,HEYWOOD WILLIAMS COMPONENTS LTD T/A MILA UK,2523354
Fareham Borough Council,http://statistics.data.gov.uk/id/local-authority/24UE,OTHER REVENUE ACCOUNTS,RV,NON WORK GROUP HOLDING ACCOUNT,RV18,DEPT STREETSCENE,TRANSPORT RELATED EXPENDITURE,3,Vehicle Management,38,VEHICLE TRACKER CHARGES,3021,18/11/2016,567873,260.44 ,Revenue,TRACKYOU LTD,04203244
Fareham Borough Council,http://statistics.data.gov.uk/id/local-authority/24UE,OTHER REVENUE ACCOUNTS,RV,NON WORK GROUP HOLDING ACCOUNT,RV18,DEPT STREETSCENE,TRANSPORT RELATED EXPENDITURE,3,Vehicle Management,38,VEHICLE TRACKER CHARGES,3021,18/11/2016,567873,1363.48 ,Revenue,TRACKYOU LTD,04203244
Fareham Borough Council,http://statistics.data.gov.uk/id/local-authority/24UE,OTHER REVENUE ACCOUNTS,RV,NON WORK GROUP HOLDING ACCOUNT,RV18,DEPT of FINANCE and RESOURCES,SUPPLIES & SERVICES,4,Information Communication Technology,27,FURNITURE & EQUIPT.-RENTS/LSES,4040,04/11/2016,568910,3691.31 ,Revenue,ANNODATA LTD,2246366
Fareham Borough Council,http://statistics.data.gov.uk/id/local-authority/24UE,OTHER REVENUE ACCOUNTS,RV,CONTRACT SERVICES D.S.O.,RV14,DEPT STREETSCENE,EMPLOYEES RELATED EXPENDITURE,1,Human Resources,26,AGENCY WORKERS,1050,04/11/2016,569001,2768.40 ,Revenue,BUZZ PEOPLE RECRUITMENT LTD,07908887
Fareham Borough Council,http://statistics.data.gov.uk/id/local-authority/24UE,HIGHWAYS ROADS AND TRANSPORT,BV12,PARKING SERVICES,BV12D,DEPT STREETSCENE,SUPPLIES & SERVICES,4,Street & Traffic Management,35,TICKET MACHINE - MAINTENANCE,4037,04/11/2016,569109,2112.00 ,Revenue,BEMROSEBOOTH,03978232
Fareham Borough Council,http://statistics.data.gov.uk/id/local-authority/24UE,HIGHWAYS ROADS AND TRANSPORT,BV12,PARKING SERVICES,BV12D,DEPT STREETSCENE,SUPPLIES & SERVICES,4,Street & Traffic Management,35,TICKET MACHINE - MAINTENANCE,4037,04/11/2016,569109,45.00 ,Revenue,BEMROSEBOOTH,03978232
Fareham Borough Council,http://statistics.data.gov.uk/id/local-authority/24UE,GENERAL FUND HOUSING,BV05,HOMELESSNESS,BV05F,DEPT of COMMUNITY and STREETSCENE,SUPPLIES & SERVICES,4,Facilities & Management Services,19,REMOVAL & STORAGE OF FURNITURE,4090,04/11/2016,569167,620.00 ,Revenue,AGINCOURT REMOVALS,
Fareham Borough Council,http://statistics.data.gov.uk/id/local-authority/24UE,OTHER REVENUE ACCOUNTS,RV,NON WORK GROUP HOLDING ACCOUNT,RV18,DEPT of FINANCE and RESOURCES,SUPPLIES & SERVICES,4,Mail Services?,30,POSTAGES,4500,04/11/2016,569568,6721.40 ,Revenue,ROYAL MAIL,04138203
Fareham Borough Council,http://statistics.data.gov.uk/id/local-authority/24UE,ENVIRONMENT AND REGULATORY SER,BV03,WASTE COLLECTION,BV03G,DEPT STREETSCENE,TRANSPORT RELATED EXPENDITURE,3,Vehicle Management,38,ROUTINE REPAIRS VEHICLES/PLANT,3010,04/11/2016,569578,187.94 ,Revenue,TERBERG MATEC UK LTD,03404297
Fareham Borough Council,http://statistics.data.gov.uk/id/local-authority/24UE,ENVIRONMENT AND REGULATORY SER,BV03,WASTE COLLECTION,BV03G,DEPT STREETSCENE,TRANSPORT RELATED EXPENDITURE,3,Vehicle Management,38,ROUTINE REPAIRS VEHICLES/PLANT,3010,04/11/2016,569578,660.17 ,Revenue,TERBERG MATEC UK LTD,03404297
Fareham Borough Council,http://statistics.data.gov.uk/id/local-authority/24UE,ENVIRONMENT AND REGULATORY SER,BV03,WASTE COLLECTION,BV03G,DEPT STREETSCENE,TRANSPORT RELATED EXPENDITURE,3,Vehicle Management,38,ROUTINE REPAIRS VEHICLES/PLANT,3010,04/11/2016,569578,1.77 ,Revenue,TERBERG MATEC UK LTD,03404297
Fareham Borough Council,http://statistics.data.gov.uk/id/local-authority/24UE,ENVIRONMENT AND REGULATORY SER,BV03,WASTE COLLECTION,BV03G,DEPT STREETSCENE,TRANSPORT RELATED EXPENDITURE,3,Vehicle Management,38,ROUTINE REPAIRS VEHICLES/PLANT,3010,04/11/2016,569578,1.69 ,Revenue,TERBERG MATEC UK LTD,03404297
Fareham Borough Council,http://statistics.data.gov.uk/id/local-authority/24UE,ENVIRONMENT AND REGULATORY SER,BV03,WASTE COLLECTION,BV03G,DEPT STREETSCENE,TRANSPORT RELATED EXPENDITURE,3,Vehicle Management,38,ROUTINE REPAIRS VEHICLES/PLANT,3010,04/11/2016,569578,14.50 ,Revenue,TERBERG MATEC UK LTD,03404297
Fareham Borough Council,http://statistics.data.gov.uk/id/local-authority/24UE,PLANNING SERVICES,BV13,DEVELOPMENT CONTROL,BV13B,DEPT of STRATEGIC PLANNING and ENVIRONMENT,SUPPLIES & SERVICES,4,"Works - Construction, Repair & Maintenance",39,CONSULTANTS FEES,4401,04/11/2016,569586,2850.00 ,Revenue,TUV SUD LTD,SC215164
Fareham Borough Council,http://statistics.data.gov.uk/id/local-authority/24UE,ENVIRONMENT AND REGULATORY SER,BV03,STREET CLEANSING,BV03F,DEPT STREETSCENE,TRANSPORT RELATED EXPENDITURE,3,Vehicle Management,38,ROUTINE REPAIRS VEHICLES/PLANT,3010,04/11/2016,569588,160.29 ,Revenue,JOHNSTON SWEEPERS LIMITED,00199841
Fareham Borough Council,http://statistics.data.gov.uk/id/local-authority/24UE,ENVIRONMENT AND REGULATORY SER,BV03,STREET CLEANSING,BV03F,DEPT STREETSCENE,TRANSPORT RELATED EXPENDITURE,3,Vehicle Management,38,ROUTINE REPAIRS VEHICLES/PLANT,3010,04/11/2016,569588,50.87 ,Revenue,JOHNSTON SWEEPERS LIMITED,00199841
Fareham Borough Council,http://statistics.data.gov.uk/id/local-authority/24UE,ENVIRONMENT AND REGULATORY SER,BV03,STREET CLEANSING,BV03F,DEPT STREETSCENE,TRANSPORT RELATED EXPENDITURE,3,Vehicle Management,38,ROUTINE REPAIRS VEHICLES/PLANT,3010,04/11/2016,569588,60.84 ,Revenue,JOHNSTON SWEEPERS LIMITED,00199841
Fareham Borough Council,http://statistics.data.gov.uk/id/local-authority/24UE,ENVIRONMENT AND REGULATORY SER,BV03,STREET CLEANSING,BV03F,DEPT STREETSCENE,TRANSPORT RELATED EXPENDITURE,3,Vehicle Management,38,ROUTINE REPAIRS VEHICLES/PLANT,3010,04/11/2016,569588,563.62 ,Revenue,JOHNSTON SWEEPERS LIMITED,00199841
Fareham Borough Council,http://statistics.data.gov.uk/id/local-authority/24UE,BALANCE SHEET,BS,BAL. SHEET - D.S.O.,BS1,BAL. SHEET - D.S.O.,TOTAL ASSETS LESS LIABILITIES,BS100,Vehicle Management,38,MATERIALS SUSPENSE ACCOUNT (VE,A016,04/11/2016,569601,9592.07 ,Balance Sheet,WESSEX PETROLEUM LTD,01024472
Fareham Borough Council,http://statistics.data.gov.uk/id/local-authority/24UE,ENVIRONMENT AND REGULATORY SER,BV03,WASTE COLLECTION,BV03G,DEPT STREETSCENE,TRANSPORT RELATED EXPENDITURE,3,Vehicle Management,38,ROUTINE REPAIRS VEHICLES/PLANT,3010,04/11/2016,569622,159.35 ,Revenue,DENNIS EAGLE LIMITED,03794455
Fareham Borough Council,http://statistics.data.gov.uk/id/local-authority/24UE,ENVIRONMENT AND REGULATORY SER,BV03,WASTE COLLECTION,BV03G,DEPT STREETSCENE,TRANSPORT RELATED EXPENDITURE,3,Vehicle Management,38,ROUTINE REPAIRS VEHICLES/PLANT,3010,04/11/2016,569622,72.12 ,Revenue,DENNIS EAGLE LIMITED,03794455
Fareham Borough Council,http://statistics.data.gov.uk/id/local-authority/24UE,ENVIRONMENT AND REGULATORY SER,BV03,WASTE COLLECTION,BV03G,DEPT STREETSCENE,TRANSPORT RELATED EXPENDITURE,3,Vehicle Management,38,ROUTINE REPAIRS VEHICLES/PLANT,3010,04/11/2016,569622,343.93 ,Revenue,DENNIS EAGLE LIMITED,03794455
Fareham Borough Council,http://statistics.data.gov.uk/id/local-authority/24UE,ENVIRONMENT AND REGULATORY SER,BV03,WASTE COLLECTION,BV03G,DEPT STREETSCENE,TRANSPORT RELATED EXPENDITURE,3,Vehicle Management,38,ROUTINE REPAIRS VEHICLES/PLANT,3010,04/11/2016,569622,16.48 ,Revenue,DENNIS EAGLE LIMITED,03794455
Fareham Borough Council,http://statistics.data.gov.uk/id/local-authority/24UE,ENVIRONMENT AND REGULATORY SER,BV03,WASTE COLLECTION,BV03G,DEPT STREETSCENE,TRANSPORT RELATED EXPENDITURE,3,Vehicle Management,38,ROUTINE REPAIRS VEHICLES/PLANT,3010,04/11/2016,569622,30.07 ,Revenue,DENNIS EAGLE LIMITED,03794455
Fareham Borough Council,http://statistics.data.gov.uk/id/local-authority/24UE,CAPITAL PROGRAMME - HOUSING SERVICES,CP,HOUSE RENOVATION GRANTS,CP11,CAPITAL - HOUSE RENOVATION GRANTS,SUPPLIES & SERVICES,4,Social Community Care Supplies & Services,32,GRANTS AND SUBSCRIPTIONS,4700,04/11/2016,569646,1196.40 ,Capital,FAMILY MOSAIC HOUSING,5640546
Fareham Borough Council,http://statistics.data.gov.uk/id/local-authority/24UE,CAPITAL PROGRAMME - OTHER SERVICES,CP,COMPUTER APPROVED,CP23,CAPITAL - COMPUTER APPROVED,SUPPLIES & SERVICES,4,Financial Services,20,SOFTWARE LICENCES,4530,04/11/2016,569706,8360.00 ,Capital,CAPITA BUSINESS SERVICES LTD,02299747
Fareham Borough Council,http://statistics.data.gov.uk/id/local-authority/24UE,CAPITAL PROGRAMME - OTHER SERVICES,CP,COMPUTER APPROVED,CP23,CAPITAL - COMPUTER APPROVED,SUPPLIES & SERVICES,4,Financial Services,20,SOFTWARE LICENCES,4530,04/11/2016,569707,6700.00 ,Capital,CAPITA BUSINESS SERVICES LTD,02299747
Fareham Borough Council,http://statistics.data.gov.uk/id/local-authority/24UE,BALANCE SHEET,BS,BAL. SHEET - D.S.O.,BS1,BAL. SHEET - D.S.O.,TOTAL ASSETS LESS LIABILITIES,BS100,Vehicle Management,38,MATERIALS SUSPENSE ACCOUNT (VE,A016,04/11/2016,569760,7023.50 ,Balance Sheet,WESSEX PETROLEUM LTD,01024472
Fareham Borough Council,http://statistics.data.gov.uk/id/local-authority/24UE,ENVIRONMENT AND REGULATORY SER,BV03,STREET CLEANSING,BV03F,DEPT STREETSCENE,TRANSPORT RELATED EXPENDITURE,3,Vehicle Management,38,ROUTINE REPAIRS VEHICLES/PLANT,3010,11/11/2016,569761,691.36 ,Revenue,MOBILE WINDSCREENS LTD,01370175
Fareham Borough Council,http://statistics.data.gov.uk/id/local-authority/24UE,CULTURAL AND RELATED SERVICES,BV09,CULTURE AND HERITAGE,BV09A,DEPT of COMMUNITY and STREETSCENE,SUPPLIES & SERVICES,4,Catering,11,BAR PROVISIONS,4106,04/11/2016,570194,1217.92 ,Revenue,MOLSON COORS BREWING COMPANY (UK) LTD,26018
Fareham Borough Council,http://statistics.data.gov.uk/id/local-authority/24UE,CULTURAL AND RELATED SERVICES,BV09,CULTURE AND HERITAGE,BV09A,DEPT of COMMUNITY and STREETSCENE,SUPPLIES & SERVICES,4,Building Construction Materials,10,EQUIPMENT PURCHASES - TECH'L,4011,18/11/2016,570206,664.50 ,Revenue,A C ENTERTAINMENT TECHNOLOGIES LTD,1626564
Fareham Borough Council,http://statistics.data.gov.uk/id/local-authority/24UE,CAPITAL PROGRAMME - HOUSING SERVICES,CP,NEW HOUSE BUILDING,CP10,CAPITAL - NEW HOUSE BUILDING,PREMISES RELATED EXPENDITURE,2,"Works - Construction, Repair & Maintenance",39,BUILDING CONSTRUCTION,2602,11/11/2016,570220,306990.59 ,Capital,DREW SMITH LTD,02433962
Fareham Borough Council,http://statistics.data.gov.uk/id/local-authority/24UE,CAPITAL PROGRAMME - HOUSING SERVICES,CP,NEW HOUSE BUILDING,CP10,CAPITAL - NEW HOUSE BUILDING,PREMISES RELATED EXPENDITURE,2,"Works - Construction, Repair & Maintenance",39,BUILDING CONSTRUCTION,2602,11/11/2016,570220,8099.33 ,Capital,DREW SMITH LTD,02433962
Fareham Borough Council,http://statistics.data.gov.uk/id/local-authority/24UE,CAPITAL PROGRAMME - OTHER SERVICES,CP,COMPUTER APPROVED,CP23,CAPITAL - COMPUTER APPROVED,SUPPLIES & SERVICES,4,Financial Services,20,SOFTWARE LICENCES,4530,11/11/2016,570227,786.00 ,Capital,CAPITA BUSINESS SERVICES LTD,02299747
Fareham Borough Council,http://statistics.data.gov.uk/id/local-authority/24UE,GENERAL FUND HOUSING,BV05,HOUSING BENEFIT ADMINISTRATION,BV05H,DEPT of COMMUNITY and STREETSCENE,SUPPLIES & SERVICES,4,Information Communication Technology,27,TRAINING FOR EMPLOYEES,4612,11/11/2016,570231,125.00 ,Revenue,NORTHGATE PUBLIC SERVICES (UK) LTD,968498
Fareham Borough Council,http://statistics.data.gov.uk/id/local-authority/24UE,CENTRAL SERVICES,BV07,CENTRAL SERVICES TO THE PUBLIC,BV07B,DEPT of COMMUNITY and STREETSCENE,SUPPLIES & SERVICES,4,Information Communication Technology,27,TRAINING FOR EMPLOYEES,4612,11/11/2016,570231,125.00 ,Revenue,NORTHGATE PUBLIC SERVICES (UK) LTD,968498
Fareham Borough Council,http://statistics.data.gov.uk/id/local-authority/24UE,CENTRAL SERVICES,BV07,CENTRAL SERVICES TO THE PUBLIC,BV07B,DEPT of COMMUNITY and STREETSCENE,SUPPLIES & SERVICES,4,Information Communication Technology,27,TRAINING FOR EMPLOYEES,4612,11/11/2016,570231,125.00 ,Revenue,NORTHGATE PUBLIC SERVICES (UK) LTD,968498
Fareham Borough Council,http://statistics.data.gov.uk/id/local-authority/24UE,CENTRAL SERVICES,BV07,CENTRAL SERVICES TO THE PUBLIC,BV07B,DEPT of COMMUNITY and STREETSCENE,SUPPLIES & SERVICES,4,Information Communication Technology,27,TRAINING FOR EMPLOYEES,4612,11/11/2016,570231,125.00 ,Revenue,NORTHGATE PUBLIC SERVICES (UK) LTD,968498
Fareham Borough Council,http://statistics.data.gov.uk/id/local-authority/24UE,CENTRAL SERVICES,BV07,CENTRAL SERVICES TO THE PUBLIC,BV07B,DEPT of COMMUNITY and STREETSCENE,SUPPLIES & SERVICES,4,Mail Services?,30,POSTAGES,4500,11/11/2016,570233,5.20 ,Revenue,ROYAL MAIL,04138203
Fareham Borough Council,http://statistics.data.gov.uk/id/local-authority/24UE,CENTRAL SERVICES,BV07,CENTRAL SERVICES TO THE PUBLIC,BV07B,DEPT of COMMUNITY and STREETSCENE,SUPPLIES & SERVICES,4,Mail Services?,30,POSTAGES,4500,11/11/2016,570233,58.76 ,Revenue,ROYAL MAIL,04138203
Fareham Borough Council,http://statistics.data.gov.uk/id/local-authority/24UE,OTHER REVENUE ACCOUNTS,RV,NON WORK GROUP HOLDING ACCOUNT,RV18,DEPT of FINANCE and RESOURCES,SUPPLIES & SERVICES,4,Mail Services?,30,POSTAGES,4500,11/11/2016,570233,4898.80 ,Revenue,ROYAL MAIL,04138203
Fareham Borough Council,http://statistics.data.gov.uk/id/local-authority/24UE,PLANNING SERVICES,BV13,ECONOMIC DEVELOPMENT,BV13E,DEPT of COMMUNITY and STREETSCENE,SUPPLIES & SERVICES,4,Highway Equipment & Materials?,23,FURNITURE & EQUIPT. PURCHASES,4000,04/11/2016,570243,1745.00 ,Revenue,SEASONAL TRANSFORMATIONS LIMITED,05028920
Fareham Borough Council,http://statistics.data.gov.uk/id/local-authority/24UE,CULTURAL AND RELATED SERVICES,BV09,RECREATION AND SPORT,BV09B,DEPT of COMMUNITY and STREETSCENE,SUPPLIES & SERVICES,4,Sports & Playground Equipment & Maintenance,33,FURNITURE & EQUIPT. PURCHASES,4000,11/11/2016,570244,1031.80 ,Revenue,HAGS- SMP LIMITED,00908021
Fareham Borough Council,http://statistics.data.gov.uk/id/local-authority/24UE,ENVIRONMENT AND REGULATORY SER,BV03,CEMETERIES CREM & MORTUARY,BV03A,DEPT STREETSCENE,SUPPLIES & SERVICES,4,"Works - Construction, Repair & Maintenance",39,SURVEYORS FEES,4416,04/11/2016,570531,5741.89 ,Revenue,A PURKISS BUILDING & DECORATING LTD,3561215
Fareham Borough Council,http://statistics.data.gov.uk/id/local-authority/24UE,OTHER REVENUE ACCOUNTS,RV,NON WORK GROUP HOLDING ACCOUNT,RV18,DEPT of FINANCE and RESOURCES,PREMISES RELATED EXPENDITURE,2,Utilities,37,SEWERAGE & ENV. CHARGES (SWS),2410,04/11/2016,570533,2181.78 ,Revenue,SOUTHERN WATER SERVICES PLC,02366670
Fareham Borough Council,http://statistics.data.gov.uk/id/local-authority/24UE,OTHER REVENUE ACCOUNTS,RV,NON WORK GROUP HOLDING ACCOUNT,RV18,DEPT of FINANCE and RESOURCES,PREMISES RELATED EXPENDITURE,2,Utilities,37,SEWERAGE & ENV. CHARGES (SWS),2410,04/11/2016,570535,687.71 ,Revenue,SOUTHERN WATER SERVICES PLC,02366670
Fareham Borough Council,http://statistics.data.gov.uk/id/local-authority/24UE,BALANCE SHEET,BS,FMS BAL.SHEET & CONTROL ACCT.,BS1,BAL. SHEET - SUSPENSE ACCOUNT,FMS REJECTION SUSPENSE,BS242,Vehicle Management,38,FMS CODING SUSPENSE ACCOUNT,S990,04/11/2016,570546,1090.00 ,Balance Sheet,BOARHUNT GROUP LTD,02884453
Fareham Borough Council,http://statistics.data.gov.uk/id/local-authority/24UE,CAPITAL PROGRAMME - HOUSING SERVICES,CP,HOUSE RENOVATION GRANTS,CP11,CAPITAL - HOUSE RENOVATION GRANTS,SUPPLIES & SERVICES,4,Unclassified,,GRANTS AND SUBSCRIPTIONS,4700,04/11/2016,570551,3117.00 ,Capital,SPC BATHROOMS LTD,
Fareham Borough Council,http://statistics.data.gov.uk/id/local-authority/24UE,OTHER REVENUE ACCOUNTS,RV,CONTRACT SERVICES D.S.O.,RV14,DEPT STREETSCENE,EMPLOYEES RELATED EXPENDITURE,1,Human Resources,26,AGENCY WORKERS,1050,04/11/2016,570563,826.47 ,Revenue,BUILDING RECRUITMENT COMPANY LTD,3750125
Fareham Borough Council,http://statistics.data.gov.uk/id/local-authority/24UE,OTHER REVENUE ACCOUNTS,RV,CONTRACT SERVICES D.S.O.,RV14,DEPT STREETSCENE,EMPLOYEES RELATED EXPENDITURE,1,Human Resources,26,AGENCY WORKERS,1050,04/11/2016,570564,826.47 ,Revenue,BUILDING RECRUITMENT COMPANY LTD,3750125
Fareham Borough Council,http://statistics.data.gov.uk/id/local-authority/24UE,ENVIRONMENT AND REGULATORY SER,BV03,ENVIRONMENTAL HEALTH,BV03C,DEPT STREETSCENE,SUPPLIES & SERVICES,4,Building Construction Materials,10,MATERIALS (OPERATIONAL),4007,04/11/2016,570567,21.98 ,Revenue,WILLIAMS TRADE SUPPLIES LTD,1864711
Fareham Borough Council,http://statistics.data.gov.uk/id/local-authority/24UE,HOUSING REVENUE ACCOUNT,BV06,RESPONSIVE & VOID MAINTENANCE,5901,DEPT STREETSCENE,SUPPLIES & SERVICES,4,Building Construction Materials,10,MATERIALS (OPERATIONAL),4007,04/11/2016,570567,702.23 ,Revenue,WILLIAMS TRADE SUPPLIES LTD,1864711
Fareham Borough Council,http://statistics.data.gov.uk/id/local-authority/24UE,OTHER REVENUE ACCOUNTS,RV,CONTRACT SERVICES D.S.O.,RV14,DEPT STREETSCENE,SUPPLIES & SERVICES,4,Building Construction Materials,10,MATERIALS (OPERATIONAL),4007,04/11/2016,570567,1195.58 ,Revenue,WILLIAMS TRADE SUPPLIES LTD,1864711
Fareham Borough Council,http://statistics.data.gov.uk/id/local-authority/24UE,OTHER REVENUE ACCOUNTS,RV,NON WORK GROUP HOLDING ACCOUNT,RV18,DEPT of FINANCE and RESOURCES,SUPPLIES & SERVICES,4,Building Construction Materials,10,MATERIALS (OPERATIONAL),4007,04/11/2016,570567,3.02 ,Revenue,WILLIAMS TRADE SUPPLIES LTD,1864711
Fareham Borough Council,http://statistics.data.gov.uk/id/local-authority/24UE,CULTURAL AND RELATED SERVICES,BV09,CULTURE AND HERITAGE,BV09A,DEPT of COMMUNITY and STREETSCENE,SUPPLIES & SERVICES,4,Financial Services,20,SECURITY SERVICES,4409,04/11/2016,570607,38.74 ,Revenue,KEYLINE CHARTERED SECURITY LTD,3754578
Fareham Borough Council,http://statistics.data.gov.uk/id/local-authority/24UE,HIGHWAYS ROADS AND TRANSPORT,BV12,PARKING SERVICES,BV12D,DEPT STREETSCENE,SUPPLIES & SERVICES,4,Financial Services,20,SECURITY SERVICES,4409,04/11/2016,570607,4333.55 ,Revenue,KEYLINE CHARTERED SECURITY LTD,3754578
Fareham Borough Council,http://statistics.data.gov.uk/id/local-authority/24UE,OTHER REVENUE ACCOUNTS,RV,NON WORK GROUP HOLDING ACCOUNT,RV18,DEPT of FINANCE and RESOURCES,SUPPLIES & SERVICES,4,Financial Services,20,SECURITY SERVICES,4409,04/11/2016,570607,38.75 ,Revenue,KEYLINE CHARTERED SECURITY LTD,3754578
Fareham Borough Council,http://statistics.data.gov.uk/id/local-authority/24UE,CORPORATE & DEMOCRATIC CORE,BV07A,CORPORATE MANAGEMENT,BV07AB,DEPT of FINANCE and RESOURCES,SUPPLIES & SERVICES,4,Facilities & Management Services,19,GRAPHIC DESIGN SERVICE,4445,04/11/2016,570608,1175.00 ,Revenue,MILLHARBOUR DIGITAL LTD,6619241
Fareham Borough Council,http://statistics.data.gov.uk/id/local-authority/24UE,CORPORATE & DEMOCRATIC CORE,BV07A,CORPORATE MANAGEMENT,BV07AB,DEPT of FINANCE and RESOURCES,SUPPLIES & SERVICES,4,Facilities & Management Services,19,GRAPHIC DESIGN SERVICE,4445,04/11/2016,570608,705.00 ,Revenue,MILLHARBOUR DIGITAL LTD,6619241
Fareham Borough Council,http://statistics.data.gov.uk/id/local-authority/24UE,CORPORATE & DEMOCRATIC CORE,BV07A,CORPORATE MANAGEMENT,BV07AB,DEPT of FINANCE and RESOURCES,SUPPLIES & SERVICES,4,Facilities & Management Services,19,GRAPHIC DESIGN SERVICE,4445,04/11/2016,570608,464.00 ,Revenue,MILLHARBOUR DIGITAL LTD,6619241
Fareham Borough Council,http://statistics.data.gov.uk/id/local-authority/24UE,OTHER REVENUE ACCOUNTS,RV,NON WORK GROUP HOLDING ACCOUNT,RV18,DEPT of FINANCE and RESOURCES,SUPPLIES & SERVICES,4,Facilities & Management Services,19,GRANTS AND SUBSCRIPTIONS,4700,04/11/2016,570616,925.00 ,Revenue,SOCITM LIMITED,04396808
Fareham Borough Council,http://statistics.data.gov.uk/id/local-authority/24UE,OTHER REVENUE ACCOUNTS,RV,CONTRACT SERVICES D.S.O.,RV14,DEPT STREETSCENE,SUPPLIES & SERVICES,4,Clothing,14,PROTECTIVE CLOTHING & UNIFORMS,4200,11/11/2016,570618,62.55 ,Revenue,JOHNSONS APPARELMASTER,00464645
Fareham Borough Council,http://statistics.data.gov.uk/id/local-authority/24UE,OTHER REVENUE ACCOUNTS,RV,NON WORK GROUP HOLDING ACCOUNT,RV18,DEPT STREETSCENE,SUPPLIES & SERVICES,4,Clothing,14,PROTECTIVE CLOTHING & UNIFORMS,4200,11/11/2016,570618,518.00 ,Revenue,JOHNSONS APPARELMASTER,00464645
Fareham Borough Council,http://statistics.data.gov.uk/id/local-authority/24UE,HOUSING REVENUE ACCOUNT,BV06,RESPONSIVE & VOID MAINTENANCE,5901,DEPT STREETSCENE,PREMISES RELATED EXPENDITURE,2,Building Construction Materials,10,GENERAL REPAIRS,2018,04/11/2016,570623,1728.88 ,Revenue,CADE ROOFING & BUILDING SERVICES LTD,02795780
Fareham Borough Council,http://statistics.data.gov.uk/id/local-authority/24UE,HOUSING REVENUE ACCOUNT,BV06,RESPONSIVE & VOID MAINTENANCE,5901,DEPT STREETSCENE,PREMISES RELATED EXPENDITURE,2,Building Construction Materials,10,GENERAL REPAIRS,2018,04/11/2016,570624,2258.47 ,Revenue,CADE ROOFING & BUILDING SERVICES LTD,02795780
Fareham Borough Council,http://statistics.data.gov.uk/id/local-authority/24UE,CAPITAL PROGRAMME - HOUSING SERVICES,CP,RENOVATION OF L.A. DWELLINGS,CP10,CAPITAL - IMPROVEMENTS WORK/MODERNIS'N,PREMISES RELATED EXPENDITURE,2,Facilities & Management Services,19,GENERAL REPAIRS,2018,04/11/2016,570627,1682.50 ,Capital,S A C LTD,01566628
Fareham Borough Council,http://statistics.data.gov.uk/id/local-authority/24UE,HOUSING REVENUE ACCOUNT,BV06,RESPONSIVE & VOID MAINTENANCE,5901,DEPT STREETSCENE,PREMISES RELATED EXPENDITURE,2,Facilities & Management Services,19,GENERAL REPAIRS,2018,04/11/2016,570627,4569.21 ,Revenue,S A C LTD,01566628
Fareham Borough Council,http://statistics.data.gov.uk/id/local-authority/24UE,OTHER REVENUE ACCOUNTS,RV,NON WORK GROUP HOLDING ACCOUNT,RV18,DEPT of FINANCE and RESOURCES,PREMISES RELATED EXPENDITURE,2,Facilities & Management Services,19,GENERAL REPAIRS,2018,04/11/2016,570627,59.12 ,Revenue,S A C LTD,01566628
Fareham Borough Council,http://statistics.data.gov.uk/id/local-authority/24UE,CENTRAL SERVICES,BV07,CENTRAL SERVICES TO THE PUBLIC,BV07B,DEPT of COMMUNITY and STREETSCENE,SUPPLIES & SERVICES,4,Information Communication Technology,27,SOFTWARE LICENCES,4530,11/11/2016,570630,1250.00 ,Revenue,OCELLA,02837294
Fareham Borough Council,http://statistics.data.gov.uk/id/local-authority/24UE,BALANCE SHEET,BS,BAL. SHEET - D.S.O.,BS1,BAL. SHEET - D.S.O.,TOTAL ASSETS LESS LIABILITIES,BS100,Vehicle Management,38,MATERIALS SUSPENSE ACCOUNT (VE,A016,18/11/2016,570631,12398.10 ,Balance Sheet,WESSEX PETROLEUM LTD,01024472
Fareham Borough Council,http://statistics.data.gov.uk/id/local-authority/24UE,CENTRAL SERVICES,BV07,CENTRAL SERVICES TO THE PUBLIC,BV07B,DEPT of FINANCE and RESOURCES,SUPPLIES & SERVICES,4,Information Communication Technology,27,TRAINING FOR EMPLOYEES,4612,18/11/2016,570632,600.00 ,Revenue,XPRESS SOFTWARE SOLUTIONS LTD,04152280
Fareham Borough Council,http://statistics.data.gov.uk/id/local-authority/24UE,OTHER REVENUE ACCOUNTS,RV,NON WORK GROUP HOLDING ACCOUNT,RV18,DEPT of FINANCE and RESOURCES,EMPLOYEES RELATED EXPENDITURE,1,Financial Services,20,AGENCY WORKERS,1050,04/11/2016,570633,600.00 ,Revenue,COMPLETE CASH MANAGEMENT LIMITED,08067814
Fareham Borough Council,http://statistics.data.gov.uk/id/local-authority/24UE,OTHER REVENUE ACCOUNTS,RV,NON WORK GROUP HOLDING ACCOUNT,RV18,DEPT of FINANCE and RESOURCES,EMPLOYEES RELATED EXPENDITURE,1,Financial Services,20,AGENCY WORKERS,1050,04/11/2016,570633,980.50 ,Revenue,COMPLETE CASH MANAGEMENT LIMITED,08067814
Fareham Borough Council,http://statistics.data.gov.uk/id/local-authority/24UE,CULTURAL AND RELATED SERVICES,BV09,CULTURE AND HERITAGE,BV09A,DEPT of COMMUNITY and STREETSCENE,PREMISES RELATED EXPENDITURE,2,Utilities,37,SEWERAGE & ENV. CHARGES (SWS),2410,04/11/2016,570639,1733.10 ,Revenue,SOUTHERN WATER SERVICES PLC,02366670
Fareham Borough Council,http://statistics.data.gov.uk/id/local-authority/24UE,CULTURAL AND RELATED SERVICES,BV09,CULTURE AND HERITAGE,BV09A,DEPT of COMMUNITY and STREETSCENE,SUPPLIES & SERVICES,4,Unclassified,,PROMOTER,4916,04/11/2016,570653,600.00 ,Revenue,R MILLS,
Fareham Borough Council,http://statistics.data.gov.uk/id/local-authority/24UE,CAPITAL PROGRAMME - HOUSING SERVICES,CP,HOUSE RENOVATION GRANTS,CP11,CAPITAL - HOUSE RENOVATION GRANTS,SUPPLIES & SERVICES,4,Unclassified,,GRANTS AND SUBSCRIPTIONS,4700,04/11/2016,570656,770.89 ,Capital,WINDOW CONSULTANCY SOUTHERN LTD,
Fareham Borough Council,http://statistics.data.gov.uk/id/local-authority/24UE,CAPITAL PROGRAMME - HOUSING SERVICES,CP,RENOVATION OF L.A. DWELLINGS,CP10,CAPITAL - IMPROVEMENTS WORK/MODERNIS'N,PREMISES RELATED EXPENDITURE,2,Social Community Care Supplies & Services,32,R & M OF BUILDINGS,2000,04/11/2016,570669,2470.00 ,Capital,SCOOTER STORE LIMITED,3141502
Fareham Borough Council,http://statistics.data.gov.uk/id/local-authority/24UE,CAPITAL PROGRAMME - HOUSING SERVICES,CP,RENOVATION OF L.A. DWELLINGS,CP10,CAPITAL - IMPROVEMENTS WORK/MODERNIS'N,PREMISES RELATED EXPENDITURE,2,Social Community Care Supplies & Services,32,R & M OF BUILDINGS,2000,04/11/2016,570669,200.00 ,Capital,SCOOTER STORE LIMITED,3141502
Fareham Borough Council,http://statistics.data.gov.uk/id/local-authority/24UE,CAPITAL PROGRAMME - OTHER SERVICES,CP,APPROVED PROGRAMME,CP24,CAPITAL - APPROVED PROGRAMME,PREMISES RELATED EXPENDITURE,2,"Works - Construction, Repair & Maintenance",39,BUILDING CONSTRUCTION,2602,04/11/2016,570677,149333.30 ,Capital,BALFOUR BEATTY REGIONAL CONSTRUCTION LTD,01197246
Fareham Borough Council,http://statistics.data.gov.uk/id/local-authority/24UE,HIGHWAYS ROADS AND TRANSPORT,BV12,PUBLIC TRANSPORT,BV12E,DEPT STREETSCENE,PREMISES RELATED EXPENDITURE,2,Highway Equipment & Materials?,23,R & M OF BUILDINGS,2000,04/11/2016,570730,1119.00 ,Revenue,QUEENSBURY SHELTERS,3822195
Fareham Borough Council,http://statistics.data.gov.uk/id/local-authority/24UE,ENVIRONMENT AND REGULATORY SER,BV03,WASTE COLLECTION,BV03G,DEPT STREETSCENE,SUPPLIES & SERVICES,4,Environmental Services,18,FURNITURE & EQUIPT. PURCHASES,4000,04/11/2016,570731,2062.35 ,Revenue,ENVIRONMENTAL SOLUTIONS EUROPE (ESE),02327763
Fareham Borough Council,http://statistics.data.gov.uk/id/local-authority/24UE,ENVIRONMENT AND REGULATORY SER,BV03,WASTE COLLECTION,BV03G,DEPT STREETSCENE,SUPPLIES & SERVICES,4,Environmental Services,18,FURNITURE & EQUIPT. MAINT.,4030,04/11/2016,570731,700.00 ,Revenue,ENVIRONMENTAL SOLUTIONS EUROPE (ESE),02327763
Fareham Borough Council,http://statistics.data.gov.uk/id/local-authority/24UE,ENVIRONMENT AND REGULATORY SER,BV03,WASTE COLLECTION,BV03G,DEPT STREETSCENE,SUPPLIES & SERVICES,4,Environmental Services,18,FURNITURE & EQUIPT. MAINT.,4030,04/11/2016,570731,60.00 ,Revenue,ENVIRONMENTAL SOLUTIONS EUROPE (ESE),02327763
Fareham Borough Council,http://statistics.data.gov.uk/id/local-authority/24UE,ENVIRONMENT AND REGULATORY SER,BV03,WASTE COLLECTION,BV03G,DEPT STREETSCENE,SUPPLIES & SERVICES,4,Environmental Services,18,FURNITURE & EQUIPT. MAINT.,4030,04/11/2016,570731,78.00 ,Revenue,ENVIRONMENTAL SOLUTIONS EUROPE (ESE),02327763
Fareham Borough Council,http://statistics.data.gov.uk/id/local-authority/24UE,ENVIRONMENT AND REGULATORY SER,BV03,WASTE COLLECTION,BV03G,DEPT STREETSCENE,SUPPLIES & SERVICES,4,Environmental Services,18,FURNITURE & EQUIPT. MAINT.,4030,04/11/2016,570731,125.00 ,Revenue,ENVIRONMENTAL SOLUTIONS EUROPE (ESE),02327763
Fareham Borough Council,http://statistics.data.gov.uk/id/local-authority/24UE,ENVIRONMENT AND REGULATORY SER,BV03,WASTE COLLECTION,BV03G,DEPT STREETSCENE,SUPPLIES & SERVICES,4,Environmental Services,18,FURNITURE & EQUIPT. MAINT.,4030,04/11/2016,570731,48.00 ,Revenue,ENVIRONMENTAL SOLUTIONS EUROPE (ESE),02327763
Fareham Borough Council,http://statistics.data.gov.uk/id/local-authority/24UE,ENVIRONMENT AND REGULATORY SER,BV03,CEMETERIES CREM & MORTUARY,BV03A,DEPT STREETSCENE,SUPPLIES & SERVICES,4,Sports & Playground Equipment & Maintenance,33,MATERIALS (OPERATIONAL),4007,04/11/2016,570732,360.90 ,Revenue,KEYLINE BUILDERS MERCHANTS LTD,SC042425
Fareham Borough Council,http://statistics.data.gov.uk/id/local-authority/24UE,ENVIRONMENT AND REGULATORY SER,BV03,CEMETERIES CREM & MORTUARY,BV03A,DEPT STREETSCENE,SUPPLIES & SERVICES,4,Sports & Playground Equipment & Maintenance,33,MATERIALS (OPERATIONAL),4007,04/11/2016,570732,146.88 ,Revenue,KEYLINE BUILDERS MERCHANTS LTD,SC042425
Fareham Borough Council,http://statistics.data.gov.uk/id/local-authority/24UE,ENVIRONMENT AND REGULATORY SER,BV03,CEMETERIES CREM & MORTUARY,BV03A,DEPT STREETSCENE,SUPPLIES & SERVICES,4,Sports & Playground Equipment & Maintenance,33,MATERIALS (OPERATIONAL),4007,04/11/2016,570732,146.92 ,Revenue,KEYLINE BUILDERS MERCHANTS LTD,SC042425
Fareham Borough Council,http://statistics.data.gov.uk/id/local-authority/24UE,CAPITAL PROGRAMME - OTHER SERVICES,CP,SCHEMES FUNDED FROM BALANCES,CP20,CAPITAL - SCHEMES FUNDED FROM BALANCES,SUPPLIES & SERVICES,4,Consultancy,15,CONSULTANTS FEES,4401,04/11/2016,570734,1895.00 ,Capital,BAQUS GROUP PLC,6013357
Fareham Borough Council,http://statistics.data.gov.uk/id/local-authority/24UE,GENERAL FUND HOUSING,BV05,HOUSING ADVICE,BV05C,DEPT of COMMUNITY and STREETSCENE,EMPLOYEES RELATED EXPENDITURE,1,Human Resources,26,AGENCY WORKERS,1050,18/11/2016,570735,3462.51 ,Revenue,VENN GROUP LTD,04015584
Fareham Borough Council,http://statistics.data.gov.uk/id/local-authority/24UE,CAPITAL PROGRAMME - OTHER SERVICES,CP,SCHEMES FUNDED FROM BALANCES,CP20,CAPITAL - SCHEMES FUNDED FROM BALANCES,SUPPLIES & SERVICES,4,Consultancy,15,CONSULTANTS FEES,4401,04/11/2016,570737,1750.00 ,Capital,BOYLE+SUMMERS LTD,9126275
Fareham Borough Council,http://statistics.data.gov.uk/id/local-authority/24UE,CAPITAL PROGRAMME - OTHER SERVICES,CP,SCHEMES FUNDED FROM BALANCES,CP20,CAPITAL - SCHEMES FUNDED FROM BALANCES,SUPPLIES & SERVICES,4,Consultancy,15,CONSULTANTS FEES,4401,04/11/2016,570738,6725.00 ,Capital,BOYLE+SUMMERS LTD,9126275
Fareham Borough Council,http://statistics.data.gov.uk/id/local-authority/24UE,CAPITAL PROGRAMME - OTHER SERVICES,CP,SCHEMES FUNDED FROM BALANCES,CP20,CAPITAL - SCHEMES FUNDED FROM BALANCES,SUPPLIES & SERVICES,4,"Works - Construction, Repair & Maintenance",39,CONSULTANTS FEES,4401,04/11/2016,570740,500.00 ,Capital,JUBB CONSULTING ENGINEERS LTD,4080619
Fareham Borough Council,http://statistics.data.gov.uk/id/local-authority/24UE,CAPITAL PROGRAMME - OTHER SERVICES,CP,SCHEMES FUNDED FROM BALANCES,CP20,CAPITAL - SCHEMES FUNDED FROM BALANCES,SUPPLIES & SERVICES,4,"Works - Construction, Repair & Maintenance",39,CONSULTANTS FEES,4401,04/11/2016,570741,4000.00 ,Capital,JUBB CONSULTING ENGINEERS LTD,4080619
Fareham Borough Council,http://statistics.data.gov.uk/id/local-authority/24UE,CULTURAL AND RELATED SERVICES,BV09,RECREATION AND SPORT,BV09B,DEPT STREETSCENE,PREMISES RELATED EXPENDITURE,2,Horticultural,24,R&M OF TREE PRESERVATION,2063,11/11/2016,570742,41.50 ,Revenue,LOTUS LANDSCAPES LTD,4384134
Fareham Borough Council,http://statistics.data.gov.uk/id/local-authority/24UE,CULTURAL AND RELATED SERVICES,BV09,RECREATION AND SPORT,BV09B,DEPT STREETSCENE,PREMISES RELATED EXPENDITURE,2,Horticultural,24,R&M OF TREE PRESERVATION,2063,11/11/2016,570742,312.60 ,Revenue,LOTUS LANDSCAPES LTD,4384134
Fareham Borough Council,http://statistics.data.gov.uk/id/local-authority/24UE,CULTURAL AND RELATED SERVICES,BV09,RECREATION AND SPORT,BV09B,DEPT STREETSCENE,PREMISES RELATED EXPENDITURE,2,Horticultural,24,R&M OF TREE PRESERVATION,2063,11/11/2016,570742,97.86 ,Revenue,LOTUS LANDSCAPES LTD,4384134
Fareham Borough Council,http://statistics.data.gov.uk/id/local-authority/24UE,CULTURAL AND RELATED SERVICES,BV09,RECREATION AND SPORT,BV09B,DEPT STREETSCENE,PREMISES RELATED EXPENDITURE,2,Horticultural,24,R&M OF TREE PRESERVATION,2063,11/11/2016,570742,77.25 ,Revenue,LOTUS LANDSCAPES LTD,4384134
Fareham Borough Council,http://statistics.data.gov.uk/id/local-authority/24UE,CULTURAL AND RELATED SERVICES,BV09,RECREATION AND SPORT,BV09B,DEPT STREETSCENE,PREMISES RELATED EXPENDITURE,2,Horticultural,24,R&M OF TREE PRESERVATION,2063,11/11/2016,570742,235.98 ,Revenue,LOTUS LANDSCAPES LTD,4384134
Fareham Borough Council,http://statistics.data.gov.uk/id/local-authority/24UE,CULTURAL AND RELATED SERVICES,BV09,RECREATION AND SPORT,BV09B,DEPT STREETSCENE,PREMISES RELATED EXPENDITURE,2,Horticultural,24,R&M OF TREE PRESERVATION,2063,11/11/2016,570742,217.14 ,Revenue,LOTUS LANDSCAPES LTD,4384134
Fareham Borough Council,http://statistics.data.gov.uk/id/local-authority/24UE,CULTURAL AND RELATED SERVICES,BV09,RECREATION AND SPORT,BV09B,DEPT of COMMUNITY and STREETSCENE,PREMISES RELATED EXPENDITURE,2,Horticultural,24,R&M OF TREE PRESERVATION,2063,11/11/2016,570742,119.52 ,Revenue,LOTUS LANDSCAPES LTD,4384134
Fareham Borough Council,http://statistics.data.gov.uk/id/local-authority/24UE,CULTURAL AND RELATED SERVICES,BV09,RECREATION AND SPORT,BV09B,DEPT of COMMUNITY and STREETSCENE,PREMISES RELATED EXPENDITURE,2,Horticultural,24,R&M OF TREE PRESERVATION,2063,11/11/2016,570742,199.76 ,Revenue,LOTUS LANDSCAPES LTD,4384134
Fareham Borough Council,http://statistics.data.gov.uk/id/local-authority/24UE,CULTURAL AND RELATED SERVICES,BV09,RECREATION AND SPORT,BV09B,DEPT of COMMUNITY and STREETSCENE,PREMISES RELATED EXPENDITURE,2,Horticultural,24,R&M OF TREE PRESERVATION,2063,11/11/2016,570742,326.54 ,Revenue,LOTUS LANDSCAPES LTD,4384134
Fareham Borough Council,http://statistics.data.gov.uk/id/local-authority/24UE,CULTURAL AND RELATED SERVICES,BV09,RECREATION AND SPORT,BV09B,DEPT of COMMUNITY and STREETSCENE,PREMISES RELATED EXPENDITURE,2,Horticultural,24,R&M OF TREE PRESERVATION,2063,11/11/2016,570742,77.25 ,Revenue,LOTUS LANDSCAPES LTD,4384134
Fareham Borough Council,http://statistics.data.gov.uk/id/local-authority/24UE,CULTURAL AND RELATED SERVICES,BV09,RECREATION AND SPORT,BV09B,DEPT of COMMUNITY and STREETSCENE,PREMISES RELATED EXPENDITURE,2,Horticultural,24,R&M OF TREE PRESERVATION,2063,11/11/2016,570742,1378.90 ,Revenue,LOTUS LANDSCAPES LTD,4384134
Fareham Borough Council,http://statistics.data.gov.uk/id/local-authority/24UE,HIGHWAYS ROADS AND TRANSPORT,BV12,PARKING SERVICES,BV12D,DEPT STREETSCENE,PREMISES RELATED EXPENDITURE,2,Horticultural,24,R&M OF TREE PRESERVATION,2063,11/11/2016,570742,234.57 ,Revenue,LOTUS LANDSCAPES LTD,4384134
Fareham Borough Council,http://statistics.data.gov.uk/id/local-authority/24UE,HOUSING REVENUE ACCOUNT,BV06,MAINT OF LAWNS VERGES ETC,5030,DEPT of COMMUNITY and STREETSCENE,PREMISES RELATED EXPENDITURE,2,Horticultural,24,R&M OF TREE PRESERVATION,2063,11/11/2016,570742,41.50 ,Revenue,LOTUS LANDSCAPES LTD,4384134
Fareham Borough Council,http://statistics.data.gov.uk/id/local-authority/24UE,CAPITAL PROGRAMME - HOUSING SERVICES,CP,RENOVATION OF L.A. DWELLINGS,CP10,CAPITAL - IMPROVEMENTS WORK/MODERNIS'N,PREMISES RELATED EXPENDITURE,2,"Works - Construction, Repair & Maintenance",39,MODIFICATIONS,2023,04/11/2016,570747,26507.94 ,Capital,JPC PROPERTY SERVICES LTD,4704385
Fareham Borough Council,http://statistics.data.gov.uk/id/local-authority/24UE,CAPITAL PROGRAMME - HOUSING SERVICES,CP,RENOVATION OF L.A. DWELLINGS,CP10,CAPITAL - IMPROVEMENTS WORK/MODERNIS'N,PREMISES RELATED EXPENDITURE,2,"Works - Construction, Repair & Maintenance",39,MODIFICATIONS,2023,04/11/2016,570747,12419.90 ,Capital,JPC PROPERTY SERVICES LTD,4704385
Fareham Borough Council,http://statistics.data.gov.uk/id/local-authority/24UE,HOUSING REVENUE ACCOUNT,BV06,RESPONSIVE & VOID MAINTENANCE,5901,DEPT STREETSCENE,PREMISES RELATED EXPENDITURE,2,"Works - Construction, Repair & Maintenance",39,GENERAL REPAIRS,2018,04/11/2016,570747,6993.58 ,Revenue,JPC PROPERTY SERVICES LTD,4704385
Fareham Borough Council,http://statistics.data.gov.uk/id/local-authority/24UE,CAPITAL PROGRAMME - HOUSING SERVICES,CP,RENOVATION OF L.A. DWELLINGS,CP10,CAPITAL - IMPROVEMENTS WORK/MODERNIS'N,PREMISES RELATED EXPENDITURE,2,"Works - Construction, Repair & Maintenance",39,VOID COSTS - NOT RECHARGEABLE,2011,04/11/2016,570748,3900.00 ,Capital,JPC PROPERTY SERVICES LTD,4704385
Fareham Borough Council,http://statistics.data.gov.uk/id/local-authority/24UE,CAPITAL PROGRAMME - HOUSING SERVICES,CP,RENOVATION OF L.A. DWELLINGS,CP10,CAPITAL - IMPROVEMENTS WORK/MODERNIS'N,PREMISES RELATED EXPENDITURE,2,"Works - Construction, Repair & Maintenance",39,VOID COSTS - NOT RECHARGEABLE,2011,04/11/2016,570748,8509.20 ,Capital,JPC PROPERTY SERVICES LTD,4704385
Fareham Borough Council,http://statistics.data.gov.uk/id/local-authority/24UE,CAPITAL PROGRAMME - HOUSING SERVICES,CP,RENOVATION OF L.A. DWELLINGS,CP10,CAPITAL - IMPROVEMENTS WORK/MODERNIS'N,PREMISES RELATED EXPENDITURE,2,"Works - Construction, Repair & Maintenance",39,VOID COSTS - NOT RECHARGEABLE,2011,04/11/2016,570748,5208.00 ,Capital,JPC PROPERTY SERVICES LTD,4704385
Fareham Borough Council,http://statistics.data.gov.uk/id/local-authority/24UE,HOUSING REVENUE ACCOUNT,BV06,RESPONSIVE & VOID MAINTENANCE,5901,DEPT STREETSCENE,PREMISES RELATED EXPENDITURE,2,"Works - Construction, Repair & Maintenance",39,VOID COSTS - NOT RECHARGEABLE,2011,04/11/2016,570748,28050.48 ,Revenue,JPC PROPERTY SERVICES LTD,4704385
Fareham Borough Council,http://statistics.data.gov.uk/id/local-authority/24UE,HOUSING REVENUE ACCOUNT,BV06,RESPONSIVE & VOID MAINTENANCE,5901,DEPT STREETSCENE,PREMISES RELATED EXPENDITURE,2,"Works - Construction, Repair & Maintenance",39,VOID COSTS - NOT RECHARGEABLE,2011,04/11/2016,570748,424.70 ,Revenue,JPC PROPERTY SERVICES LTD,4704385
Fareham Borough Council,http://statistics.data.gov.uk/id/local-authority/24UE,CAPITAL PROGRAMME - OTHER SERVICES,CP,APPROVED PROGRAMME,CP24,CAPITAL - APPROVED PROGRAMME,SUPPLIES & SERVICES,4,Consultancy,15,CONSULTANTS FEES,4401,04/11/2016,570755,2500.00 ,Capital,BAQUS GROUP PLC,6013357
Fareham Borough Council,http://statistics.data.gov.uk/id/local-authority/24UE,HIGHWAYS ROADS AND TRANSPORT,BV12,PARKING SERVICES,BV12D,DEPT STREETSCENE,SUPPLIES & SERVICES,4,Street & Traffic Management,35,FURNITURE & EQUIPT. PURCHASES,4000,04/11/2016,570760,1496.25 ,Revenue,CALE UK,01863720
Fareham Borough Council,http://statistics.data.gov.uk/id/local-authority/24UE,PLANNING SERVICES,BV13,PLANNING POLICY,BV13C,DEPT of STRATEGIC PLANNING and ENVIRONMENT,EMPLOYEES RELATED EXPENDITURE,1,Human Resources,26,TRAINING COURSES EMPLOYEES,1909,04/11/2016,570762,169.15 ,Revenue,WATERFRONT CONFERENCE COMPANY LTD,2483896
Fareham Borough Council,http://statistics.data.gov.uk/id/local-authority/24UE,PLANNING SERVICES,BV13,PLANNING POLICY,BV13C,DEPT of STRATEGIC PLANNING and ENVIRONMENT,EMPLOYEES RELATED EXPENDITURE,1,Human Resources,26,TRAINING COURSES EMPLOYEES,1909,04/11/2016,570762,169.15 ,Revenue,WATERFRONT CONFERENCE COMPANY LTD,2483896
Fareham Borough Council,http://statistics.data.gov.uk/id/local-authority/24UE,PLANNING SERVICES,BV13,PLANNING POLICY,BV13C,DEPT of STRATEGIC PLANNING and ENVIRONMENT,EMPLOYEES RELATED EXPENDITURE,1,Human Resources,26,TRAINING COURSES EMPLOYEES,1909,04/11/2016,570762,169.15 ,Revenue,WATERFRONT CONFERENCE COMPANY LTD,2483896
Fareham Borough Council,http://statistics.data.gov.uk/id/local-authority/24UE,PLANNING SERVICES,BV13,DEVELOPMENT CONTROL,BV13B,DEPT of STRATEGIC PLANNING and ENVIRONMENT,SUPPLIES & SERVICES,4,Consultancy,15,CONSULTANTS FEES,4401,04/11/2016,570763,1052.00 ,Revenue,redacted personal data,
Fareham Borough Council,http://statistics.data.gov.uk/id/local-authority/24UE,OTHER REVENUE ACCOUNTS,RV,NON WORK GROUP HOLDING ACCOUNT,RV18,DEPT of FINANCE and RESOURCES,EMPLOYEES RELATED EXPENDITURE,1,Healthcare,31,MEDICAL EXPENSES,1907,04/11/2016,570764,684.80 ,Revenue,OCCUPATIONAL HEALTH 1ST,7836183
Fareham Borough Council,http://statistics.data.gov.uk/id/local-authority/24UE,HIGHWAYS ROADS AND TRANSPORT,BV12,PARKING SERVICES,BV12D,DEPT STREETSCENE,SUPPLIES & SERVICES,4,Street & Traffic Management,35,TICKET MACHINE - MAINTENANCE,4037,25/11/2016,570766,45.00 ,Revenue,BEMROSEBOOTH,03978232
Fareham Borough Council,http://statistics.data.gov.uk/id/local-authority/24UE,HIGHWAYS ROADS AND TRANSPORT,BV12,PARKING SERVICES,BV12D,DEPT STREETSCENE,SUPPLIES & SERVICES,4,Street & Traffic Management,35,TICKET MACHINE - MAINTENANCE,4037,25/11/2016,570766,704.00 ,Revenue,BEMROSEBOOTH,03978232
Fareham Borough Council,http://statistics.data.gov.uk/id/local-authority/24UE,OTHER REVENUE ACCOUNTS,RV,NON WORK GROUP HOLDING ACCOUNT,RV18,DEPT STREETSCENE,SUPPLIES & SERVICES,4,Horticultural,24,MATERIALS (OPERATIONAL),4007,04/11/2016,570771,702.48 ,Revenue,HYPHOSE LTD,1472439
Fareham Borough Council,http://statistics.data.gov.uk/id/local-authority/24UE,OTHER REVENUE ACCOUNTS,RV,CONTRACT SERVICES D.S.O.,RV14,DEPT STREETSCENE,SUPPLIES & SERVICES,4,Horticultural,24,TOOLS & EQUIPMENT,4002,11/11/2016,570773,669.59 ,Revenue,RIGBY TAYLOR LTD,00157345
Fareham Borough Council,http://statistics.data.gov.uk/id/local-authority/24UE,OTHER REVENUE ACCOUNTS,RV,CONTRACT SERVICES D.S.O.,RV14,DEPT STREETSCENE,SUPPLIES & SERVICES,4,Horticultural,24,MATERIALS (OPERATIONAL),4007,11/11/2016,570773,138.60 ,Revenue,RIGBY TAYLOR LTD,00157345
Fareham Borough Council,http://statistics.data.gov.uk/id/local-authority/24UE,OTHER REVENUE ACCOUNTS,RV,CONTRACT SERVICES D.S.O.,RV14,DEPT STREETSCENE,SUPPLIES & SERVICES,4,Horticultural,24,MATERIALS (OPERATIONAL),4007,11/11/2016,570773,26.40 ,Revenue,RIGBY TAYLOR LTD,00157345
Fareham Borough Council,http://statistics.data.gov.uk/id/local-authority/24UE,CORPORATE & DEMOCRATIC CORE,BV07A,DEMOCRATIC REP.& MANAGEMENT,BV07AA,DEPT of FINANCE and RESOURCES,TRANSPORT RELATED EXPENDITURE,3,Vehicle Management,38,ROUTINE REPAIRS VEHICLES/PLANT,3010,18/11/2016,570776,190.40 ,Revenue,CAMBRIDGE GARAGE (PORTSMOUTH) LTD,00783376
Fareham Borough Council,http://statistics.data.gov.uk/id/local-authority/24UE,CORPORATE & DEMOCRATIC CORE,BV07A,DEMOCRATIC REP.& MANAGEMENT,BV07AA,DEPT of FINANCE and RESOURCES,TRANSPORT RELATED EXPENDITURE,3,Vehicle Management,38,ROUTINE REPAIRS VEHICLES/PLANT,3010,18/11/2016,570776,32.18 ,Revenue,CAMBRIDGE GARAGE (PORTSMOUTH) LTD,00783376
Fareham Borough Council,http://statistics.data.gov.uk/id/local-authority/24UE,CORPORATE & DEMOCRATIC CORE,BV07A,DEMOCRATIC REP.& MANAGEMENT,BV07AA,DEPT of FINANCE and RESOURCES,TRANSPORT RELATED EXPENDITURE,3,Vehicle Management,38,ROUTINE REPAIRS VEHICLES/PLANT,3010,18/11/2016,570776,45.60 ,Revenue,CAMBRIDGE GARAGE (PORTSMOUTH) LTD,00783376
Fareham Borough Council,http://statistics.data.gov.uk/id/local-authority/24UE,CORPORATE & DEMOCRATIC CORE,BV07A,DEMOCRATIC REP.& MANAGEMENT,BV07AA,DEPT of FINANCE and RESOURCES,TRANSPORT RELATED EXPENDITURE,3,Vehicle Management,38,ROUTINE REPAIRS VEHICLES/PLANT,3010,18/11/2016,570776,58.00 ,Revenue,CAMBRIDGE GARAGE (PORTSMOUTH) LTD,00783376
Fareham Borough Council,http://statistics.data.gov.uk/id/local-authority/24UE,CORPORATE & DEMOCRATIC CORE,BV07A,DEMOCRATIC REP.& MANAGEMENT,BV07AA,DEPT of FINANCE and RESOURCES,TRANSPORT RELATED EXPENDITURE,3,Vehicle Management,38,ROUTINE REPAIRS VEHICLES/PLANT,3010,18/11/2016,570776,4.80 ,Revenue,CAMBRIDGE GARAGE (PORTSMOUTH) LTD,00783376
Fareham Borough Council,http://statistics.data.gov.uk/id/local-authority/24UE,CORPORATE & DEMOCRATIC CORE,BV07A,DEMOCRATIC REP.& MANAGEMENT,BV07AA,DEPT of FINANCE and RESOURCES,TRANSPORT RELATED EXPENDITURE,3,Vehicle Management,38,ROUTINE REPAIRS VEHICLES/PLANT,3010,18/11/2016,570776,1.60 ,Revenue,CAMBRIDGE GARAGE (PORTSMOUTH) LTD,00783376
Fareham Borough Council,http://statistics.data.gov.uk/id/local-authority/24UE,CORPORATE & DEMOCRATIC CORE,BV07A,DEMOCRATIC REP.& MANAGEMENT,BV07AA,DEPT of FINANCE and RESOURCES,TRANSPORT RELATED EXPENDITURE,3,Vehicle Management,38,ROUTINE REPAIRS VEHICLES/PLANT,3010,18/11/2016,570776,11.40 ,Revenue,CAMBRIDGE GARAGE (PORTSMOUTH) LTD,00783376
Fareham Borough Council,http://statistics.data.gov.uk/id/local-authority/24UE,CORPORATE & DEMOCRATIC CORE,BV07A,DEMOCRATIC REP.& MANAGEMENT,BV07AA,DEPT of FINANCE and RESOURCES,TRANSPORT RELATED EXPENDITURE,3,Vehicle Management,38,ROUTINE REPAIRS VEHICLES/PLANT,3010,18/11/2016,570776,33.20 ,Revenue,CAMBRIDGE GARAGE (PORTSMOUTH) LTD,00783376
Fareham Borough Council,http://statistics.data.gov.uk/id/local-authority/24UE,CORPORATE & DEMOCRATIC CORE,BV07A,DEMOCRATIC REP.& MANAGEMENT,BV07AA,DEPT of FINANCE and RESOURCES,TRANSPORT RELATED EXPENDITURE,3,Vehicle Management,38,ROUTINE REPAIRS VEHICLES/PLANT,3010,18/11/2016,570776,33.80 ,Revenue,CAMBRIDGE GARAGE (PORTSMOUTH) LTD,00783376
Fareham Borough Council,http://statistics.data.gov.uk/id/local-authority/24UE,CORPORATE & DEMOCRATIC CORE,BV07A,DEMOCRATIC REP.& MANAGEMENT,BV07AA,DEPT of FINANCE and RESOURCES,TRANSPORT RELATED EXPENDITURE,3,Vehicle Management,38,ROUTINE REPAIRS VEHICLES/PLANT,3010,18/11/2016,570776,2.70 ,Revenue,CAMBRIDGE GARAGE (PORTSMOUTH) LTD,00783376
Fareham Borough Council,http://statistics.data.gov.uk/id/local-authority/24UE,CORPORATE & DEMOCRATIC CORE,BV07A,DEMOCRATIC REP.& MANAGEMENT,BV07AA,DEPT of FINANCE and RESOURCES,TRANSPORT RELATED EXPENDITURE,3,Vehicle Management,38,MOT,3028,18/11/2016,570776,54.85 ,Revenue,CAMBRIDGE GARAGE (PORTSMOUTH) LTD,00783376
Fareham Borough Council,http://statistics.data.gov.uk/id/local-authority/24UE,CORPORATE & DEMOCRATIC CORE,BV07A,DEMOCRATIC REP.& MANAGEMENT,BV07AA,DEPT of FINANCE and RESOURCES,TRANSPORT RELATED EXPENDITURE,3,Vehicle Management,38,ROUTINE REPAIRS VEHICLES/PLANT,3010,18/11/2016,570776,50.00 ,Revenue,CAMBRIDGE GARAGE (PORTSMOUTH) LTD,00783376
Fareham Borough Council,http://statistics.data.gov.uk/id/local-authority/24UE,CORPORATE & DEMOCRATIC CORE,BV07A,DEMOCRATIC REP.& MANAGEMENT,BV07AA,DEPT of FINANCE and RESOURCES,TRANSPORT RELATED EXPENDITURE,3,Vehicle Management,38,ROUTINE REPAIRS VEHICLES/PLANT,3010,18/11/2016,570776,50.00 ,Revenue,CAMBRIDGE GARAGE (PORTSMOUTH) LTD,00783376
Fareham Borough Council,http://statistics.data.gov.uk/id/local-authority/24UE,CORPORATE & DEMOCRATIC CORE,BV07A,DEMOCRATIC REP.& MANAGEMENT,BV07AA,DEPT of FINANCE and RESOURCES,TRANSPORT RELATED EXPENDITURE,3,Vehicle Management,38,ROUTINE REPAIRS VEHICLES/PLANT,3010,18/11/2016,570776,26.60 ,Revenue,CAMBRIDGE GARAGE (PORTSMOUTH) LTD,00783376
Fareham Borough Council,http://statistics.data.gov.uk/id/local-authority/24UE,CAPITAL PROGRAMME - OTHER SERVICES,CP,NEW SCHEMES,CP23,CAPITAL - NEW SCHEMES,SUPPLIES & SERVICES,4,Furniture,21,FURNITURE & EQUIPT. PURCHASES,4000,04/11/2016,570789,3838.38 ,Capital,PORTSDOWN OFFICE LIMITED,01779525
Fareham Borough Council,http://statistics.data.gov.uk/id/local-authority/24UE,CULTURAL AND RELATED SERVICES,BV09,RECREATION AND SPORT,BV09B,DEPT STREETSCENE,PREMISES RELATED EXPENDITURE,2,Horticultural,24,R&M OF GROUNDS,2060,18/11/2016,570790,60.00 ,Revenue,DOWNS VIEW NURSERIES LTD,04783609
Fareham Borough Council,http://statistics.data.gov.uk/id/local-authority/24UE,CULTURAL AND RELATED SERVICES,BV09,RECREATION AND SPORT,BV09B,DEPT STREETSCENE,PREMISES RELATED EXPENDITURE,2,Horticultural,24,R&M OF GROUNDS,2060,18/11/2016,570790,6534.97 ,Revenue,DOWNS VIEW NURSERIES LTD,04783609
Fareham Borough Council,http://statistics.data.gov.uk/id/local-authority/24UE,CULTURAL AND RELATED SERVICES,BV09,RECREATION AND SPORT,BV09B,DEPT STREETSCENE,PREMISES RELATED EXPENDITURE,2,Horticultural,24,R&M OF GROUNDS,2060,18/11/2016,570790,520.00 ,Revenue,DOWNS VIEW NURSERIES LTD,04783609
Fareham Borough Council,http://statistics.data.gov.uk/id/local-authority/24UE,ENVIRONMENT AND REGULATORY SER,BV03,STREET CLEANSING,BV03F,DEPT STREETSCENE,TRANSPORT RELATED EXPENDITURE,3,Vehicle Management,38,SERVICING,3027,25/11/2016,570792,561.75 ,Revenue,TENNANT UK CLEANING SOLUTIONS LTD,SC042491
Fareham Borough Council,http://statistics.data.gov.uk/id/local-authority/24UE,ENVIRONMENT AND REGULATORY SER,BV03,STREET CLEANSING,BV03F,DEPT STREETSCENE,TRANSPORT RELATED EXPENDITURE,3,Vehicle Management,38,SERVICING,3027,25/11/2016,570793,561.75 ,Revenue,TENNANT UK CLEANING SOLUTIONS LTD,SC042491
Fareham Borough Council,http://statistics.data.gov.uk/id/local-authority/24UE,CAPITAL PROGRAMME - OTHER SERVICES,CP,SCHEMES FUNDED FROM BALANCES,CP20,CAPITAL - SCHEMES FUNDED FROM BALANCES,PREMISES RELATED EXPENDITURE,2,"Works - Construction, Repair & Maintenance",39,R&M OF GROUNDS,2060,04/11/2016,570794,3481.48 ,Capital,PT CONTRACTORS LTD,01785514
Fareham Borough Council,http://statistics.data.gov.uk/id/local-authority/24UE,CULTURAL AND RELATED SERVICES,BV09,RECREATION AND SPORT,BV09B,DEPT STREETSCENE,PREMISES RELATED EXPENDITURE,2,Horticultural,24,R&M OF TREE PRESERVATION,2063,04/11/2016,570795,133.76 ,Revenue,CEDAR TREE SURGEONS,
Fareham Borough Council,http://statistics.data.gov.uk/id/local-authority/24UE,CULTURAL AND RELATED SERVICES,BV09,RECREATION AND SPORT,BV09B,DEPT STREETSCENE,PREMISES RELATED EXPENDITURE,2,Horticultural,24,R&M OF TREE PRESERVATION,2063,04/11/2016,570795,364.05 ,Revenue,CEDAR TREE SURGEONS,
Fareham Borough Council,http://statistics.data.gov.uk/id/local-authority/24UE,CULTURAL AND RELATED SERVICES,BV09,RECREATION AND SPORT,BV09B,DEPT STREETSCENE,PREMISES RELATED EXPENDITURE,2,Horticultural,24,R&M OF TREE PRESERVATION,2063,04/11/2016,570795,110.00 ,Revenue,CEDAR TREE SURGEONS,
Fareham Borough Council,http://statistics.data.gov.uk/id/local-authority/24UE,CULTURAL AND RELATED SERVICES,BV09,RECREATION AND SPORT,BV09B,DEPT STREETSCENE,PREMISES RELATED EXPENDITURE,2,Horticultural,24,R&M OF TREE PRESERVATION,2063,04/11/2016,570795,413.73 ,Revenue,CEDAR TREE SURGEONS,
Fareham Borough Council,http://statistics.data.gov.uk/id/local-authority/24UE,CULTURAL AND RELATED SERVICES,BV09,RECREATION AND SPORT,BV09B,DEPT STREETSCENE,PREMISES RELATED EXPENDITURE,2,Horticultural,24,R&M OF TREE PRESERVATION,2063,04/11/2016,570795,136.66 ,Revenue,CEDAR TREE SURGEONS,
Fareham Borough Council,http://statistics.data.gov.uk/id/local-authority/24UE,HOUSING REVENUE ACCOUNT,BV06,MAINT OF LAWNS VERGES ETC,5030,DEPT of COMMUNITY and STREETSCENE,PREMISES RELATED EXPENDITURE,2,Horticultural,24,R&M OF TREE PRESERVATION,2063,04/11/2016,570795,297.50 ,Revenue,CEDAR TREE SURGEONS,
Fareham Borough Council,http://statistics.data.gov.uk/id/local-authority/24UE,HOUSING REVENUE ACCOUNT,BV06,MAINT OF LAWNS VERGES ETC,5030,DEPT of COMMUNITY and STREETSCENE,PREMISES RELATED EXPENDITURE,2,Horticultural,24,R&M OF TREE PRESERVATION,2063,04/11/2016,570795,101.65 ,Revenue,CEDAR TREE SURGEONS,
Fareham Borough Council,http://statistics.data.gov.uk/id/local-authority/24UE,HIGHWAYS ROADS AND TRANSPORT,BV12,TRAFFIC MANAGEMENT & RD SAFETY,BV12C,DEPT STREETSCENE,SUPPLIES & SERVICES,4,Facilities & Management Services,19,ADVERTISING,4910,11/11/2016,570796,406.15 ,Revenue,HAMPSHIRE MEDIA LTD,4139403
Fareham Borough Council,http://statistics.data.gov.uk/id/local-authority/24UE,OTHER REVENUE ACCOUNTS,RV,HCC TRANSPORTATION (REVENUE),RV11,DEPT STREETSCENE,THIRD PARTY PAYMENTS,5,Facilities & Management Services,19,PRIVATE CONTRACTORS,5610,11/11/2016,570796,149.00 ,Revenue,HAMPSHIRE MEDIA LTD,4139403
Fareham Borough Council,http://statistics.data.gov.uk/id/local-authority/24UE,ENVIRONMENT AND REGULATORY SER,BV03,CEMETERIES CREM & MORTUARY,BV03A,DEPT STREETSCENE,PREMISES RELATED EXPENDITURE,2,"Works - Construction, Repair & Maintenance",39,R&M OF FOOTPATHSROADS & SEATG,2070,04/11/2016,570797,47336.14 ,Revenue,REDS BUILDERS LIMITED,4387646
Fareham Borough Council,http://statistics.data.gov.uk/id/local-authority/24UE,CULTURAL AND RELATED SERVICES,BV09,RECREATION AND SPORT,BV09B,DEPT of COMMUNITY and STREETSCENE,PREMISES RELATED EXPENDITURE,2,"Works - Construction, Repair & Maintenance",39,R&M OF FOOTPATHSROADS & SEATG,2070,04/11/2016,570797,588.49 ,Revenue,REDS BUILDERS LIMITED,4387646
Fareham Borough Council,http://statistics.data.gov.uk/id/local-authority/24UE,HOUSING REVENUE ACCOUNT,BV06,RESPONSIVE & VOID MAINTENANCE,5901,DEPT STREETSCENE,PREMISES RELATED EXPENDITURE,2,"Works - Construction, Repair & Maintenance",39,GENERAL REPAIRS,2018,04/11/2016,570797,357.50 ,Revenue,REDS BUILDERS LIMITED,4387646
Fareham Borough Council,http://statistics.data.gov.uk/id/local-authority/24UE,CULTURAL AND RELATED SERVICES,BV09,RECREATION AND SPORT,BV09B,DEPT STREETSCENE,PREMISES RELATED EXPENDITURE,2,Horticultural,24,R&M OF TREE PRESERVATION,2063,04/11/2016,570799,1800.00 ,Revenue,SCANDOR LANDSCAPE CONTRACTORS LTD,02111393
Fareham Borough Council,http://statistics.data.gov.uk/id/local-authority/24UE,HOUSING REVENUE ACCOUNT,BV06,OTHER COMMUNAL SERVICES,5034,DEPT of COMMUNITY and STREETSCENE,PREMISES RELATED EXPENDITURE,2,Utilities,37,SEWERAGE & ENV. CHARGES (SWS),2410,04/11/2016,570802,1797.39 ,Revenue,SOUTHERN WATER SERVICES PLC,02366670
Fareham Borough Council,http://statistics.data.gov.uk/id/local-authority/24UE,HIGHWAYS ROADS AND TRANSPORT,BV12,PUBLIC TRANSPORT,BV12E,DEPT of COMMUNITY and STREETSCENE,SUPPLIES & SERVICES,4,Social Community Care Supplies & Services,32,GRANTS AND SUBSCRIPTIONS,4700,04/11/2016,570817,14700.00 ,Revenue,COMMUNITY ACTION FAREHAM,03181037
Fareham Borough Council,http://statistics.data.gov.uk/id/local-authority/24UE,GENERAL FUND HOUSING,BV05,HOMELESSNESS,BV05F,DEPT of COMMUNITY and STREETSCENE,SUPPLIES & SERVICES,4,Unclassified,,LOCAL ASSISTANCE PAYMENT,4727,04/11/2016,570818,1570.00 ,Revenue,redacted personal data,
Fareham Borough Council,http://statistics.data.gov.uk/id/local-authority/24UE,BALANCE SHEET,BS,FMS BAL.SHEET & CONTROL ACCT.,BS1,BAL. SHEET - SUSPENSE ACCOUNT,FMS REJECTION SUSPENSE,BS242,Consultancy,15,FMS CODING SUSPENSE ACCOUNT,S990,11/11/2016,571041,1625.00 ,Balance Sheet,BOYLE+SUMMERS LTD,9126275
Fareham Borough Council,http://statistics.data.gov.uk/id/local-authority/24UE,CORPORATE & DEMOCRATIC CORE,BV07A,CORPORATE MANAGEMENT,BV07AB,DEPT of FINANCE and RESOURCES,SUPPLIES & SERVICES,4,Financial Services,20,BANK CHARGES,4954,11/11/2016,571048,2530.13 ,Revenue,CAPITA BUSINESS SERVICES LTD,02299747
Fareham Borough Council,http://statistics.data.gov.uk/id/local-authority/24UE,CORPORATE & DEMOCRATIC CORE,BV07A,DEMOCRATIC REP.& MANAGEMENT,BV07AA,DEPT of FINANCE and RESOURCES,SUPPLIES & SERVICES,4,Information Communication Technology,27,INTERNET RENTAL ALLOWANCE,4627,11/11/2016,571051,156.21 ,Revenue,BT PLC,1800000
Fareham Borough Council,http://statistics.data.gov.uk/id/local-authority/24UE,ENVIRONMENT AND REGULATORY SER,BV03,ENVIRONMENTAL HEALTH,BV03C,DEPT STREETSCENE,SUPPLIES & SERVICES,4,Information Communication Technology,27,FURNITURE & EQUIPT. MAINT.,4030,11/11/2016,571051,22.75 ,Revenue,BT PLC,1800000
Fareham Borough Council,http://statistics.data.gov.uk/id/local-authority/24UE,CENTRAL SERVICES,BV07,CENTRAL SERVICES TO THE PUBLIC,BV07B,DEPT STREETSCENE,SUPPLIES & SERVICES,4,Information Communication Technology,27,TELEPHONES,4510,11/11/2016,571051,85.24 ,Revenue,BT PLC,1800000
Fareham Borough Council,http://statistics.data.gov.uk/id/local-authority/24UE,PLANNING SERVICES,BV13,ECONOMIC DEVELOPMENT,BV13E,DEPT of COMMUNITY and STREETSCENE,SUPPLIES & SERVICES,4,Information Communication Technology,27,TELEPHONES,4510,11/11/2016,571051,22.30 ,Revenue,BT PLC,1800000
Fareham Borough Council,http://statistics.data.gov.uk/id/local-authority/24UE,CULTURAL AND RELATED SERVICES,BV09,CULTURE AND HERITAGE,BV09A,DEPT of COMMUNITY and STREETSCENE,SUPPLIES & SERVICES,4,Information Communication Technology,27,TELEPHONES,4510,11/11/2016,571051,63.15 ,Revenue,BT PLC,1800000
Fareham Borough Council,http://statistics.data.gov.uk/id/local-authority/24UE,CULTURAL AND RELATED SERVICES,BV09,RECREATION AND SPORT,BV09B,DEPT STREETSCENE,SUPPLIES & SERVICES,4,Information Communication Technology,27,TELEPHONES,4510,11/11/2016,571051,34.28 ,Revenue,BT PLC,1800000
Fareham Borough Council,http://statistics.data.gov.uk/id/local-authority/24UE,HIGHWAYS ROADS AND TRANSPORT,BV12,PARKING SERVICES,BV12D,DEPT STREETSCENE,SUPPLIES & SERVICES,4,Information Communication Technology,27,TELEPHONES,4510,11/11/2016,571051,234.37 ,Revenue,BT PLC,1800000
Fareham Borough Council,http://statistics.data.gov.uk/id/local-authority/24UE,HOUSING REVENUE ACCOUNT,BV06,SHELTERED HOUSING SERVICE,5031,DEPT of COMMUNITY and STREETSCENE,PREMISES RELATED EXPENDITURE,2,Information Communication Technology,27,R & M ALARM SPEECH SYSTEMS,2027,11/11/2016,571051,489.05 ,Revenue,BT PLC,1800000
Fareham Borough Council,http://statistics.data.gov.uk/id/local-authority/24UE,HOUSING REVENUE ACCOUNT,BV06,SHELTERED HOUSING SERVICE,5031,DEPT of COMMUNITY and STREETSCENE,SUPPLIES & SERVICES,4,Information Communication Technology,27,TELEPHONES (WARDENS & COMM'L),4511,11/11/2016,571051,602.76 ,Revenue,BT PLC,1800000
Fareham Borough Council,http://statistics.data.gov.uk/id/local-authority/24UE,OTHER REVENUE ACCOUNTS,RV,NON WORK GROUP HOLDING ACCOUNT,RV18,DEPT of FINANCE and RESOURCES,SUPPLIES & SERVICES,4,Information Communication Technology,27,TELEPHONES,4510,11/11/2016,571051,22.30 ,Revenue,BT PLC,1800000
Fareham Borough Council,http://statistics.data.gov.uk/id/local-authority/24UE,OTHER REVENUE ACCOUNTS,RV,NON WORK GROUP HOLDING ACCOUNT,RV18,DEPT of FINANCE and RESOURCES,SUPPLIES & SERVICES,4,Information Communication Technology,27,TELEPHONES,4510,11/11/2016,571051,3074.55 ,Revenue,BT PLC,1800000
Fareham Borough Council,http://statistics.data.gov.uk/id/local-authority/24UE,CAPITAL PROGRAMME - HOUSING SERVICES,CP,RENOVATION OF L.A. DWELLINGS,CP10,CAPITAL - IMPROVEMENTS WORK/MODERNIS'N,PREMISES RELATED EXPENDITURE,2,"Works - Construction, Repair & Maintenance",39,R & M OF BUILDINGS,2000,11/11/2016,571054,8787.75 ,Capital,JPC PROPERTY SERVICES LTD,4704385
Fareham Borough Council,http://statistics.data.gov.uk/id/local-authority/24UE,OTHER REVENUE ACCOUNTS,RV,CONTRACT SERVICES D.S.O.,RV14,DEPT of STRATEGIC PLANNING and ENVIRONMENT,EMPLOYEES RELATED EXPENDITURE,1,Local/Central Government,98,GBC - EMPLOYEE COSTS,1048,11/11/2016,571060,24821.84 ,Revenue,GOSPORT BOROUGH COUNCIL,
Fareham Borough Council,http://statistics.data.gov.uk/id/local-authority/24UE,OTHER REVENUE ACCOUNTS,RV,CONTRACT SERVICES D.S.O.,RV14,DEPT of STRATEGIC PLANNING and ENVIRONMENT,TRANSPORT RELATED EXPENDITURE,3,Local/Central Government,98,GBC - CAR ALLOWANCES,3432,11/11/2016,571060,1115.33 ,Revenue,GOSPORT BOROUGH COUNCIL,
Fareham Borough Council,http://statistics.data.gov.uk/id/local-authority/24UE,OTHER REVENUE ACCOUNTS,RV,CONTRACT SERVICES D.S.O.,RV14,DEPT of STRATEGIC PLANNING and ENVIRONMENT,SUPPLIES & SERVICES,4,Local/Central Government,98,MOBILE TELEPHONES,4514,11/11/2016,571060,2.50 ,Revenue,GOSPORT BOROUGH COUNCIL,
Fareham Borough Council,http://statistics.data.gov.uk/id/local-authority/24UE,OTHER REVENUE ACCOUNTS,RV,CONTRACT SERVICES D.S.O.,RV14,DEPT of STRATEGIC PLANNING and ENVIRONMENT,THIRD PARTY PAYMENTS,5,Local/Central Government,98,GBC - B C PARTNERSHIP,5150,11/11/2016,571060,3760.00 ,Revenue,GOSPORT BOROUGH COUNCIL,
Fareham Borough Council,http://statistics.data.gov.uk/id/local-authority/24UE,OTHER REVENUE ACCOUNTS,RV,CONTRACT SERVICES D.S.O.,RV14,DEPT of STRATEGIC PLANNING and ENVIRONMENT,EMPLOYEES RELATED EXPENDITURE,1,Local/Central Government,98,PCC - EMPLOYEE COSTS,1044,11/11/2016,571063,8856.00 ,Revenue,PORTSMOUTH CITY COUNCIL,
Fareham Borough Council,http://statistics.data.gov.uk/id/local-authority/24UE,OTHER REVENUE ACCOUNTS,RV,CONTRACT SERVICES D.S.O.,RV14,DEPT of STRATEGIC PLANNING and ENVIRONMENT,TRANSPORT RELATED EXPENDITURE,3,Local/Central Government,98,PCC - CAR ALLOWANCES,3433,11/11/2016,571063,57.60 ,Revenue,PORTSMOUTH CITY COUNCIL,
Fareham Borough Council,http://statistics.data.gov.uk/id/local-authority/24UE,OTHER REVENUE ACCOUNTS,RV,CONTRACT SERVICES D.S.O.,RV14,DEPT of STRATEGIC PLANNING and ENVIRONMENT,SUPPLIES & SERVICES,4,Local/Central Government,98,POSTAGES,4500,11/11/2016,571063,4.40 ,Revenue,PORTSMOUTH CITY COUNCIL,
Fareham Borough Council,http://statistics.data.gov.uk/id/local-authority/24UE,OTHER REVENUE ACCOUNTS,RV,CONTRACT SERVICES D.S.O.,RV14,DEPT of STRATEGIC PLANNING and ENVIRONMENT,SUPPLIES & SERVICES,4,Local/Central Government,98,FURNITURE & EQUIPT. PURCHASES,4000,11/11/2016,571063,140.00 ,Revenue,PORTSMOUTH CITY COUNCIL,
Fareham Borough Council,http://statistics.data.gov.uk/id/local-authority/24UE,OTHER REVENUE ACCOUNTS,RV,CONTRACT SERVICES D.S.O.,RV14,DEPT of STRATEGIC PLANNING and ENVIRONMENT,THIRD PARTY PAYMENTS,5,Local/Central Government,98,PCC - B C PARTNERSHIP,5170,11/11/2016,571063,3200.00 ,Revenue,PORTSMOUTH CITY COUNCIL,
Fareham Borough Council,http://statistics.data.gov.uk/id/local-authority/24UE,PLANNING SERVICES,BV13,DEVELOPMENT CONTROL,BV13B,DEPT of STRATEGIC PLANNING and ENVIRONMENT,SUPPLIES & SERVICES,4,Consultancy,15,CONSULTANTS FEES,4401,11/11/2016,571085,4500.00 ,Revenue,VALERIE CONWAY CONSULTING,
Fareham Borough Council,http://statistics.data.gov.uk/id/local-authority/24UE,ENVIRONMENT AND REGULATORY SER,BV03,STREET CLEANSING,BV03F,DEPT STREETSCENE,TRANSPORT RELATED EXPENDITURE,3,Vehicle Management,38,VEHICLE CLEANING,3030,11/11/2016,571086,60.00 ,Revenue,MOBILE STEAM CLEANING SERVICES,04434339
Fareham Borough Council,http://statistics.data.gov.uk/id/local-authority/24UE,ENVIRONMENT AND REGULATORY SER,BV03,STREET CLEANSING,BV03F,DEPT STREETSCENE,TRANSPORT RELATED EXPENDITURE,3,Vehicle Management,38,VEHICLE CLEANING,3030,11/11/2016,571086,15.00 ,Revenue,MOBILE STEAM CLEANING SERVICES,04434339
Fareham Borough Council,http://statistics.data.gov.uk/id/local-authority/24UE,ENVIRONMENT AND REGULATORY SER,BV03,STREET CLEANSING,BV03F,DEPT STREETSCENE,TRANSPORT RELATED EXPENDITURE,3,Vehicle Management,38,VEHICLE CLEANING,3030,11/11/2016,571086,15.00 ,Revenue,MOBILE STEAM CLEANING SERVICES,04434339
Fareham Borough Council,http://statistics.data.gov.uk/id/local-authority/24UE,ENVIRONMENT AND REGULATORY SER,BV03,STREET CLEANSING,BV03F,DEPT STREETSCENE,TRANSPORT RELATED EXPENDITURE,3,Vehicle Management,38,VEHICLE CLEANING,3030,11/11/2016,571086,5.00 ,Revenue,MOBILE STEAM CLEANING SERVICES,04434339
Fareham Borough Council,http://statistics.data.gov.uk/id/local-authority/24UE,ENVIRONMENT AND REGULATORY SER,BV03,STREET CLEANSING,BV03F,DEPT STREETSCENE,TRANSPORT RELATED EXPENDITURE,3,Vehicle Management,38,VEHICLE CLEANING,3030,11/11/2016,571086,5.00 ,Revenue,MOBILE STEAM CLEANING SERVICES,04434339
Fareham Borough Council,http://statistics.data.gov.uk/id/local-authority/24UE,ENVIRONMENT AND REGULATORY SER,BV03,STREET CLEANSING,BV03F,DEPT STREETSCENE,TRANSPORT RELATED EXPENDITURE,3,Vehicle Management,38,VEHICLE CLEANING,3030,11/11/2016,571086,5.00 ,Revenue,MOBILE STEAM CLEANING SERVICES,04434339
Fareham Borough Council,http://statistics.data.gov.uk/id/local-authority/24UE,ENVIRONMENT AND REGULATORY SER,BV03,STREET CLEANSING,BV03F,DEPT STREETSCENE,TRANSPORT RELATED EXPENDITURE,3,Vehicle Management,38,VEHICLE CLEANING,3030,11/11/2016,571086,5.00 ,Revenue,MOBILE STEAM CLEANING SERVICES,04434339
Fareham Borough Council,http://statistics.data.gov.uk/id/local-authority/24UE,ENVIRONMENT AND REGULATORY SER,BV03,WASTE COLLECTION,BV03G,DEPT STREETSCENE,TRANSPORT RELATED EXPENDITURE,3,Vehicle Management,38,VEHICLE CLEANING,3030,11/11/2016,571086,5.00 ,Revenue,MOBILE STEAM CLEANING SERVICES,04434339
Fareham Borough Council,http://statistics.data.gov.uk/id/local-authority/24UE,ENVIRONMENT AND REGULATORY SER,BV03,WASTE COLLECTION,BV03G,DEPT STREETSCENE,TRANSPORT RELATED EXPENDITURE,3,Vehicle Management,38,VEHICLE CLEANING,3030,11/11/2016,571086,20.00 ,Revenue,MOBILE STEAM CLEANING SERVICES,04434339
Fareham Borough Council,http://statistics.data.gov.uk/id/local-authority/24UE,ENVIRONMENT AND REGULATORY SER,BV03,WASTE COLLECTION,BV03G,DEPT STREETSCENE,TRANSPORT RELATED EXPENDITURE,3,Vehicle Management,38,VEHICLE CLEANING,3030,11/11/2016,571086,65.00 ,Revenue,MOBILE STEAM CLEANING SERVICES,04434339
Fareham Borough Council,http://statistics.data.gov.uk/id/local-authority/24UE,ENVIRONMENT AND REGULATORY SER,BV03,WASTE COLLECTION,BV03G,DEPT STREETSCENE,TRANSPORT RELATED EXPENDITURE,3,Vehicle Management,38,VEHICLE CLEANING,3030,11/11/2016,571086,65.00 ,Revenue,MOBILE STEAM CLEANING SERVICES,04434339
Fareham Borough Council,http://statistics.data.gov.uk/id/local-authority/24UE,ENVIRONMENT AND REGULATORY SER,BV03,WASTE COLLECTION,BV03G,DEPT STREETSCENE,TRANSPORT RELATED EXPENDITURE,3,Vehicle Management,38,VEHICLE CLEANING,3030,11/11/2016,571086,15.00 ,Revenue,MOBILE STEAM CLEANING SERVICES,04434339
Fareham Borough Council,http://statistics.data.gov.uk/id/local-authority/24UE,ENVIRONMENT AND REGULATORY SER,BV03,WASTE COLLECTION,BV03G,DEPT STREETSCENE,TRANSPORT RELATED EXPENDITURE,3,Vehicle Management,38,VEHICLE CLEANING,3030,11/11/2016,571086,15.00 ,Revenue,MOBILE STEAM CLEANING SERVICES,04434339
Fareham Borough Council,http://statistics.data.gov.uk/id/local-authority/24UE,ENVIRONMENT AND REGULATORY SER,BV03,WASTE COLLECTION,BV03G,DEPT STREETSCENE,TRANSPORT RELATED EXPENDITURE,3,Vehicle Management,38,VEHICLE CLEANING,3030,11/11/2016,571086,15.00 ,Revenue,MOBILE STEAM CLEANING SERVICES,04434339
Fareham Borough Council,http://statistics.data.gov.uk/id/local-authority/24UE,ENVIRONMENT AND REGULATORY SER,BV03,WASTE COLLECTION,BV03G,DEPT STREETSCENE,TRANSPORT RELATED EXPENDITURE,3,Vehicle Management,38,VEHICLE CLEANING,3030,11/11/2016,571086,15.00 ,Revenue,MOBILE STEAM CLEANING SERVICES,04434339
Fareham Borough Council,http://statistics.data.gov.uk/id/local-authority/24UE,ENVIRONMENT AND REGULATORY SER,BV03,WASTE COLLECTION,BV03G,DEPT STREETSCENE,TRANSPORT RELATED EXPENDITURE,3,Vehicle Management,38,VEHICLE CLEANING,3030,11/11/2016,571086,20.00 ,Revenue,MOBILE STEAM CLEANING SERVICES,04434339
Fareham Borough Council,http://statistics.data.gov.uk/id/local-authority/24UE,ENVIRONMENT AND REGULATORY SER,BV03,WASTE COLLECTION,BV03G,DEPT STREETSCENE,TRANSPORT RELATED EXPENDITURE,3,Vehicle Management,38,VEHICLE CLEANING,3030,11/11/2016,571086,40.00 ,Revenue,MOBILE STEAM CLEANING SERVICES,04434339
Fareham Borough Council,http://statistics.data.gov.uk/id/local-authority/24UE,ENVIRONMENT AND REGULATORY SER,BV03,WASTE COLLECTION,BV03G,DEPT STREETSCENE,TRANSPORT RELATED EXPENDITURE,3,Vehicle Management,38,VEHICLE CLEANING,3030,11/11/2016,571086,40.00 ,Revenue,MOBILE STEAM CLEANING SERVICES,04434339
Fareham Borough Council,http://statistics.data.gov.uk/id/local-authority/24UE,ENVIRONMENT AND REGULATORY SER,BV03,WASTE COLLECTION,BV03G,DEPT STREETSCENE,TRANSPORT RELATED EXPENDITURE,3,Vehicle Management,38,VEHICLE CLEANING,3030,11/11/2016,571086,30.00 ,Revenue,MOBILE STEAM CLEANING SERVICES,04434339
Fareham Borough Council,http://statistics.data.gov.uk/id/local-authority/24UE,ENVIRONMENT AND REGULATORY SER,BV03,WASTE COLLECTION,BV03G,DEPT STREETSCENE,TRANSPORT RELATED EXPENDITURE,3,Vehicle Management,38,VEHICLE CLEANING,3030,11/11/2016,571086,40.00 ,Revenue,MOBILE STEAM CLEANING SERVICES,04434339
Fareham Borough Council,http://statistics.data.gov.uk/id/local-authority/24UE,ENVIRONMENT AND REGULATORY SER,BV03,WASTE COLLECTION,BV03G,DEPT STREETSCENE,TRANSPORT RELATED EXPENDITURE,3,Vehicle Management,38,VEHICLE CLEANING,3030,11/11/2016,571086,40.00 ,Revenue,MOBILE STEAM CLEANING SERVICES,04434339
Fareham Borough Council,http://statistics.data.gov.uk/id/local-authority/24UE,ENVIRONMENT AND REGULATORY SER,BV03,WASTE COLLECTION,BV03G,DEPT STREETSCENE,TRANSPORT RELATED EXPENDITURE,3,Vehicle Management,38,VEHICLE CLEANING,3030,11/11/2016,571086,40.00 ,Revenue,MOBILE STEAM CLEANING SERVICES,04434339
Fareham Borough Council,http://statistics.data.gov.uk/id/local-authority/24UE,ENVIRONMENT AND REGULATORY SER,BV03,WASTE COLLECTION,BV03G,DEPT STREETSCENE,TRANSPORT RELATED EXPENDITURE,3,Vehicle Management,38,VEHICLE CLEANING,3030,11/11/2016,571086,40.00 ,Revenue,MOBILE STEAM CLEANING SERVICES,04434339
Fareham Borough Council,http://statistics.data.gov.uk/id/local-authority/24UE,ENVIRONMENT AND REGULATORY SER,BV03,WASTE COLLECTION,BV03G,DEPT STREETSCENE,TRANSPORT RELATED EXPENDITURE,3,Vehicle Management,38,VEHICLE CLEANING,3030,11/11/2016,571086,40.00 ,Revenue,MOBILE STEAM CLEANING SERVICES,04434339
Fareham Borough Council,http://statistics.data.gov.uk/id/local-authority/24UE,ENVIRONMENT AND REGULATORY SER,BV03,WASTE COLLECTION,BV03G,DEPT STREETSCENE,TRANSPORT RELATED EXPENDITURE,3,Vehicle Management,38,VEHICLE CLEANING,3030,11/11/2016,571086,20.00 ,Revenue,MOBILE STEAM CLEANING SERVICES,04434339
Fareham Borough Council,http://statistics.data.gov.uk/id/local-authority/24UE,ENVIRONMENT AND REGULATORY SER,BV03,WASTE COLLECTION,BV03G,DEPT STREETSCENE,TRANSPORT RELATED EXPENDITURE,3,Vehicle Management,38,VEHICLE CLEANING,3030,11/11/2016,571086,15.00 ,Revenue,MOBILE STEAM CLEANING SERVICES,04434339
Fareham Borough Council,http://statistics.data.gov.uk/id/local-authority/24UE,ENVIRONMENT AND REGULATORY SER,BV03,WASTE COLLECTION,BV03G,DEPT STREETSCENE,TRANSPORT RELATED EXPENDITURE,3,Vehicle Management,38,VEHICLE CLEANING,3030,11/11/2016,571086,15.00 ,Revenue,MOBILE STEAM CLEANING SERVICES,04434339
Fareham Borough Council,http://statistics.data.gov.uk/id/local-authority/24UE,ENVIRONMENT AND REGULATORY SER,BV03,WASTE COLLECTION,BV03G,DEPT STREETSCENE,TRANSPORT RELATED EXPENDITURE,3,Vehicle Management,38,VEHICLE CLEANING,3030,11/11/2016,571086,40.00 ,Revenue,MOBILE STEAM CLEANING SERVICES,04434339
Fareham Borough Council,http://statistics.data.gov.uk/id/local-authority/24UE,ENVIRONMENT AND REGULATORY SER,BV03,WASTE COLLECTION,BV03G,DEPT STREETSCENE,TRANSPORT RELATED EXPENDITURE,3,Vehicle Management,38,VEHICLE CLEANING,3030,11/11/2016,571086,40.00 ,Revenue,MOBILE STEAM CLEANING SERVICES,04434339
Fareham Borough Council,http://statistics.data.gov.uk/id/local-authority/24UE,ENVIRONMENT AND REGULATORY SER,BV03,WASTE COLLECTION,BV03G,DEPT STREETSCENE,TRANSPORT RELATED EXPENDITURE,3,Vehicle Management,38,VEHICLE CLEANING,3030,11/11/2016,571086,20.00 ,Revenue,MOBILE STEAM CLEANING SERVICES,04434339
Fareham Borough Council,http://statistics.data.gov.uk/id/local-authority/24UE,ENVIRONMENT AND REGULATORY SER,BV03,WASTE COLLECTION,BV03G,DEPT STREETSCENE,TRANSPORT RELATED EXPENDITURE,3,Vehicle Management,38,VEHICLE CLEANING,3030,11/11/2016,571086,15.00 ,Revenue,MOBILE STEAM CLEANING SERVICES,04434339
Fareham Borough Council,http://statistics.data.gov.uk/id/local-authority/24UE,ENVIRONMENT AND REGULATORY SER,BV03,WASTE COLLECTION,BV03G,DEPT STREETSCENE,TRANSPORT RELATED EXPENDITURE,3,Vehicle Management,38,VEHICLE CLEANING,3030,11/11/2016,571086,15.00 ,Revenue,MOBILE STEAM CLEANING SERVICES,04434339
Fareham Borough Council,http://statistics.data.gov.uk/id/local-authority/24UE,ENVIRONMENT AND REGULATORY SER,BV03,WASTE COLLECTION,BV03G,DEPT STREETSCENE,TRANSPORT RELATED EXPENDITURE,3,Vehicle Management,38,VEHICLE CLEANING,3030,11/11/2016,571086,15.00 ,Revenue,MOBILE STEAM CLEANING SERVICES,04434339
Fareham Borough Council,http://statistics.data.gov.uk/id/local-authority/24UE,ENVIRONMENT AND REGULATORY SER,BV03,WASTE COLLECTION,BV03G,DEPT STREETSCENE,TRANSPORT RELATED EXPENDITURE,3,Vehicle Management,38,VEHICLE CLEANING,3030,11/11/2016,571086,15.00 ,Revenue,MOBILE STEAM CLEANING SERVICES,04434339
Fareham Borough Council,http://statistics.data.gov.uk/id/local-authority/24UE,ENVIRONMENT AND REGULATORY SER,BV03,WASTE COLLECTION,BV03G,DEPT STREETSCENE,TRANSPORT RELATED EXPENDITURE,3,Vehicle Management,38,VEHICLE CLEANING,3030,11/11/2016,571086,15.00 ,Revenue,MOBILE STEAM CLEANING SERVICES,04434339
Fareham Borough Council,http://statistics.data.gov.uk/id/local-authority/24UE,ENVIRONMENT AND REGULATORY SER,BV03,WASTE COLLECTION,BV03G,DEPT STREETSCENE,TRANSPORT RELATED EXPENDITURE,3,Vehicle Management,38,VEHICLE CLEANING,3030,11/11/2016,571086,20.00 ,Revenue,MOBILE STEAM CLEANING SERVICES,04434339
Fareham Borough Council,http://statistics.data.gov.uk/id/local-authority/24UE,ENVIRONMENT AND REGULATORY SER,BV03,WASTE COLLECTION,BV03G,DEPT STREETSCENE,TRANSPORT RELATED EXPENDITURE,3,Vehicle Management,38,VEHICLE CLEANING,3030,11/11/2016,571086,20.00 ,Revenue,MOBILE STEAM CLEANING SERVICES,04434339
Fareham Borough Council,http://statistics.data.gov.uk/id/local-authority/24UE,ENVIRONMENT AND REGULATORY SER,BV03,WASTE COLLECTION,BV03G,DEPT STREETSCENE,TRANSPORT RELATED EXPENDITURE,3,Vehicle Management,38,VEHICLE CLEANING,3030,11/11/2016,571086,65.00 ,Revenue,MOBILE STEAM CLEANING SERVICES,04434339
Fareham Borough Council,http://statistics.data.gov.uk/id/local-authority/24UE,ENVIRONMENT AND REGULATORY SER,BV03,WASTE COLLECTION,BV03G,DEPT STREETSCENE,TRANSPORT RELATED EXPENDITURE,3,Vehicle Management,38,VEHICLE CLEANING,3030,11/11/2016,571086,20.00 ,Revenue,MOBILE STEAM CLEANING SERVICES,04434339
Fareham Borough Council,http://statistics.data.gov.uk/id/local-authority/24UE,ENVIRONMENT AND REGULATORY SER,BV03,WASTE COLLECTION,BV03G,DEPT STREETSCENE,TRANSPORT RELATED EXPENDITURE,3,Vehicle Management,38,VEHICLE CLEANING,3030,11/11/2016,571086,20.00 ,Revenue,MOBILE STEAM CLEANING SERVICES,04434339
Fareham Borough Council,http://statistics.data.gov.uk/id/local-authority/24UE,ENVIRONMENT AND REGULATORY SER,BV03,WASTE COLLECTION,BV03G,DEPT STREETSCENE,TRANSPORT RELATED EXPENDITURE,3,Vehicle Management,38,VEHICLE CLEANING,3030,11/11/2016,571086,40.00 ,Revenue,MOBILE STEAM CLEANING SERVICES,04434339
Fareham Borough Council,http://statistics.data.gov.uk/id/local-authority/24UE,ENVIRONMENT AND REGULATORY SER,BV03,WASTE COLLECTION,BV03G,DEPT STREETSCENE,TRANSPORT RELATED EXPENDITURE,3,Vehicle Management,38,VEHICLE CLEANING,3030,11/11/2016,571086,40.00 ,Revenue,MOBILE STEAM CLEANING SERVICES,04434339
Fareham Borough Council,http://statistics.data.gov.uk/id/local-authority/24UE,ENVIRONMENT AND REGULATORY SER,BV03,WASTE COLLECTION,BV03G,DEPT STREETSCENE,TRANSPORT RELATED EXPENDITURE,3,Vehicle Management,38,VEHICLE CLEANING,3030,11/11/2016,571086,40.00 ,Revenue,MOBILE STEAM CLEANING SERVICES,04434339
Fareham Borough Council,http://statistics.data.gov.uk/id/local-authority/24UE,ENVIRONMENT AND REGULATORY SER,BV03,WASTE COLLECTION,BV03G,DEPT STREETSCENE,TRANSPORT RELATED EXPENDITURE,3,Vehicle Management,38,VEHICLE CLEANING,3030,11/11/2016,571086,40.00 ,Revenue,MOBILE STEAM CLEANING SERVICES,04434339
Fareham Borough Council,http://statistics.data.gov.uk/id/local-authority/24UE,ENVIRONMENT AND REGULATORY SER,BV03,WASTE COLLECTION,BV03G,DEPT STREETSCENE,TRANSPORT RELATED EXPENDITURE,3,Vehicle Management,38,VEHICLE CLEANING,3030,11/11/2016,571086,30.00 ,Revenue,MOBILE STEAM CLEANING SERVICES,04434339
Fareham Borough Council,http://statistics.data.gov.uk/id/local-authority/24UE,ENVIRONMENT AND REGULATORY SER,BV03,WASTE COLLECTION,BV03G,DEPT STREETSCENE,TRANSPORT RELATED EXPENDITURE,3,Vehicle Management,38,VEHICLE CLEANING,3030,11/11/2016,571086,40.00 ,Revenue,MOBILE STEAM CLEANING SERVICES,04434339
Fareham Borough Council,http://statistics.data.gov.uk/id/local-authority/24UE,ENVIRONMENT AND REGULATORY SER,BV03,WASTE COLLECTION,BV03G,DEPT STREETSCENE,TRANSPORT RELATED EXPENDITURE,3,Vehicle Management,38,VEHICLE CLEANING,3030,11/11/2016,571086,40.00 ,Revenue,MOBILE STEAM CLEANING SERVICES,04434339
Fareham Borough Council,http://statistics.data.gov.uk/id/local-authority/24UE,ENVIRONMENT AND REGULATORY SER,BV03,WASTE COLLECTION,BV03G,DEPT STREETSCENE,TRANSPORT RELATED EXPENDITURE,3,Vehicle Management,38,VEHICLE CLEANING,3030,11/11/2016,571086,40.00 ,Revenue,MOBILE STEAM CLEANING SERVICES,04434339
Fareham Borough Council,http://statistics.data.gov.uk/id/local-authority/24UE,ENVIRONMENT AND REGULATORY SER,BV03,WASTE COLLECTION,BV03G,DEPT STREETSCENE,TRANSPORT RELATED EXPENDITURE,3,Vehicle Management,38,VEHICLE CLEANING,3030,11/11/2016,571086,40.00 ,Revenue,MOBILE STEAM CLEANING SERVICES,04434339
Fareham Borough Council,http://statistics.data.gov.uk/id/local-authority/24UE,ENVIRONMENT AND REGULATORY SER,BV03,WASTE COLLECTION,BV03G,DEPT STREETSCENE,TRANSPORT RELATED EXPENDITURE,3,Vehicle Management,38,VEHICLE CLEANING,3030,11/11/2016,571086,40.00 ,Revenue,MOBILE STEAM CLEANING SERVICES,04434339
Fareham Borough Council,http://statistics.data.gov.uk/id/local-authority/24UE,ENVIRONMENT AND REGULATORY SER,BV03,WASTE COLLECTION,BV03G,DEPT STREETSCENE,TRANSPORT RELATED EXPENDITURE,3,Vehicle Management,38,VEHICLE CLEANING,3030,11/11/2016,571086,20.00 ,Revenue,MOBILE STEAM CLEANING SERVICES,04434339
Fareham Borough Council,http://statistics.data.gov.uk/id/local-authority/24UE,ENVIRONMENT AND REGULATORY SER,BV03,WASTE COLLECTION,BV03G,DEPT STREETSCENE,TRANSPORT RELATED EXPENDITURE,3,Vehicle Management,38,VEHICLE CLEANING,3030,11/11/2016,571086,15.00 ,Revenue,MOBILE STEAM CLEANING SERVICES,04434339
Fareham Borough Council,http://statistics.data.gov.uk/id/local-authority/24UE,ENVIRONMENT AND REGULATORY SER,BV03,WASTE COLLECTION,BV03G,DEPT STREETSCENE,TRANSPORT RELATED EXPENDITURE,3,Vehicle Management,38,VEHICLE CLEANING,3030,11/11/2016,571086,40.00 ,Revenue,MOBILE STEAM CLEANING SERVICES,04434339
Fareham Borough Council,http://statistics.data.gov.uk/id/local-authority/24UE,ENVIRONMENT AND REGULATORY SER,BV03,WASTE COLLECTION,BV03G,DEPT STREETSCENE,TRANSPORT RELATED EXPENDITURE,3,Vehicle Management,38,VEHICLE CLEANING,3030,11/11/2016,571086,40.00 ,Revenue,MOBILE STEAM CLEANING SERVICES,04434339
Fareham Borough Council,http://statistics.data.gov.uk/id/local-authority/24UE,ENVIRONMENT AND REGULATORY SER,BV03,WASTE COLLECTION,BV03G,DEPT STREETSCENE,TRANSPORT RELATED EXPENDITURE,3,Vehicle Management,38,VEHICLE CLEANING,3030,11/11/2016,571086,40.00 ,Revenue,MOBILE STEAM CLEANING SERVICES,04434339
Fareham Borough Council,http://statistics.data.gov.uk/id/local-authority/24UE,ENVIRONMENT AND REGULATORY SER,BV03,WASTE COLLECTION,BV03G,DEPT STREETSCENE,TRANSPORT RELATED EXPENDITURE,3,Vehicle Management,38,VEHICLE CLEANING,3030,11/11/2016,571086,40.00 ,Revenue,MOBILE STEAM CLEANING SERVICES,04434339
Fareham Borough Council,http://statistics.data.gov.uk/id/local-authority/24UE,OTHER REVENUE ACCOUNTS,RV,CONTRACT SERVICES D.S.O.,RV14,DEPT STREETSCENE,TRANSPORT RELATED EXPENDITURE,3,Vehicle Management,38,VEHICLE CLEANING,3030,11/11/2016,571086,5.00 ,Revenue,MOBILE STEAM CLEANING SERVICES,04434339
Fareham Borough Council,http://statistics.data.gov.uk/id/local-authority/24UE,OTHER REVENUE ACCOUNTS,RV,CONTRACT SERVICES D.S.O.,RV14,DEPT STREETSCENE,TRANSPORT RELATED EXPENDITURE,3,Vehicle Management,38,VEHICLE CLEANING,3030,11/11/2016,571086,5.00 ,Revenue,MOBILE STEAM CLEANING SERVICES,04434339
Fareham Borough Council,http://statistics.data.gov.uk/id/local-authority/24UE,OTHER REVENUE ACCOUNTS,RV,CONTRACT SERVICES D.S.O.,RV14,DEPT STREETSCENE,TRANSPORT RELATED EXPENDITURE,3,Vehicle Management,38,VEHICLE CLEANING,3030,11/11/2016,571086,5.00 ,Revenue,MOBILE STEAM CLEANING SERVICES,04434339
Fareham Borough Council,http://statistics.data.gov.uk/id/local-authority/24UE,OTHER REVENUE ACCOUNTS,RV,CONTRACT SERVICES D.S.O.,RV14,DEPT STREETSCENE,TRANSPORT RELATED EXPENDITURE,3,Vehicle Management,38,VEHICLE CLEANING,3030,11/11/2016,571086,5.00 ,Revenue,MOBILE STEAM CLEANING SERVICES,04434339
Fareham Borough Council,http://statistics.data.gov.uk/id/local-authority/24UE,OTHER REVENUE ACCOUNTS,RV,CONTRACT SERVICES D.S.O.,RV14,DEPT STREETSCENE,TRANSPORT RELATED EXPENDITURE,3,Vehicle Management,38,VEHICLE CLEANING,3030,11/11/2016,571086,5.00 ,Revenue,MOBILE STEAM CLEANING SERVICES,04434339
Fareham Borough Council,http://statistics.data.gov.uk/id/local-authority/24UE,OTHER REVENUE ACCOUNTS,RV,CONTRACT SERVICES D.S.O.,RV14,DEPT STREETSCENE,TRANSPORT RELATED EXPENDITURE,3,Vehicle Management,38,VEHICLE CLEANING,3030,11/11/2016,571086,5.00 ,Revenue,MOBILE STEAM CLEANING SERVICES,04434339
Fareham Borough Council,http://statistics.data.gov.uk/id/local-authority/24UE,OTHER REVENUE ACCOUNTS,RV,CONTRACT SERVICES D.S.O.,RV14,DEPT STREETSCENE,TRANSPORT RELATED EXPENDITURE,3,Vehicle Management,38,VEHICLE CLEANING,3030,11/11/2016,571086,5.00 ,Revenue,MOBILE STEAM CLEANING SERVICES,04434339
Fareham Borough Council,http://statistics.data.gov.uk/id/local-authority/24UE,OTHER REVENUE ACCOUNTS,RV,CONTRACT SERVICES D.S.O.,RV14,DEPT STREETSCENE,TRANSPORT RELATED EXPENDITURE,3,Vehicle Management,38,VEHICLE CLEANING,3030,11/11/2016,571086,5.00 ,Revenue,MOBILE STEAM CLEANING SERVICES,04434339
Fareham Borough Council,http://statistics.data.gov.uk/id/local-authority/24UE,OTHER REVENUE ACCOUNTS,RV,CONTRACT SERVICES D.S.O.,RV14,DEPT STREETSCENE,TRANSPORT RELATED EXPENDITURE,3,Vehicle Management,38,VEHICLE CLEANING,3030,11/11/2016,571086,5.00 ,Revenue,MOBILE STEAM CLEANING SERVICES,04434339
Fareham Borough Council,http://statistics.data.gov.uk/id/local-authority/24UE,OTHER REVENUE ACCOUNTS,RV,CONTRACT SERVICES D.S.O.,RV14,DEPT STREETSCENE,TRANSPORT RELATED EXPENDITURE,3,Vehicle Management,38,VEHICLE CLEANING,3030,11/11/2016,571086,5.00 ,Revenue,MOBILE STEAM CLEANING SERVICES,04434339
Fareham Borough Council,http://statistics.data.gov.uk/id/local-authority/24UE,OTHER REVENUE ACCOUNTS,RV,CONTRACT SERVICES D.S.O.,RV14,DEPT STREETSCENE,TRANSPORT RELATED EXPENDITURE,3,Vehicle Management,38,VEHICLE CLEANING,3030,11/11/2016,571086,5.00 ,Revenue,MOBILE STEAM CLEANING SERVICES,04434339
Fareham Borough Council,http://statistics.data.gov.uk/id/local-authority/24UE,OTHER REVENUE ACCOUNTS,RV,CONTRACT SERVICES D.S.O.,RV14,DEPT STREETSCENE,TRANSPORT RELATED EXPENDITURE,3,Vehicle Management,38,VEHICLE CLEANING,3030,11/11/2016,571086,5.00 ,Revenue,MOBILE STEAM CLEANING SERVICES,04434339
Fareham Borough Council,http://statistics.data.gov.uk/id/local-authority/24UE,OTHER REVENUE ACCOUNTS,RV,CONTRACT SERVICES D.S.O.,RV14,DEPT STREETSCENE,TRANSPORT RELATED EXPENDITURE,3,Vehicle Management,38,VEHICLE CLEANING,3030,11/11/2016,571086,5.00 ,Revenue,MOBILE STEAM CLEANING SERVICES,04434339
Fareham Borough Council,http://statistics.data.gov.uk/id/local-authority/24UE,OTHER REVENUE ACCOUNTS,RV,CONTRACT SERVICES D.S.O.,RV14,DEPT STREETSCENE,TRANSPORT RELATED EXPENDITURE,3,Vehicle Management,38,VEHICLE CLEANING,3030,11/11/2016,571086,5.00 ,Revenue,MOBILE STEAM CLEANING SERVICES,04434339
Fareham Borough Council,http://statistics.data.gov.uk/id/local-authority/24UE,OTHER REVENUE ACCOUNTS,RV,CONTRACT SERVICES D.S.O.,RV14,DEPT STREETSCENE,TRANSPORT RELATED EXPENDITURE,3,Vehicle Management,38,VEHICLE CLEANING,3030,11/11/2016,571086,5.00 ,Revenue,MOBILE STEAM CLEANING SERVICES,04434339
Fareham Borough Council,http://statistics.data.gov.uk/id/local-authority/24UE,OTHER REVENUE ACCOUNTS,RV,NON WORK GROUP HOLDING ACCOUNT,RV18,DEPT STREETSCENE,TRANSPORT RELATED EXPENDITURE,3,Vehicle Management,38,VEHICLE CLEANING,3030,11/11/2016,571086,5.00 ,Revenue,MOBILE STEAM CLEANING SERVICES,04434339
Fareham Borough Council,http://statistics.data.gov.uk/id/local-authority/24UE,ENVIRONMENT AND REGULATORY SER,BV03,STREET CLEANSING,BV03F,DEPT STREETSCENE,TRANSPORT RELATED EXPENDITURE,3,Vehicle Management,38,TYRES,3022,25/11/2016,571096,60.36 ,Revenue,ATS EUROMASTER LIMITED,04303731
Fareham Borough Council,http://statistics.data.gov.uk/id/local-authority/24UE,ENVIRONMENT AND REGULATORY SER,BV03,STREET CLEANSING,BV03F,DEPT STREETSCENE,TRANSPORT RELATED EXPENDITURE,3,Vehicle Management,38,TYRES,3022,25/11/2016,571096,32.86 ,Revenue,ATS EUROMASTER LIMITED,04303731
Fareham Borough Council,http://statistics.data.gov.uk/id/local-authority/24UE,ENVIRONMENT AND REGULATORY SER,BV03,STREET CLEANSING,BV03F,DEPT STREETSCENE,TRANSPORT RELATED EXPENDITURE,3,Vehicle Management,38,TYRES,3022,25/11/2016,571096,410.57 ,Revenue,ATS EUROMASTER LIMITED,04303731
Fareham Borough Council,http://statistics.data.gov.uk/id/local-authority/24UE,ENVIRONMENT AND REGULATORY SER,BV03,STREET CLEANSING,BV03F,DEPT STREETSCENE,TRANSPORT RELATED EXPENDITURE,3,Vehicle Management,38,TYRES,3022,25/11/2016,571096,320.08 ,Revenue,ATS EUROMASTER LIMITED,04303731
Fareham Borough Council,http://statistics.data.gov.uk/id/local-authority/24UE,ENVIRONMENT AND REGULATORY SER,BV03,STREET CLEANSING,BV03F,DEPT STREETSCENE,TRANSPORT RELATED EXPENDITURE,3,Vehicle Management,38,TYRES,3022,25/11/2016,571096,52.70 ,Revenue,ATS EUROMASTER LIMITED,04303731
Fareham Borough Council,http://statistics.data.gov.uk/id/local-authority/24UE,ENVIRONMENT AND REGULATORY SER,BV03,STREET CLEANSING,BV03F,DEPT STREETSCENE,TRANSPORT RELATED EXPENDITURE,3,Vehicle Management,38,TYRES,3022,25/11/2016,571096,72.98 ,Revenue,ATS EUROMASTER LIMITED,04303731
Fareham Borough Council,http://statistics.data.gov.uk/id/local-authority/24UE,ENVIRONMENT AND REGULATORY SER,BV03,STREET CLEANSING,BV03F,DEPT STREETSCENE,TRANSPORT RELATED EXPENDITURE,3,Vehicle Management,38,TYRES,3022,25/11/2016,571096,77.12 ,Revenue,ATS EUROMASTER LIMITED,04303731
Fareham Borough Council,http://statistics.data.gov.uk/id/local-authority/24UE,ENVIRONMENT AND REGULATORY SER,BV03,STREET CLEANSING,BV03F,DEPT STREETSCENE,TRANSPORT RELATED EXPENDITURE,3,Vehicle Management,38,TYRES,3022,25/11/2016,571096,72.98 ,Revenue,ATS EUROMASTER LIMITED,04303731
Fareham Borough Council,http://statistics.data.gov.uk/id/local-authority/24UE,ENVIRONMENT AND REGULATORY SER,BV03,STREET CLEANSING,BV03F,DEPT STREETSCENE,TRANSPORT RELATED EXPENDITURE,3,Vehicle Management,38,TYRES,3022,25/11/2016,571096,60.36 ,Revenue,ATS EUROMASTER LIMITED,04303731
Fareham Borough Council,http://statistics.data.gov.uk/id/local-authority/24UE,ENVIRONMENT AND REGULATORY SER,BV03,WASTE COLLECTION,BV03G,DEPT STREETSCENE,TRANSPORT RELATED EXPENDITURE,3,Vehicle Management,38,TYRES,3022,25/11/2016,571096,21.70 ,Revenue,ATS EUROMASTER LIMITED,04303731
Fareham Borough Council,http://statistics.data.gov.uk/id/local-authority/24UE,ENVIRONMENT AND REGULATORY SER,BV03,WASTE COLLECTION,BV03G,DEPT STREETSCENE,TRANSPORT RELATED EXPENDITURE,3,Vehicle Management,38,TYRES,3022,25/11/2016,571096,52.70 ,Revenue,ATS EUROMASTER LIMITED,04303731
Fareham Borough Council,http://statistics.data.gov.uk/id/local-authority/24UE,ENVIRONMENT AND REGULATORY SER,BV03,WASTE COLLECTION,BV03G,DEPT STREETSCENE,TRANSPORT RELATED EXPENDITURE,3,Vehicle Management,38,TYRES,3022,25/11/2016,571096,230.83 ,Revenue,ATS EUROMASTER LIMITED,04303731
Fareham Borough Council,http://statistics.data.gov.uk/id/local-authority/24UE,ENVIRONMENT AND REGULATORY SER,BV03,WASTE COLLECTION,BV03G,DEPT STREETSCENE,TRANSPORT RELATED EXPENDITURE,3,Vehicle Management,38,TYRES,3022,25/11/2016,571096,450.88 ,Revenue,ATS EUROMASTER LIMITED,04303731
Fareham Borough Council,http://statistics.data.gov.uk/id/local-authority/24UE,ENVIRONMENT AND REGULATORY SER,BV03,WASTE COLLECTION,BV03G,DEPT STREETSCENE,TRANSPORT RELATED EXPENDITURE,3,Vehicle Management,38,TYRES,3022,25/11/2016,571096,461.66 ,Revenue,ATS EUROMASTER LIMITED,04303731
Fareham Borough Council,http://statistics.data.gov.uk/id/local-authority/24UE,ENVIRONMENT AND REGULATORY SER,BV03,WASTE COLLECTION,BV03G,DEPT STREETSCENE,TRANSPORT RELATED EXPENDITURE,3,Vehicle Management,38,TYRES,3022,25/11/2016,571096,225.44 ,Revenue,ATS EUROMASTER LIMITED,04303731
Fareham Borough Council,http://statistics.data.gov.uk/id/local-authority/24UE,OTHER REVENUE ACCOUNTS,RV,CONTRACT SERVICES D.S.O.,RV14,DEPT STREETSCENE,TRANSPORT RELATED EXPENDITURE,3,Vehicle Management,38,TYRES,3022,25/11/2016,571096,72.98 ,Revenue,ATS EUROMASTER LIMITED,04303731
Fareham Borough Council,http://statistics.data.gov.uk/id/local-authority/24UE,OTHER REVENUE ACCOUNTS,RV,CONTRACT SERVICES D.S.O.,RV14,DEPT STREETSCENE,TRANSPORT RELATED EXPENDITURE,3,Vehicle Management,38,TYRES,3022,25/11/2016,571096,73.27 ,Revenue,ATS EUROMASTER LIMITED,04303731
Fareham Borough Council,http://statistics.data.gov.uk/id/local-authority/24UE,OTHER REVENUE ACCOUNTS,RV,CONTRACT SERVICES D.S.O.,RV14,DEPT STREETSCENE,TRANSPORT RELATED EXPENDITURE,3,Vehicle Management,38,TYRES,3022,25/11/2016,571096,73.27 ,Revenue,ATS EUROMASTER LIMITED,04303731
Fareham Borough Council,http://statistics.data.gov.uk/id/local-authority/24UE,OTHER REVENUE ACCOUNTS,RV,CONTRACT SERVICES D.S.O.,RV14,DEPT STREETSCENE,TRANSPORT RELATED EXPENDITURE,3,Vehicle Management,38,TYRES,3022,25/11/2016,571096,8.07 ,Revenue,ATS EUROMASTER LIMITED,04303731
Fareham Borough Council,http://statistics.data.gov.uk/id/local-authority/24UE,OTHER REVENUE ACCOUNTS,RV,CONTRACT SERVICES D.S.O.,RV14,DEPT STREETSCENE,TRANSPORT RELATED EXPENDITURE,3,Vehicle Management,38,TYRES,3022,25/11/2016,571096,62.62 ,Revenue,ATS EUROMASTER LIMITED,04303731
Fareham Borough Council,http://statistics.data.gov.uk/id/local-authority/24UE,OTHER REVENUE ACCOUNTS,RV,CONTRACT SERVICES D.S.O.,RV14,DEPT STREETSCENE,TRANSPORT RELATED EXPENDITURE,3,Vehicle Management,38,TYRES,3022,25/11/2016,571096,190.10 ,Revenue,ATS EUROMASTER LIMITED,04303731
Fareham Borough Council,http://statistics.data.gov.uk/id/local-authority/24UE,OTHER REVENUE ACCOUNTS,RV,CONTRACT SERVICES D.S.O.,RV14,DEPT STREETSCENE,TRANSPORT RELATED EXPENDITURE,3,Vehicle Management,38,TYRES,3022,25/11/2016,571096,72.98 ,Revenue,ATS EUROMASTER LIMITED,04303731
Fareham Borough Council,http://statistics.data.gov.uk/id/local-authority/24UE,OTHER REVENUE ACCOUNTS,RV,CONTRACT SERVICES D.S.O.,RV14,DEPT STREETSCENE,TRANSPORT RELATED EXPENDITURE,3,Vehicle Management,38,TYRES,3022,25/11/2016,571096,173.92 ,Revenue,ATS EUROMASTER LIMITED,04303731
Fareham Borough Council,http://statistics.data.gov.uk/id/local-authority/24UE,OTHER REVENUE ACCOUNTS,RV,CONTRACT SERVICES D.S.O.,RV14,DEPT STREETSCENE,TRANSPORT RELATED EXPENDITURE,3,Vehicle Management,38,TYRES,3022,25/11/2016,571096,54.40 ,Revenue,ATS EUROMASTER LIMITED,04303731
Fareham Borough Council,http://statistics.data.gov.uk/id/local-authority/24UE,OTHER REVENUE ACCOUNTS,RV,CONTRACT SERVICES D.S.O.,RV14,DEPT STREETSCENE,TRANSPORT RELATED EXPENDITURE,3,Vehicle Management,38,TYRES,3022,25/11/2016,571096,7.15 ,Revenue,ATS EUROMASTER LIMITED,04303731
Fareham Borough Council,http://statistics.data.gov.uk/id/local-authority/24UE,OTHER REVENUE ACCOUNTS,RV,CONTRACT SERVICES D.S.O.,RV14,DEPT STREETSCENE,TRANSPORT RELATED EXPENDITURE,3,Vehicle Management,38,TYRES,3022,25/11/2016,571096,19.66 ,Revenue,ATS EUROMASTER LIMITED,04303731
Fareham Borough Council,http://statistics.data.gov.uk/id/local-authority/24UE,OTHER REVENUE ACCOUNTS,RV,CONTRACT SERVICES D.S.O.,RV14,DEPT STREETSCENE,TRANSPORT RELATED EXPENDITURE,3,Vehicle Management,38,TYRES,3022,25/11/2016,571096,30.00 ,Revenue,ATS EUROMASTER LIMITED,04303731
Fareham Borough Council,http://statistics.data.gov.uk/id/local-authority/24UE,PLANNING SERVICES,BV13,DEVELOPMENT CONTROL,BV13B,DEPT of STRATEGIC PLANNING and ENVIRONMENT,SUPPLIES & SERVICES,4,Human Resources,26,CONSULTANTS FEES,4401,11/11/2016,571100,1006.00 ,Revenue,PCMS PLANNING COMPLIANCE & MONITORING SERVICE,
Fareham Borough Council,http://statistics.data.gov.uk/id/local-authority/24UE,CENTRAL SERVICES,BV07,CENTRAL SERVICES TO THE PUBLIC,BV07B,DEPT of COMMUNITY and STREETSCENE,SUPPLIES & SERVICES,4,Local/Central Government,98,LEGAL FEES,4400,11/11/2016,571103,2357.50 ,Revenue,HAMPSHIRE COUNTY COUNCIL,
Fareham Borough Council,http://statistics.data.gov.uk/id/local-authority/24UE,CAPITAL PROGRAMME - HOUSING SERVICES,CP,RENOVATION OF L.A. DWELLINGS,CP10,CAPITAL - ENERGY CONSERVATION,PREMISES RELATED EXPENDITURE,2,Consultancy,15,R & M OF BUILDINGS,2000,25/11/2016,571112,70.00 ,Capital,GAS CONTRACT SERVICES LIMITED,3400365
Fareham Borough Council,http://statistics.data.gov.uk/id/local-authority/24UE,CAPITAL PROGRAMME - HOUSING SERVICES,CP,RENOVATION OF L.A. DWELLINGS,CP10,CAPITAL - ENERGY CONSERVATION,PREMISES RELATED EXPENDITURE,2,Consultancy,15,R & M OF BUILDINGS,2000,25/11/2016,571112,70.00 ,Capital,GAS CONTRACT SERVICES LIMITED,3400365
Fareham Borough Council,http://statistics.data.gov.uk/id/local-authority/24UE,CAPITAL PROGRAMME - HOUSING SERVICES,CP,RENOVATION OF L.A. DWELLINGS,CP10,CAPITAL - ENERGY CONSERVATION,PREMISES RELATED EXPENDITURE,2,Consultancy,15,R & M OF BUILDINGS,2000,25/11/2016,571112,70.00 ,Capital,GAS CONTRACT SERVICES LIMITED,3400365
Fareham Borough Council,http://statistics.data.gov.uk/id/local-authority/24UE,CAPITAL PROGRAMME - HOUSING SERVICES,CP,RENOVATION OF L.A. DWELLINGS,CP10,CAPITAL - ENERGY CONSERVATION,PREMISES RELATED EXPENDITURE,2,Consultancy,15,R & M OF BUILDINGS,2000,25/11/2016,571112,70.00 ,Capital,GAS CONTRACT SERVICES LIMITED,3400365
Fareham Borough Council,http://statistics.data.gov.uk/id/local-authority/24UE,CAPITAL PROGRAMME - HOUSING SERVICES,CP,RENOVATION OF L.A. DWELLINGS,CP10,CAPITAL - ENERGY CONSERVATION,PREMISES RELATED EXPENDITURE,2,Consultancy,15,R & M OF BUILDINGS,2000,25/11/2016,571112,70.00 ,Capital,GAS CONTRACT SERVICES LIMITED,3400365
Fareham Borough Council,http://statistics.data.gov.uk/id/local-authority/24UE,CAPITAL PROGRAMME - HOUSING SERVICES,CP,RENOVATION OF L.A. DWELLINGS,CP10,CAPITAL - ENERGY CONSERVATION,PREMISES RELATED EXPENDITURE,2,Consultancy,15,R & M OF BUILDINGS,2000,25/11/2016,571112,70.00 ,Capital,GAS CONTRACT SERVICES LIMITED,3400365
Fareham Borough Council,http://statistics.data.gov.uk/id/local-authority/24UE,CAPITAL PROGRAMME - HOUSING SERVICES,CP,RENOVATION OF L.A. DWELLINGS,CP10,CAPITAL - ENERGY CONSERVATION,PREMISES RELATED EXPENDITURE,2,Consultancy,15,R & M OF BUILDINGS,2000,25/11/2016,571112,70.00 ,Capital,GAS CONTRACT SERVICES LIMITED,3400365
Fareham Borough Council,http://statistics.data.gov.uk/id/local-authority/24UE,CAPITAL PROGRAMME - HOUSING SERVICES,CP,RENOVATION OF L.A. DWELLINGS,CP10,CAPITAL - ENERGY CONSERVATION,PREMISES RELATED EXPENDITURE,2,Consultancy,15,R & M OF BUILDINGS,2000,25/11/2016,571112,70.00 ,Capital,GAS CONTRACT SERVICES LIMITED,3400365
Fareham Borough Council,http://statistics.data.gov.uk/id/local-authority/24UE,CAPITAL PROGRAMME - HOUSING SERVICES,CP,RENOVATION OF L.A. DWELLINGS,CP10,CAPITAL - ENERGY CONSERVATION,PREMISES RELATED EXPENDITURE,2,Consultancy,15,R & M OF BUILDINGS,2000,25/11/2016,571112,70.00 ,Capital,GAS CONTRACT SERVICES LIMITED,3400365
Fareham Borough Council,http://statistics.data.gov.uk/id/local-authority/24UE,CAPITAL PROGRAMME - HOUSING SERVICES,CP,RENOVATION OF L.A. DWELLINGS,CP10,CAPITAL - ENERGY CONSERVATION,PREMISES RELATED EXPENDITURE,2,Consultancy,15,R & M OF BUILDINGS,2000,25/11/2016,571112,70.00 ,Capital,GAS CONTRACT SERVICES LIMITED,3400365
Fareham Borough Council,http://statistics.data.gov.uk/id/local-authority/24UE,CAPITAL PROGRAMME - HOUSING SERVICES,CP,RENOVATION OF L.A. DWELLINGS,CP10,CAPITAL - ENERGY CONSERVATION,PREMISES RELATED EXPENDITURE,2,Consultancy,15,R & M OF BUILDINGS,2000,25/11/2016,571112,70.00 ,Capital,GAS CONTRACT SERVICES LIMITED,3400365
Fareham Borough Council,http://statistics.data.gov.uk/id/local-authority/24UE,CAPITAL PROGRAMME - HOUSING SERVICES,CP,RENOVATION OF L.A. DWELLINGS,CP10,CAPITAL - ENERGY CONSERVATION,PREMISES RELATED EXPENDITURE,2,Consultancy,15,R & M OF BUILDINGS,2000,25/11/2016,571112,70.00 ,Capital,GAS CONTRACT SERVICES LIMITED,3400365
Fareham Borough Council,http://statistics.data.gov.uk/id/local-authority/24UE,CAPITAL PROGRAMME - HOUSING SERVICES,CP,RENOVATION OF L.A. DWELLINGS,CP10,CAPITAL - ENERGY CONSERVATION,PREMISES RELATED EXPENDITURE,2,Consultancy,15,R & M OF BUILDINGS,2000,25/11/2016,571112,70.00 ,Capital,GAS CONTRACT SERVICES LIMITED,3400365
Fareham Borough Council,http://statistics.data.gov.uk/id/local-authority/24UE,CAPITAL PROGRAMME - HOUSING SERVICES,CP,RENOVATION OF L.A. DWELLINGS,CP10,CAPITAL - ENERGY CONSERVATION,PREMISES RELATED EXPENDITURE,2,Consultancy,15,R & M OF BUILDINGS,2000,25/11/2016,571112,70.00 ,Capital,GAS CONTRACT SERVICES LIMITED,3400365
Fareham Borough Council,http://statistics.data.gov.uk/id/local-authority/24UE,CAPITAL PROGRAMME - HOUSING SERVICES,CP,RENOVATION OF L.A. DWELLINGS,CP10,CAPITAL - ENERGY CONSERVATION,PREMISES RELATED EXPENDITURE,2,Consultancy,15,R & M OF BUILDINGS,2000,25/11/2016,571112,70.00 ,Capital,GAS CONTRACT SERVICES LIMITED,3400365
Fareham Borough Council,http://statistics.data.gov.uk/id/local-authority/24UE,CAPITAL PROGRAMME - HOUSING SERVICES,CP,RENOVATION OF L.A. DWELLINGS,CP10,CAPITAL - ENERGY CONSERVATION,PREMISES RELATED EXPENDITURE,2,Consultancy,15,R & M OF BUILDINGS,2000,25/11/2016,571112,70.00 ,Capital,GAS CONTRACT SERVICES LIMITED,3400365
Fareham Borough Council,http://statistics.data.gov.uk/id/local-authority/24UE,CAPITAL PROGRAMME - HOUSING SERVICES,CP,RENOVATION OF L.A. DWELLINGS,CP10,CAPITAL - ENERGY CONSERVATION,PREMISES RELATED EXPENDITURE,2,Consultancy,15,R & M OF BUILDINGS,2000,25/11/2016,571112,70.00 ,Capital,GAS CONTRACT SERVICES LIMITED,3400365
Fareham Borough Council,http://statistics.data.gov.uk/id/local-authority/24UE,CAPITAL PROGRAMME - HOUSING SERVICES,CP,RENOVATION OF L.A. DWELLINGS,CP10,CAPITAL - ENERGY CONSERVATION,PREMISES RELATED EXPENDITURE,2,Consultancy,15,R & M OF BUILDINGS,2000,25/11/2016,571112,70.00 ,Capital,GAS CONTRACT SERVICES LIMITED,3400365
Fareham Borough Council,http://statistics.data.gov.uk/id/local-authority/24UE,CAPITAL PROGRAMME - HOUSING SERVICES,CP,RENOVATION OF L.A. DWELLINGS,CP10,CAPITAL - ENERGY CONSERVATION,PREMISES RELATED EXPENDITURE,2,Consultancy,15,R & M OF BUILDINGS,2000,25/11/2016,571112,70.00 ,Capital,GAS CONTRACT SERVICES LIMITED,3400365
Fareham Borough Council,http://statistics.data.gov.uk/id/local-authority/24UE,CAPITAL PROGRAMME - HOUSING SERVICES,CP,RENOVATION OF L.A. DWELLINGS,CP10,CAPITAL - ENERGY CONSERVATION,PREMISES RELATED EXPENDITURE,2,Consultancy,15,R & M OF BUILDINGS,2000,25/11/2016,571112,70.00 ,Capital,GAS CONTRACT SERVICES LIMITED,3400365
Fareham Borough Council,http://statistics.data.gov.uk/id/local-authority/24UE,CAPITAL PROGRAMME - HOUSING SERVICES,CP,RENOVATION OF L.A. DWELLINGS,CP10,CAPITAL - ENERGY CONSERVATION,PREMISES RELATED EXPENDITURE,2,Consultancy,15,R & M OF BUILDINGS,2000,25/11/2016,571112,70.00 ,Capital,GAS CONTRACT SERVICES LIMITED,3400365
Fareham Borough Council,http://statistics.data.gov.uk/id/local-authority/24UE,CAPITAL PROGRAMME - HOUSING SERVICES,CP,RENOVATION OF L.A. DWELLINGS,CP10,CAPITAL - ENERGY CONSERVATION,PREMISES RELATED EXPENDITURE,2,Consultancy,15,R & M OF BUILDINGS,2000,25/11/2016,571112,70.00 ,Capital,GAS CONTRACT SERVICES LIMITED,3400365
Fareham Borough Council,http://statistics.data.gov.uk/id/local-authority/24UE,CAPITAL PROGRAMME - HOUSING SERVICES,CP,RENOVATION OF L.A. DWELLINGS,CP10,CAPITAL - ENERGY CONSERVATION,PREMISES RELATED EXPENDITURE,2,Consultancy,15,R & M OF BUILDINGS,2000,25/11/2016,571112,70.00 ,Capital,GAS CONTRACT SERVICES LIMITED,3400365
Fareham Borough Council,http://statistics.data.gov.uk/id/local-authority/24UE,CAPITAL PROGRAMME - HOUSING SERVICES,CP,RENOVATION OF L.A. DWELLINGS,CP10,CAPITAL - ENERGY CONSERVATION,PREMISES RELATED EXPENDITURE,2,Consultancy,15,R & M OF BUILDINGS,2000,25/11/2016,571112,70.00 ,Capital,GAS CONTRACT SERVICES LIMITED,3400365
Fareham Borough Council,http://statistics.data.gov.uk/id/local-authority/24UE,CAPITAL PROGRAMME - HOUSING SERVICES,CP,RENOVATION OF L.A. DWELLINGS,CP10,CAPITAL - ENERGY CONSERVATION,PREMISES RELATED EXPENDITURE,2,Consultancy,15,R & M OF BUILDINGS,2000,25/11/2016,571112,70.00 ,Capital,GAS CONTRACT SERVICES LIMITED,3400365
Fareham Borough Council,http://statistics.data.gov.uk/id/local-authority/24UE,HOUSING REVENUE ACCOUNT,BV06,RESPONSIVE & VOID MAINTENANCE,5901,DEPT STREETSCENE,PREMISES RELATED EXPENDITURE,2,Consultancy,15,GAS SERVICING & ASSOC REPAIRS,2029,25/11/2016,571112,70.00 ,Revenue,GAS CONTRACT SERVICES LIMITED,3400365
Fareham Borough Council,http://statistics.data.gov.uk/id/local-authority/24UE,HOUSING REVENUE ACCOUNT,BV06,RESPONSIVE & VOID MAINTENANCE,5901,DEPT STREETSCENE,PREMISES RELATED EXPENDITURE,2,Health & Safety?,22,GENERAL REPAIRS,2018,11/11/2016,571130,655.00 ,Revenue,C S TODD & ASSOCIATES LTD,02189901
Fareham Borough Council,http://statistics.data.gov.uk/id/local-authority/24UE,CULTURAL AND RELATED SERVICES,BV09,CULTURE AND HERITAGE,BV09A,DEPT of COMMUNITY and STREETSCENE,SUPPLIES & SERVICES,4,Art & Leisure Services,29,PROMOTER,4916,11/11/2016,571141,2387.33 ,Revenue,BARRY COLLINGS ENTERTAINMENTS,
Fareham Borough Council,http://statistics.data.gov.uk/id/local-authority/24UE,CULTURAL AND RELATED SERVICES,BV09,CULTURE AND HERITAGE,BV09A,DEPT of COMMUNITY and STREETSCENE,SUPPLIES & SERVICES,4,Art & Leisure Services,29,PROMOTER,4916,11/11/2016,571150,1500.00 ,Revenue,AVALON PROMOTIONS LTD,02475367
Fareham Borough Council,http://statistics.data.gov.uk/id/local-authority/24UE,CULTURAL AND RELATED SERVICES,BV09,CULTURE AND HERITAGE,BV09A,DEPT of COMMUNITY and STREETSCENE,SUPPLIES & SERVICES,4,Facilities & Management Services,19,ADVERTISING,4910,11/11/2016,571152,560.00 ,Revenue,CELADOR RADIO LIMITED,05439096
Fareham Borough Council,http://statistics.data.gov.uk/id/local-authority/24UE,OTHER REVENUE ACCOUNTS,RV,NON WORK GROUP HOLDING ACCOUNT,RV18,DEPT of FINANCE and RESOURCES,SUPPLIES & SERVICES,4,Information Communication Technology,27,FURNITURE & EQUIPT. MAINT.,4030,18/11/2016,571153,553.22 ,Revenue,BLUE CHIP DATA SYSTEMS LTD,02708840
Fareham Borough Council,http://statistics.data.gov.uk/id/local-authority/24UE,OTHER REVENUE ACCOUNTS,RV,NON WORK GROUP HOLDING ACCOUNT,RV18,DEPT of FINANCE and RESOURCES,SUPPLIES & SERVICES,4,Information Communication Technology,27,FURNITURE & EQUIPT. MAINT.,4030,18/11/2016,571154,508.00 ,Revenue,BLUE CHIP DATA SYSTEMS LTD,02708840
Fareham Borough Council,http://statistics.data.gov.uk/id/local-authority/24UE,OTHER REVENUE ACCOUNTS,RV,CONTRACT SERVICES D.S.O.,RV14,DEPT of STRATEGIC PLANNING and ENVIRONMENT,SUPPLIES & SERVICES,4,Consultancy,15,STRUCTURAL ENGINEERS FEES,4405,11/11/2016,571161,1906.38 ,Revenue,RUCK CONSULTANCY LIMITED,9335936
Fareham Borough Council,http://statistics.data.gov.uk/id/local-authority/24UE,HOUSING REVENUE ACCOUNT,BV06,GENERAL ADMINISTRATION EXPENSE,5021,DEPT of COMMUNITY and STREETSCENE,SUPPLIES & SERVICES,4,Human Resources,26,TENANT PARTICIPATION COSTS,4723,11/11/2016,571163,500.00 ,Revenue,RICHARD PARIS,
Fareham Borough Council,http://statistics.data.gov.uk/id/local-authority/24UE,HOUSING REVENUE ACCOUNT,BV06,GENERAL ADMINISTRATION EXPENSE,5021,DEPT of COMMUNITY and STREETSCENE,SUPPLIES & SERVICES,4,Human Resources,26,TENANT PARTICIPATION COSTS,4723,11/11/2016,571163,64.00 ,Revenue,RICHARD PARIS,
Fareham Borough Council,http://statistics.data.gov.uk/id/local-authority/24UE,HOUSING REVENUE ACCOUNT,BV06,GENERAL ADMINISTRATION EXPENSE,5021,DEPT of COMMUNITY and STREETSCENE,SUPPLIES & SERVICES,4,Human Resources,26,TENANT PARTICIPATION COSTS,4723,11/11/2016,571164,720.00 ,Revenue,TPAS LIMITED,2224643
Fareham Borough Council,http://statistics.data.gov.uk/id/local-authority/24UE,HOUSING REVENUE ACCOUNT,BV06,GENERAL ADMINISTRATION EXPENSE,5021,DEPT of COMMUNITY and STREETSCENE,SUPPLIES & SERVICES,4,Human Resources,26,TENANT PARTICIPATION COSTS,4723,11/11/2016,571165,2250.00 ,Revenue,NOVOTEL,1016187
Fareham Borough Council,http://statistics.data.gov.uk/id/local-authority/24UE,HOUSING REVENUE ACCOUNT,BV06,RESPONSIVE & VOID MAINTENANCE,5901,DEPT STREETSCENE,PREMISES RELATED EXPENDITURE,2,Building Construction Materials,10,VOID COSTS - NOT RECHARGEABLE,2011,18/11/2016,571166,698.35 ,Revenue,AKZONOBEL,02881641
Fareham Borough Council,http://statistics.data.gov.uk/id/local-authority/24UE,CAPITAL PROGRAMME - HOUSING SERVICES,CP,ENABLING ROLE - HOUSING ASSOC.,CP11,CAPITAL - ENABLING ROLE - HOUSING ASSOC.,SUPPLIES & SERVICES,4,Consultancy,15,CONSULTANTS FEES,4401,18/11/2016,571167,4220.00 ,Capital,WYG ENVIRONMENT PLANNING TRANSPORT LTD,3050297
Fareham Borough Council,http://statistics.data.gov.uk/id/local-authority/24UE,CAPITAL PROGRAMME - OTHER SERVICES,CP,SCHEMES FUNDED FROM BALANCES,CP20,CAPITAL - SCHEMES FUNDED FROM BALANCES,SUPPLIES & SERVICES,4,Consultancy,15,CONSULTANTS FEES,4401,11/11/2016,571171,1700.00 ,Capital,COLIN MITCHELL CONSULTING,
Fareham Borough Council,http://statistics.data.gov.uk/id/local-authority/24UE,CAPITAL PROGRAMME - OTHER SERVICES,CP,SCHEMES FUNDED FROM BALANCES,CP20,CAPITAL - SCHEMES FUNDED FROM BALANCES,SUPPLIES & SERVICES,4,Consultancy,15,CONSULTANTS FEES,4401,11/11/2016,571171,1400.00 ,Capital,COLIN MITCHELL CONSULTING,
Fareham Borough Council,http://statistics.data.gov.uk/id/local-authority/24UE,CAPITAL PROGRAMME - OTHER SERVICES,CP,SCHEMES FUNDED FROM BALANCES,CP20,CAPITAL - SCHEMES FUNDED FROM BALANCES,SUPPLIES & SERVICES,4,Consultancy,15,CONSULTANTS FEES,4401,11/11/2016,571171,1150.00 ,Capital,COLIN MITCHELL CONSULTING,
Fareham Borough Council,http://statistics.data.gov.uk/id/local-authority/24UE,CAPITAL PROGRAMME - OTHER SERVICES,CP,SCHEMES FUNDED FROM BALANCES,CP20,CAPITAL - SCHEMES FUNDED FROM BALANCES,SUPPLIES & SERVICES,4,Consultancy,15,CONSULTANTS FEES,4401,11/11/2016,571171,150.00 ,Capital,COLIN MITCHELL CONSULTING,
Fareham Borough Council,http://statistics.data.gov.uk/id/local-authority/24UE,CAPITAL PROGRAMME - OTHER SERVICES,CP,SCHEMES FUNDED FROM BALANCES,CP20,CAPITAL - SCHEMES FUNDED FROM BALANCES,SUPPLIES & SERVICES,4,Consultancy,15,CONSULTANTS FEES,4401,11/11/2016,571171,125.00 ,Capital,COLIN MITCHELL CONSULTING,
Fareham Borough Council,http://statistics.data.gov.uk/id/local-authority/24UE,CAPITAL PROGRAMME - OTHER SERVICES,CP,SCHEMES FUNDED FROM BALANCES,CP20,CAPITAL - SCHEMES FUNDED FROM BALANCES,SUPPLIES & SERVICES,4,Consultancy,15,CONSULTANTS FEES,4401,11/11/2016,571171,825.00 ,Capital,COLIN MITCHELL CONSULTING,
Fareham Borough Council,http://statistics.data.gov.uk/id/local-authority/24UE,CAPITAL PROGRAMME - OTHER SERVICES,CP,SCHEMES FUNDED FROM BALANCES,CP20,CAPITAL - SCHEMES FUNDED FROM BALANCES,SUPPLIES & SERVICES,4,Consultancy,15,CONSULTANTS FEES,4401,11/11/2016,571171,500.00 ,Capital,COLIN MITCHELL CONSULTING,
Fareham Borough Council,http://statistics.data.gov.uk/id/local-authority/24UE,PLANNING SERVICES,BV13,PLANNING POLICY,BV13C,DEPT of STRATEGIC PLANNING and ENVIRONMENT,SUPPLIES & SERVICES,4,Consultancy,15,CONSULTANTS FEES,4401,11/11/2016,571183,3034.50 ,Revenue,LDA DESIGN CONSULTING LTD,OC307725
Fareham Borough Council,http://statistics.data.gov.uk/id/local-authority/24UE,OTHER REVENUE ACCOUNTS,RV,CONTRACT SERVICES D.S.O.,RV14,DEPT STREETSCENE,SUPPLIES & SERVICES,4,Horticultural,24,SUB-CONTRACTORS CHARGES,4432,11/11/2016,571184,711.96 ,Revenue,THE LANDSCAPE GROUP LIMITED,03542918
Fareham Borough Council,http://statistics.data.gov.uk/id/local-authority/24UE,HOUSING REVENUE ACCOUNT,BV06,RESPONSIVE & VOID MAINTENANCE,5901,DEPT STREETSCENE,PREMISES RELATED EXPENDITURE,2,Environmental Services,18,SPECIAL REFUSE COLLECTIONS,2750,11/11/2016,571185,2559.48 ,Revenue,VEOLIA ES HAMPSHIRE LIMITED,02817856
Fareham Borough Council,http://statistics.data.gov.uk/id/local-authority/24UE,OTHER REVENUE ACCOUNTS,RV,CONTRACT SERVICES D.S.O.,RV14,DEPT STREETSCENE,SUPPLIES & SERVICES,4,Environmental Services,18,TIPPING / INCINERATOR FEES,4425,11/11/2016,571186,1828.40 ,Revenue,VEOLIA ES HAMPSHIRE LIMITED,02817856
Fareham Borough Council,http://statistics.data.gov.uk/id/local-authority/24UE,ENVIRONMENT AND REGULATORY SER,BV03,WASTE COLLECTION,BV03G,DEPT STREETSCENE,EMPLOYEES RELATED EXPENDITURE,1,Human Resources,26,AGENCY WORKERS,1050,11/11/2016,571189,489.28 ,Revenue,BERRY RECRUITMENT LIMITED,07036111
Fareham Borough Council,http://statistics.data.gov.uk/id/local-authority/24UE,ENVIRONMENT AND REGULATORY SER,BV03,WASTE COLLECTION,BV03G,DEPT STREETSCENE,EMPLOYEES RELATED EXPENDITURE,1,Human Resources,26,AGENCY WORKERS,1050,11/11/2016,571189,107.92 ,Revenue,BERRY RECRUITMENT LIMITED,07036111
Fareham Borough Council,http://statistics.data.gov.uk/id/local-authority/24UE,ENVIRONMENT AND REGULATORY SER,BV03,WASTE COLLECTION,BV03G,DEPT STREETSCENE,EMPLOYEES RELATED EXPENDITURE,1,Human Resources,26,AGENCY WORKERS,1050,11/11/2016,571190,597.20 ,Revenue,BERRY RECRUITMENT LIMITED,07036111
Fareham Borough Council,http://statistics.data.gov.uk/id/local-authority/24UE,ENVIRONMENT AND REGULATORY SER,BV03,WASTE COLLECTION,BV03G,DEPT STREETSCENE,EMPLOYEES RELATED EXPENDITURE,1,Human Resources,26,AGENCY WORKERS,1050,11/11/2016,571192,597.20 ,Revenue,BERRY RECRUITMENT LIMITED,07036111
Fareham Borough Council,http://statistics.data.gov.uk/id/local-authority/24UE,ENVIRONMENT AND REGULATORY SER,BV03,WASTE COLLECTION,BV03G,DEPT STREETSCENE,EMPLOYEES RELATED EXPENDITURE,1,Human Resources,26,AGENCY WORKERS,1050,11/11/2016,571193,273.43 ,Revenue,BERRY RECRUITMENT LIMITED,07036111
Fareham Borough Council,http://statistics.data.gov.uk/id/local-authority/24UE,ENVIRONMENT AND REGULATORY SER,BV03,WASTE COLLECTION,BV03G,DEPT STREETSCENE,EMPLOYEES RELATED EXPENDITURE,1,Human Resources,26,AGENCY WORKERS,1050,11/11/2016,571193,327.75 ,Revenue,BERRY RECRUITMENT LIMITED,07036111
Fareham Borough Council,http://statistics.data.gov.uk/id/local-authority/24UE,ENVIRONMENT AND REGULATORY SER,BV03,WASTE COLLECTION,BV03G,DEPT STREETSCENE,EMPLOYEES RELATED EXPENDITURE,1,Human Resources,26,AGENCY WORKERS,1050,11/11/2016,571193,107.93 ,Revenue,BERRY RECRUITMENT LIMITED,07036111
Fareham Borough Council,http://statistics.data.gov.uk/id/local-authority/24UE,ENVIRONMENT AND REGULATORY SER,BV03,WASTE COLLECTION,BV03G,DEPT STREETSCENE,EMPLOYEES RELATED EXPENDITURE,1,Human Resources,26,AGENCY WORKERS,1050,11/11/2016,571193,107.93 ,Revenue,BERRY RECRUITMENT LIMITED,07036111
Fareham Borough Council,http://statistics.data.gov.uk/id/local-authority/24UE,ENVIRONMENT AND REGULATORY SER,BV03,WASTE COLLECTION,BV03G,DEPT STREETSCENE,EMPLOYEES RELATED EXPENDITURE,1,Human Resources,26,AGENCY WORKERS,1050,11/11/2016,571194,817.03 ,Revenue,BERRY RECRUITMENT LIMITED,07036111
Fareham Borough Council,http://statistics.data.gov.uk/id/local-authority/24UE,CAPITAL PROGRAMME - HOUSING SERVICES,CP,NEW HOUSE BUILDING,CP10,CAPITAL - NEW HOUSE BUILDING,SUPPLIES & SERVICES,4,Consultancy,15,CONSULTANTS FEES,4401,11/11/2016,571195,726.80 ,Capital,CBG CONSULTANTS LTD,5384147
Fareham Borough Council,http://statistics.data.gov.uk/id/local-authority/24UE,CULTURAL AND RELATED SERVICES,BV09,RECREATION AND SPORT,BV09B,DEPT STREETSCENE,SUPPLIES & SERVICES,4,"Works - Construction, Repair & Maintenance",39,FURNITURE & EQUIPT. MAINT.,4030,18/11/2016,571196,150.00 ,Revenue,EARTH ANCHORS LTD,00842961
Fareham Borough Council,http://statistics.data.gov.uk/id/local-authority/24UE,CULTURAL AND RELATED SERVICES,BV09,RECREATION AND SPORT,BV09B,DEPT STREETSCENE,SUPPLIES & SERVICES,4,"Works - Construction, Repair & Maintenance",39,FURNITURE & EQUIPT. MAINT.,4030,18/11/2016,571196,48.00 ,Revenue,EARTH ANCHORS LTD,00842961
Fareham Borough Council,http://statistics.data.gov.uk/id/local-authority/24UE,CULTURAL AND RELATED SERVICES,BV09,RECREATION AND SPORT,BV09B,DEPT STREETSCENE,SUPPLIES & SERVICES,4,"Works - Construction, Repair & Maintenance",39,FURNITURE & EQUIPT. MAINT.,4030,18/11/2016,571196,575.00 ,Revenue,EARTH ANCHORS LTD,00842961
Fareham Borough Council,http://statistics.data.gov.uk/id/local-authority/24UE,PLANNING SERVICES,BV13,PLANNING POLICY,BV13C,DEPT of STRATEGIC PLANNING and ENVIRONMENT,SUPPLIES & SERVICES,4,Consultancy,15,CONSULTANTS FEES,4401,11/11/2016,571257,11393.20 ,Revenue,BE LTD T/A BE GROUP,5169344
Fareham Borough Council,http://statistics.data.gov.uk/id/local-authority/24UE,PLANNING SERVICES,BV13,PLANNING POLICY,BV13C,DEPT of STRATEGIC PLANNING and ENVIRONMENT,SUPPLIES & SERVICES,4,Consultancy,15,CONSULTANTS FEES,4401,11/11/2016,571258,3000.00 ,Revenue,BE LTD T/A BE GROUP,5169344
Fareham Borough Council,http://statistics.data.gov.uk/id/local-authority/24UE,BALANCE SHEET,BS,FMS BAL.SHEET & CONTROL ACCT.,BS1,FMS BAL.SHEET & CONTROL ACCT.,CONTROL ACCOUNTS,C001,Financial Services,20,GOVT PROCURE CARD-CASH CONTROL,C114,11/11/2016,571265,2874.34 ,Balance Sheet,NATWEST COMMERCIAL CARDS,929027
Fareham Borough Council,http://statistics.data.gov.uk/id/local-authority/24UE,OTHER REVENUE ACCOUNTS,RV,NON WORK GROUP HOLDING ACCOUNT,RV18,DEPT of FINANCE and RESOURCES,THIRD PARTY PAYMENTS,5,Local/Central Government,98,AUDIT CONTRACT,5601,11/11/2016,571268,3100.00 ,Revenue,PORTSMOUTH CITY COUNCIL,
Fareham Borough Council,http://statistics.data.gov.uk/id/local-authority/24UE,BALANCE SHEET,BS,FMS BAL.SHEET & CONTROL ACCT.,BS1,FMS BAL.SHEET & CONTROL ACCT.,CONTROL ACCOUNTS,C001,Financial Services,20,GOVT PROCURE CARD-CASH CONTROL,C114,11/11/2016,571271,22697.48 ,Balance Sheet,NATWEST COMMERCIAL CARDS,929027
Fareham Borough Council,http://statistics.data.gov.uk/id/local-authority/24UE,OTHER REVENUE ACCOUNTS,RV,CONTRACT SERVICES D.S.O.,RV14,DEPT STREETSCENE,EMPLOYEES RELATED EXPENDITURE,1,Human Resources,26,AGENCY WORKERS,1050,25/11/2016,571273,6911.82 ,Revenue,BUZZ PEOPLE RECRUITMENT LTD,07908887
Fareham Borough Council,http://statistics.data.gov.uk/id/local-authority/24UE,CAPITAL PROGRAMME - HOUSING SERVICES,CP,HOUSE RENOVATION GRANTS,CP11,CAPITAL - HOUSE RENOVATION GRANTS,SUPPLIES & SERVICES,4,Unclassified,,GRANTS AND SUBSCRIPTIONS,4700,11/11/2016,571275,3177.60 ,Capital,HAWORTH ELECTRICAL SERVICES,
Fareham Borough Council,http://statistics.data.gov.uk/id/local-authority/24UE,OTHER REVENUE ACCOUNTS,RV,NON WORK GROUP HOLDING ACCOUNT,RV18,DEPT of FINANCE and RESOURCES,SUPPLIES & SERVICES,4,Stationery,34,STATIONERY,4320,11/11/2016,571277,560.00 ,Revenue,TRADE ENVELOPE PRINTING CO LTD,2193067
Fareham Borough Council,http://statistics.data.gov.uk/id/local-authority/24UE,CAPITAL PROGRAMME - HOUSING SERVICES,CP,HOUSE RENOVATION GRANTS,CP11,CAPITAL - HOUSE RENOVATION GRANTS,SUPPLIES & SERVICES,4,Social Community Care Supplies & Services,32,GRANTS AND SUBSCRIPTIONS,4700,11/11/2016,571278,1675.00 ,Capital,LIFTECH SYSTEMS (SE) LTD,04834054
Fareham Borough Council,http://statistics.data.gov.uk/id/local-authority/24UE,CAPITAL PROGRAMME - HOUSING SERVICES,CP,HOUSE RENOVATION GRANTS,CP11,CAPITAL - HOUSE RENOVATION GRANTS,SUPPLIES & SERVICES,4,Unclassified,,GRANTS AND SUBSCRIPTIONS,4700,11/11/2016,571280,3688.00 ,Capital,GHYLLSIDE MANUFACTURING,
Fareham Borough Council,http://statistics.data.gov.uk/id/local-authority/24UE,GENERAL FUND HOUSING,BV05,HOUSING ADVICE,BV05C,DEPT of COMMUNITY and STREETSCENE,SUPPLIES & SERVICES,4,Information Communication Technology,27,MOBILE TELEPHONES,4514,18/11/2016,571281,237.49 ,Revenue,VODAFONE LIMITED,01471587
Fareham Borough Council,http://statistics.data.gov.uk/id/local-authority/24UE,GENERAL FUND HOUSING,BV05,HOUSING ADVICE,BV05C,DEPT of COMMUNITY and STREETSCENE,SUPPLIES & SERVICES,4,Information Communication Technology,27,MOBILE TELEPHONES,4514,18/11/2016,571281,62.87 ,Revenue,VODAFONE LIMITED,01471587
Fareham Borough Council,http://statistics.data.gov.uk/id/local-authority/24UE,OTHER REVENUE ACCOUNTS,RV,NON WORK GROUP HOLDING ACCOUNT,RV18,DEPT of FINANCE and RESOURCES,SUPPLIES & SERVICES,4,Information Communication Technology,27,MOBILE TELEPHONES,4514,18/11/2016,571281,12118.32 ,Revenue,VODAFONE LIMITED,01471587
Fareham Borough Council,http://statistics.data.gov.uk/id/local-authority/24UE,CAPITAL PROGRAMME - HOUSING SERVICES,CP,HOUSE RENOVATION GRANTS,CP11,CAPITAL - HOUSE RENOVATION GRANTS,SUPPLIES & SERVICES,4,Social Community Care Supplies & Services,32,GRANTS AND SUBSCRIPTIONS,4700,25/11/2016,571286,822.30 ,Capital,FAMILY MOSAIC HOUSING,5640546
Fareham Borough Council,http://statistics.data.gov.uk/id/local-authority/24UE,CAPITAL PROGRAMME - HOUSING SERVICES,CP,HOUSE RENOVATION GRANTS,CP11,CAPITAL - HOUSE RENOVATION GRANTS,SUPPLIES & SERVICES,4,Unclassified,,GRANTS AND SUBSCRIPTIONS,4700,11/11/2016,571287,2705.00 ,Capital,GHYLLSIDE MANUFACTURING,
Fareham Borough Council,http://statistics.data.gov.uk/id/local-authority/24UE,CAPITAL PROGRAMME - HOUSING SERVICES,CP,HOUSE RENOVATION GRANTS,CP11,CAPITAL - HOUSE RENOVATION GRANTS,SUPPLIES & SERVICES,4,Social Community Care Supplies & Services,32,GRANTS AND SUBSCRIPTIONS,4700,11/11/2016,571288,8345.00 ,Capital,LIFTECH SYSTEMS (SE) LTD,04834054
Fareham Borough Council,http://statistics.data.gov.uk/id/local-authority/24UE,BALANCE SHEET,BS,FMS BAL.SHEET & CONTROL ACCT.,BS1,BAL. SHEET - SUSPENSE ACCOUNT,FMS REJECTION SUSPENSE,BS242,Vehicle Management,38,FMS CODING SUSPENSE ACCOUNT,S990,25/11/2016,571293,392.22 ,Balance Sheet,HITACHI CAPITAL VEHICLE SOLUTIONS,1630491
Fareham Borough Council,http://statistics.data.gov.uk/id/local-authority/24UE,BALANCE SHEET,BS,FMS BAL.SHEET & CONTROL ACCT.,BS1,BAL. SHEET - SUSPENSE ACCOUNT,FMS REJECTION SUSPENSE,BS242,Vehicle Management,38,FMS CODING SUSPENSE ACCOUNT,S990,25/11/2016,571293,785.66 ,Balance Sheet,HITACHI CAPITAL VEHICLE SOLUTIONS,1630491
Fareham Borough Council,http://statistics.data.gov.uk/id/local-authority/24UE,ENVIRONMENT AND REGULATORY SER,BV03,WASTE COLLECTION,BV03G,DEPT STREETSCENE,SUPPLIES & SERVICES,4,Local/Central Government,98,TIPPING / INCINERATOR FEES,4425,11/11/2016,571295,50000.00 ,Revenue,HAMPSHIRE COUNTY COUNCIL,
Fareham Borough Council,http://statistics.data.gov.uk/id/local-authority/24UE,HOUSING REVENUE ACCOUNT,BV06,GENERAL ADMINISTRATION EXPENSE,5021,DEPT of COMMUNITY and STREETSCENE,SUPPLIES & SERVICES,4,Financial Services,20,PAYMENT CARD CHARGES,4411,11/11/2016,571296,761.08 ,Revenue,ALLPAY LIMITED,02933191
Fareham Borough Council,http://statistics.data.gov.uk/id/local-authority/24UE,FINANCING & INVESTMENT I&E,BVB02,INVESTMENT PROPERTIES,BVB170,DEPT of FINANCE and RESOURCES,SUPPLIES & SERVICES,4,Unclassified,,CONSULTANTS FEES,4401,11/11/2016,571302,1530.00 ,Revenue,BLAKE MORGAN,
Fareham Borough Council,http://statistics.data.gov.uk/id/local-authority/24UE,OTHER REVENUE ACCOUNTS,RV,NON WORK GROUP HOLDING ACCOUNT,RV18,DEPT of FINANCE and RESOURCES,PREMISES RELATED EXPENDITURE,2,Environmental Services,18,R & M OF FIXED PLANT,2040,11/11/2016,571303,588.10 ,Revenue,CLEARWATER TECHNOLOGY LTD,03659610
Fareham Borough Council,http://statistics.data.gov.uk/id/local-authority/24UE,CAPITAL PROGRAMME - OTHER SERVICES,CP,SCHEMES FUNDED FROM BALANCES,CP20,CAPITAL - SCHEMES FUNDED FROM BALANCES,SUPPLIES & SERVICES,4,Consultancy,15,CONSULTANTS FEES,4401,11/11/2016,571306,4650.00 ,Capital,HELLIER LANGSTON LTD,5013122
Fareham Borough Council,http://statistics.data.gov.uk/id/local-authority/24UE,OTHER REVENUE ACCOUNTS,RV,NON WORK GROUP HOLDING ACCOUNT,RV18,DEPT of FINANCE and RESOURCES,SUPPLIES & SERVICES,4,Building Construction Materials,10,TOOLS & EQUIPMENT,4002,11/11/2016,571307,1520.00 ,Revenue,CONDAIR PLC,01652665
Fareham Borough Council,http://statistics.data.gov.uk/id/local-authority/24UE,OTHER REVENUE ACCOUNTS,RV,NON WORK GROUP HOLDING ACCOUNT,RV18,DEPT of FINANCE and RESOURCES,PREMISES RELATED EXPENDITURE,2,Building Construction Materials,10,R & M OF FIXED PLANT,2040,11/11/2016,571308,1996.00 ,Revenue,CONDAIR PLC,01652665
Fareham Borough Council,http://statistics.data.gov.uk/id/local-authority/24UE,CULTURAL AND RELATED SERVICES,BV09,RECREATION AND SPORT,BV09B,DEPT of COMMUNITY and STREETSCENE,PREMISES RELATED EXPENDITURE,2,Building Construction Materials,10,R & M OF BUILDINGS,2000,11/11/2016,571309,1269.00 ,Revenue,J D C OUTDOOR SERVICES,05941402
Fareham Borough Council,http://statistics.data.gov.uk/id/local-authority/24UE,CULTURAL AND RELATED SERVICES,BV09,RECREATION AND SPORT,BV09B,DEPT of COMMUNITY and STREETSCENE,PREMISES RELATED EXPENDITURE,2,Building Construction Materials,10,R & M OF BUILDINGS,2000,11/11/2016,571310,4049.00 ,Revenue,J D C OUTDOOR SERVICES,05941402
Fareham Borough Council,http://statistics.data.gov.uk/id/local-authority/24UE,OTHER REVENUE ACCOUNTS,RV,NON WORK GROUP HOLDING ACCOUNT,RV18,DEPT of FINANCE and RESOURCES,SUPPLIES & SERVICES,4,Public Transport,36,REMOVAL & STORAGE OF FURNITURE,4090,11/11/2016,571311,603.69 ,Revenue,LEATHERBARROWS REMOVALS&STORAGE LTD,01493244
Fareham Borough Council,http://statistics.data.gov.uk/id/local-authority/24UE,OTHER REVENUE ACCOUNTS,RV,NON WORK GROUP HOLDING ACCOUNT,RV18,DEPT of FINANCE and RESOURCES,PREMISES RELATED EXPENDITURE,2,"Works - Construction, Repair & Maintenance",39,R & M OF BUILDINGS,2000,11/11/2016,571312,3327.52 ,Revenue,A PURKISS BUILDING & DECORATING LTD,3561215
Fareham Borough Council,http://statistics.data.gov.uk/id/local-authority/24UE,OTHER REVENUE ACCOUNTS,RV,NON WORK GROUP HOLDING ACCOUNT,RV18,DEPT of FINANCE and RESOURCES,PREMISES RELATED EXPENDITURE,2,"Works - Construction, Repair & Maintenance",39,R & M OF BUILDINGS,2000,11/11/2016,571314,1290.61 ,Revenue,A PURKISS BUILDING & DECORATING LTD,3561215
Fareham Borough Council,http://statistics.data.gov.uk/id/local-authority/24UE,CAPITAL PROGRAMME - OTHER SERVICES,CP,NEW SCHEMES,CP23,CAPITAL - NEW SCHEMES,PREMISES RELATED EXPENDITURE,2,Environmental Services,18,R & M OF BUILDINGS,2000,11/11/2016,571315,2037.00 ,Capital,R H INSULATION SERVICES LIMITED,02062526
Fareham Borough Council,http://statistics.data.gov.uk/id/local-authority/24UE,FINANCING & INVESTMENT I&E,BVB02,INVESTMENT PROPERTIES,BVB170,DEPT of FINANCE and RESOURCES,PREMISES RELATED EXPENDITURE,2,"Works - Construction, Repair & Maintenance",39,R & M OF BUILDINGS,2000,11/11/2016,571316,3545.31 ,Revenue,REDS BUILDERS LIMITED,4387646
Fareham Borough Council,http://statistics.data.gov.uk/id/local-authority/24UE,FINANCING & INVESTMENT I&E,BVB02,INVESTMENT PROPERTIES,BVB170,DEPT of FINANCE and RESOURCES,PREMISES RELATED EXPENDITURE,2,"Works - Construction, Repair & Maintenance",39,R & M OF BUILDINGS,2000,11/11/2016,571317,1633.35 ,Revenue,REDS BUILDERS LIMITED,4387646
Fareham Borough Council,http://statistics.data.gov.uk/id/local-authority/24UE,HOUSING REVENUE ACCOUNT,BV06,RESPONSIVE & VOID MAINTENANCE,5901,DEPT STREETSCENE,PREMISES RELATED EXPENDITURE,2,Building Construction Materials,10,VOID COSTS - NOT RECHARGEABLE,2011,11/11/2016,571331,1895.70 ,Revenue,P R JACOBS FENCING,
Fareham Borough Council,http://statistics.data.gov.uk/id/local-authority/24UE,HOUSING REVENUE ACCOUNT,BV06,RESPONSIVE & VOID MAINTENANCE,5901,DEPT STREETSCENE,PREMISES RELATED EXPENDITURE,2,Building Construction Materials,10,VOID COSTS - NOT RECHARGEABLE,2011,11/11/2016,571331,1424.00 ,Revenue,P R JACOBS FENCING,
Fareham Borough Council,http://statistics.data.gov.uk/id/local-authority/24UE,PLANNING SERVICES,BV13,DEVELOPMENT CONTROL,BV13B,DEPT of STRATEGIC PLANNING and ENVIRONMENT,SUPPLIES & SERVICES,4,Consultancy,15,COMPUTER SOFTWARE,4531,11/11/2016,571341,3350.00 ,Revenue,R&A SOFTWARE (SYSTEMS) LIMITED,02254852
Fareham Borough Council,http://statistics.data.gov.uk/id/local-authority/24UE,PLANNING SERVICES,BV13,DEVELOPMENT CONTROL,BV13B,DEPT of STRATEGIC PLANNING and ENVIRONMENT,EMPLOYEES RELATED EXPENDITURE,1,Human Resources,26,TRAINING EXPENSES (P.E.Q.),1901,25/11/2016,571342,2850.00 ,Revenue,OXFORD BROOKES UNIVERSITY,
Fareham Borough Council,http://statistics.data.gov.uk/id/local-authority/24UE,PLANNING SERVICES,BV13,PLANNING POLICY,BV13C,DEPT of STRATEGIC PLANNING and ENVIRONMENT,EMPLOYEES RELATED EXPENDITURE,1,Human Resources,26,TRAINING EXPENSES (P.E.Q.),1901,25/11/2016,571342,3560.00 ,Revenue,OXFORD BROOKES UNIVERSITY,
Fareham Borough Council,http://statistics.data.gov.uk/id/local-authority/24UE,ENVIRONMENT AND REGULATORY SER,BV03,WASTE COLLECTION,BV03G,DEPT STREETSCENE,EMPLOYEES RELATED EXPENDITURE,1,Human Resources,26,AGENCY WORKERS,1050,25/11/2016,571343,597.20 ,Revenue,BERRY RECRUITMENT LIMITED,07036111
Fareham Borough Council,http://statistics.data.gov.uk/id/local-authority/24UE,ENVIRONMENT AND REGULATORY SER,BV03,WASTE COLLECTION,BV03G,DEPT STREETSCENE,EMPLOYEES RELATED EXPENDITURE,1,Human Resources,26,AGENCY WORKERS,1050,25/11/2016,571344,597.20 ,Revenue,BERRY RECRUITMENT LIMITED,07036111
Fareham Borough Council,http://statistics.data.gov.uk/id/local-authority/24UE,ENVIRONMENT AND REGULATORY SER,BV03,WASTE COLLECTION,BV03G,DEPT STREETSCENE,EMPLOYEES RELATED EXPENDITURE,1,Human Resources,26,AGENCY WORKERS,1050,25/11/2016,571345,597.20 ,Revenue,BERRY RECRUITMENT LIMITED,07036111
Fareham Borough Council,http://statistics.data.gov.uk/id/local-authority/24UE,ENVIRONMENT AND REGULATORY SER,BV03,WASTE COLLECTION,BV03G,DEPT STREETSCENE,EMPLOYEES RELATED EXPENDITURE,1,Human Resources,26,AGENCY WORKERS,1050,25/11/2016,571346,388.55 ,Revenue,BERRY RECRUITMENT LIMITED,07036111
Fareham Borough Council,http://statistics.data.gov.uk/id/local-authority/24UE,ENVIRONMENT AND REGULATORY SER,BV03,WASTE COLLECTION,BV03G,DEPT STREETSCENE,EMPLOYEES RELATED EXPENDITURE,1,Human Resources,26,AGENCY WORKERS,1050,25/11/2016,571346,208.65 ,Revenue,BERRY RECRUITMENT LIMITED,07036111
Fareham Borough Council,http://statistics.data.gov.uk/id/local-authority/24UE,ENVIRONMENT AND REGULATORY SER,BV03,WASTE COLLECTION,BV03G,DEPT STREETSCENE,EMPLOYEES RELATED EXPENDITURE,1,Human Resources,26,AGENCY WORKERS,1050,25/11/2016,571347,107.92 ,Revenue,BERRY RECRUITMENT LIMITED,07036111
Fareham Borough Council,http://statistics.data.gov.uk/id/local-authority/24UE,ENVIRONMENT AND REGULATORY SER,BV03,WASTE COLLECTION,BV03G,DEPT STREETSCENE,EMPLOYEES RELATED EXPENDITURE,1,Human Resources,26,AGENCY WORKERS,1050,25/11/2016,571347,107.93 ,Revenue,BERRY RECRUITMENT LIMITED,07036111
Fareham Borough Council,http://statistics.data.gov.uk/id/local-authority/24UE,ENVIRONMENT AND REGULATORY SER,BV03,WASTE COLLECTION,BV03G,DEPT STREETSCENE,EMPLOYEES RELATED EXPENDITURE,1,Human Resources,26,AGENCY WORKERS,1050,25/11/2016,571347,381.35 ,Revenue,BERRY RECRUITMENT LIMITED,07036111
Fareham Borough Council,http://statistics.data.gov.uk/id/local-authority/24UE,ENVIRONMENT AND REGULATORY SER,BV03,WASTE COLLECTION,BV03G,DEPT STREETSCENE,EMPLOYEES RELATED EXPENDITURE,1,Human Resources,26,AGENCY WORKERS,1050,25/11/2016,571348,564.82 ,Revenue,BERRY RECRUITMENT LIMITED,07036111
Fareham Borough Council,http://statistics.data.gov.uk/id/local-authority/24UE,GENERAL FUND HOUSING,BV05,HOMELESSNESS,BV05F,DEPT of COMMUNITY and STREETSCENE,SUPPLIES & SERVICES,4,Unclassified,,LOCAL ASSISTANCE PAYMENT,4727,11/11/2016,571354,530.00 ,Revenue,redacted personal data,
Fareham Borough Council,http://statistics.data.gov.uk/id/local-authority/24UE,ENVIRONMENT AND REGULATORY SER,BV03,ENVIRONMENTAL HEALTH,BV03C,DEPT of COMMUNITY and STREETSCENE,SUPPLIES & SERVICES,4,Unclassified,,GRANTS AND SUBSCRIPTIONS,4700,11/11/2016,571355,4500.00 ,Revenue,MR J SURMAN,
Fareham Borough Council,http://statistics.data.gov.uk/id/local-authority/24UE,HOUSING REVENUE ACCOUNT,BV06,RESPONSIVE & VOID MAINTENANCE,5901,DEPT STREETSCENE,PREMISES RELATED EXPENDITURE,2,Building Construction Materials,10,GENERAL REPAIRS,2018,18/11/2016,571358,4376.92 ,Revenue,SOUTHERN ELECTRIC CONTRACTING LTD,2317133
Fareham Borough Council,http://statistics.data.gov.uk/id/local-authority/24UE,HOUSING REVENUE ACCOUNT,BV06,RESPONSIVE & VOID MAINTENANCE,5901,DEPT STREETSCENE,PREMISES RELATED EXPENDITURE,2,"Works - Construction, Repair & Maintenance",39,GENERAL REPAIRS,2018,11/11/2016,571359,17770.12 ,Revenue,BCG ELECTRICAL SERVICES LIMITED,5097428
Fareham Borough Council,http://statistics.data.gov.uk/id/local-authority/24UE,CULTURAL AND RELATED SERVICES,BV09,RECREATION AND SPORT,BV09B,DEPT of COMMUNITY and STREETSCENE,PREMISES RELATED EXPENDITURE,2,"Works - Construction, Repair & Maintenance",39,R & M OF BUILDINGS,2000,11/11/2016,571360,173.15 ,Revenue,BCG ELECTRICAL SERVICES LIMITED,5097428
Fareham Borough Council,http://statistics.data.gov.uk/id/local-authority/24UE,CULTURAL AND RELATED SERVICES,BV09,RECREATION AND SPORT,BV09B,DEPT of COMMUNITY and STREETSCENE,PREMISES RELATED EXPENDITURE,2,"Works - Construction, Repair & Maintenance",39,R & M OF BUILDINGS,2000,11/11/2016,571360,105.19 ,Revenue,BCG ELECTRICAL SERVICES LIMITED,5097428
Fareham Borough Council,http://statistics.data.gov.uk/id/local-authority/24UE,HIGHWAYS ROADS AND TRANSPORT,BV12,PARKING SERVICES,BV12D,DEPT STREETSCENE,PREMISES RELATED EXPENDITURE,2,"Works - Construction, Repair & Maintenance",39,R & M OF BUILDINGS,2000,11/11/2016,571360,147.24 ,Revenue,BCG ELECTRICAL SERVICES LIMITED,5097428
Fareham Borough Council,http://statistics.data.gov.uk/id/local-authority/24UE,ENVIRONMENT AND REGULATORY SER,BV03,ENVIRONMENTAL HEALTH,BV03C,DEPT STREETSCENE,PREMISES RELATED EXPENDITURE,2,"Works - Construction, Repair & Maintenance",39,R & M OF BUILDINGS,2000,11/11/2016,571360,74.28 ,Revenue,BCG ELECTRICAL SERVICES LIMITED,5097428
Fareham Borough Council,http://statistics.data.gov.uk/id/local-authority/24UE,HOUSING REVENUE ACCOUNT,BV06,RESPONSIVE & VOID MAINTENANCE,5901,DEPT STREETSCENE,PREMISES RELATED EXPENDITURE,2,"Works - Construction, Repair & Maintenance",39,GENERAL REPAIRS,2018,11/11/2016,571360,4608.16 ,Revenue,BCG ELECTRICAL SERVICES LIMITED,5097428
Fareham Borough Council,http://statistics.data.gov.uk/id/local-authority/24UE,OTHER REVENUE ACCOUNTS,RV,NON WORK GROUP HOLDING ACCOUNT,RV18,DEPT of FINANCE and RESOURCES,PREMISES RELATED EXPENDITURE,2,"Works - Construction, Repair & Maintenance",39,R & M OF BUILDINGS,2000,11/11/2016,571360,1624.11 ,Revenue,BCG ELECTRICAL SERVICES LIMITED,5097428
Fareham Borough Council,http://statistics.data.gov.uk/id/local-authority/24UE,OTHER REVENUE ACCOUNTS,RV,NON WORK GROUP HOLDING ACCOUNT,RV18,DEPT of FINANCE and RESOURCES,PREMISES RELATED EXPENDITURE,2,"Works - Construction, Repair & Maintenance",39,R & M OF BUILDINGS,2000,11/11/2016,571360,54.00 ,Revenue,BCG ELECTRICAL SERVICES LIMITED,5097428
Fareham Borough Council,http://statistics.data.gov.uk/id/local-authority/24UE,CENTRAL SERVICES,BV07,CENTRAL SERVICES TO THE PUBLIC,BV07B,DEPT of FINANCE and RESOURCES,SUPPLIES & SERVICES,4,Facilities & Management Services,19,EXTERNAL PRINTING,4310,11/11/2016,571361,10282.42 ,Revenue,MPS MARKETING SERVICES LTD,6360656
Fareham Borough Council,http://statistics.data.gov.uk/id/local-authority/24UE,CENTRAL SERVICES,BV07,CENTRAL SERVICES TO THE PUBLIC,BV07B,DEPT of FINANCE and RESOURCES,SUPPLIES & SERVICES,4,Facilities & Management Services,19,EXTERNAL PRINTING,4310,11/11/2016,571362,2548.91 ,Revenue,MPS MARKETING SERVICES LTD,6360656
Fareham Borough Council,http://statistics.data.gov.uk/id/local-authority/24UE,CENTRAL SERVICES,BV07,CENTRAL SERVICES TO THE PUBLIC,BV07B,DEPT of FINANCE and RESOURCES,SUPPLIES & SERVICES,4,Facilities & Management Services,19,EXTERNAL PRINTING,4310,11/11/2016,571363,2519.60 ,Revenue,MPS MARKETING SERVICES LTD,6360656
Fareham Borough Council,http://statistics.data.gov.uk/id/local-authority/24UE,CENTRAL SERVICES,BV07,CENTRAL SERVICES TO THE PUBLIC,BV07B,DEPT of FINANCE and RESOURCES,SUPPLIES & SERVICES,4,Facilities & Management Services,19,EXTERNAL PRINTING,4310,11/11/2016,571364,604.04 ,Revenue,MPS MARKETING SERVICES LTD,6360656
Fareham Borough Council,http://statistics.data.gov.uk/id/local-authority/24UE,CENTRAL SERVICES,BV07,CENTRAL SERVICES TO THE PUBLIC,BV07B,DEPT of FINANCE and RESOURCES,SUPPLIES & SERVICES,4,Facilities & Management Services,19,EXTERNAL PRINTING,4310,11/11/2016,571365,3886.56 ,Revenue,MPS MARKETING SERVICES LTD,6360656
Fareham Borough Council,http://statistics.data.gov.uk/id/local-authority/24UE,CENTRAL SERVICES,BV07,CENTRAL SERVICES TO THE PUBLIC,BV07B,DEPT of FINANCE and RESOURCES,SUPPLIES & SERVICES,4,Facilities & Management Services,19,EXTERNAL PRINTING,4310,11/11/2016,571366,3760.69 ,Revenue,MPS MARKETING SERVICES LTD,6360656
Fareham Borough Council,http://statistics.data.gov.uk/id/local-authority/24UE,CULTURAL AND RELATED SERVICES,BV09,RECREATION AND SPORT,BV09B,DEPT of COMMUNITY and STREETSCENE,PREMISES RELATED EXPENDITURE,2,Environmental Services,18,R & M OF BUILDINGS,2000,11/11/2016,571367,287.38 ,Revenue,CLEARWATER TECHNOLOGY LTD,03659610
Fareham Borough Council,http://statistics.data.gov.uk/id/local-authority/24UE,CULTURAL AND RELATED SERVICES,BV09,RECREATION AND SPORT,BV09B,DEPT of COMMUNITY and STREETSCENE,PREMISES RELATED EXPENDITURE,2,Environmental Services,18,R & M OF BUILDINGS,2000,11/11/2016,571367,38.16 ,Revenue,CLEARWATER TECHNOLOGY LTD,03659610
Fareham Borough Council,http://statistics.data.gov.uk/id/local-authority/24UE,OTHER REVENUE ACCOUNTS,RV,NON WORK GROUP HOLDING ACCOUNT,RV18,DEPT of FINANCE and RESOURCES,PREMISES RELATED EXPENDITURE,2,Environmental Services,18,R & M OF BUILDINGS,2000,11/11/2016,571367,1031.84 ,Revenue,CLEARWATER TECHNOLOGY LTD,03659610
Fareham Borough Council,http://statistics.data.gov.uk/id/local-authority/24UE,OTHER REVENUE ACCOUNTS,RV,NON WORK GROUP HOLDING ACCOUNT,RV18,DEPT of FINANCE and RESOURCES,PREMISES RELATED EXPENDITURE,2,Environmental Services,18,R & M OF BUILDINGS,2000,11/11/2016,571367,35.08 ,Revenue,CLEARWATER TECHNOLOGY LTD,03659610
Fareham Borough Council,http://statistics.data.gov.uk/id/local-authority/24UE,ENVIRONMENT AND REGULATORY SER,BV03,CEMETERIES CREM & MORTUARY,BV03A,DEPT STREETSCENE,PREMISES RELATED EXPENDITURE,2,Building Construction Materials,10,R & M OF BUILDINGS,2000,25/11/2016,571368,26.89 ,Revenue,TSG BUILDING SERVICES,03908728
Fareham Borough Council,http://statistics.data.gov.uk/id/local-authority/24UE,CULTURAL AND RELATED SERVICES,BV09,RECREATION AND SPORT,BV09B,DEPT of COMMUNITY and STREETSCENE,PREMISES RELATED EXPENDITURE,2,Building Construction Materials,10,R & M OF BUILDINGS,2000,25/11/2016,571368,100.15 ,Revenue,TSG BUILDING SERVICES,03908728
Fareham Borough Council,http://statistics.data.gov.uk/id/local-authority/24UE,CULTURAL AND RELATED SERVICES,BV09,CULTURE AND HERITAGE,BV09A,DEPT of COMMUNITY and STREETSCENE,PREMISES RELATED EXPENDITURE,2,Building Construction Materials,10,R & M OF BUILDINGS,2000,25/11/2016,571368,97.38 ,Revenue,TSG BUILDING SERVICES,03908728
Fareham Borough Council,http://statistics.data.gov.uk/id/local-authority/24UE,CULTURAL AND RELATED SERVICES,BV09,RECREATION AND SPORT,BV09B,DEPT of COMMUNITY and STREETSCENE,PREMISES RELATED EXPENDITURE,2,Building Construction Materials,10,R & M OF BUILDINGS,2000,25/11/2016,571368,100.15 ,Revenue,TSG BUILDING SERVICES,03908728
Fareham Borough Council,http://statistics.data.gov.uk/id/local-authority/24UE,CAPITAL PROGRAMME - HOUSING SERVICES,CP,RENOVATION OF L.A. DWELLINGS,CP10,CAPITAL - IMPROVEMENTS WORK/MODERNIS'N,PREMISES RELATED EXPENDITURE,2,Building Construction Materials,10,R & M OF BUILDINGS,2000,25/11/2016,571368,48299.42 ,Capital,TSG BUILDING SERVICES,03908728
Fareham Borough Council,http://statistics.data.gov.uk/id/local-authority/24UE,HOUSING REVENUE ACCOUNT,BV06,RESPONSIVE & VOID MAINTENANCE,5901,DEPT STREETSCENE,PREMISES RELATED EXPENDITURE,2,Building Construction Materials,10,GAS SERVICING & ASSOC REPAIRS,2029,25/11/2016,571368,26286.43 ,Revenue,TSG BUILDING SERVICES,03908728
Fareham Borough Council,http://statistics.data.gov.uk/id/local-authority/24UE,OTHER REVENUE ACCOUNTS,RV,NON WORK GROUP HOLDING ACCOUNT,RV18,DEPT of FINANCE and RESOURCES,PREMISES RELATED EXPENDITURE,2,Building Construction Materials,10,R & M OF FIXED PLANT,2040,25/11/2016,571368,74.20 ,Revenue,TSG BUILDING SERVICES,03908728
Fareham Borough Council,http://statistics.data.gov.uk/id/local-authority/24UE,OTHER REVENUE ACCOUNTS,RV,NON WORK GROUP HOLDING ACCOUNT,RV18,DEPT of FINANCE and RESOURCES,PREMISES RELATED EXPENDITURE,2,Building Construction Materials,10,R & M OF FIXED PLANT,2040,25/11/2016,571368,96.42 ,Revenue,TSG BUILDING SERVICES,03908728
Fareham Borough Council,http://statistics.data.gov.uk/id/local-authority/24UE,CAPITAL PROGRAMME - HOUSING SERVICES,CP,HOUSE RENOVATION GRANTS,CP11,CAPITAL - HOUSE RENOVATION GRANTS,SUPPLIES & SERVICES,4,Unclassified,,GRANTS AND SUBSCRIPTIONS,4700,11/11/2016,571375,2404.17 ,Capital,GHYLLSIDE MANUFACTURING,
Fareham Borough Council,http://statistics.data.gov.uk/id/local-authority/24UE,HOUSING REVENUE ACCOUNT,BV06,GENERAL ADMINISTRATION EXPENSE,5021,DEPT of COMMUNITY and STREETSCENE,SUPPLIES & SERVICES,4,Unclassified,,TENANTS REMOVAL EXPENSES,4952,11/11/2016,571378,2158.00 ,Revenue,redacted personal data,
Fareham Borough Council,http://statistics.data.gov.uk/id/local-authority/24UE,CAPITAL PROGRAMME - HOUSING SERVICES,CP,HOUSE RENOVATION GRANTS,CP11,CAPITAL - HOUSE RENOVATION GRANTS,SUPPLIES & SERVICES,4,"Works - Construction, Repair & Maintenance",39,GRANTS AND SUBSCRIPTIONS,4700,11/11/2016,571386,828.00 ,Capital,KEMP BUILDERS,
Fareham Borough Council,http://statistics.data.gov.uk/id/local-authority/24UE,CULTURAL AND RELATED SERVICES,BV09,CULTURE AND HERITAGE,BV09A,DEPT of COMMUNITY and STREETSCENE,PREMISES RELATED EXPENDITURE,2,Utilities,37,ELECTRICITY,2120,11/11/2016,571387,1886.93 ,Revenue,EDF ENERGY,02366852
Fareham Borough Council,http://statistics.data.gov.uk/id/local-authority/24UE,OTHER REVENUE ACCOUNTS,RV,NON WORK GROUP HOLDING ACCOUNT,RV18,DEPT of FINANCE and RESOURCES,PREMISES RELATED EXPENDITURE,2,Utilities,37,ELECTRICITY,2120,11/11/2016,571387,8602.10 ,Revenue,EDF ENERGY,02366852
Fareham Borough Council,http://statistics.data.gov.uk/id/local-authority/24UE,HIGHWAYS ROADS AND TRANSPORT,BV12,PUBLIC TRANSPORT,BV12E,DEPT of FINANCE and RESOURCES,SUPPLIES & SERVICES,4,Local/Central Government,98,GRANT TO DIAL-A-RIDE,4705,11/11/2016,571388,13905.60 ,Revenue,HAMPSHIRE COUNTY COUNCIL,
Fareham Borough Council,http://statistics.data.gov.uk/id/local-authority/24UE,CENTRAL SERVICES,BV07,CENTRAL SERVICES TO THE PUBLIC,BV07B,DEPT of COMMUNITY and STREETSCENE,SUPPLIES & SERVICES,4,Unclassified,,GRANTS AND SUBSCRIPTIONS,4700,11/11/2016,571391,1889.80 ,Revenue,FAREHAM HEATHENS RUGBY CLUB,
Fareham Borough Council,http://statistics.data.gov.uk/id/local-authority/24UE,GENERAL FUND HOUSING,BV05,HOMELESSNESS,BV05F,DEPT of COMMUNITY and STREETSCENE,SUPPLIES & SERVICES,4,Unclassified,,LOCAL ASSISTANCE PAYMENT,4727,25/11/2016,571392,550.00 ,Revenue,redacted personal data,
Fareham Borough Council,http://statistics.data.gov.uk/id/local-authority/24UE,GENERAL FUND HOUSING,BV05,HOMELESSNESS,BV05F,DEPT of COMMUNITY and STREETSCENE,SUPPLIES & SERVICES,4,Unclassified,,LOCAL ASSISTANCE PAYMENT,4727,25/11/2016,571393,550.00 ,Revenue,redacted personal data,
Fareham Borough Council,http://statistics.data.gov.uk/id/local-authority/24UE,HOUSING REVENUE ACCOUNT,BV06,RESPONSIVE & VOID MAINTENANCE,5901,DEPT STREETSCENE,PREMISES RELATED EXPENDITURE,2,Unclassified,41,GENERAL REPAIRS,2018,11/11/2016,571394,803.98 ,Revenue,ARJOHUNTLEIGH UK,FC024121
Fareham Borough Council,http://statistics.data.gov.uk/id/local-authority/24UE,CAPITAL PROGRAMME - OTHER SERVICES,CP,SCHEMES FUNDED FROM BALANCES,CP20,CAPITAL - SCHEMES FUNDED FROM BALANCES,SUPPLIES & SERVICES,4,Consultancy,15,CONSULTANTS FEES,4401,11/11/2016,571404,764.50 ,Capital,BAQUS GROUP PLC,6013357
Fareham Borough Council,http://statistics.data.gov.uk/id/local-authority/24UE,CAPITAL PROGRAMME - OTHER SERVICES,CP,SCHEMES FUNDED FROM BALANCES,CP20,CAPITAL - SCHEMES FUNDED FROM BALANCES,SUPPLIES & SERVICES,4,Consultancy,15,CONSULTANTS FEES,4401,11/11/2016,571404,1664.60 ,Capital,BAQUS GROUP PLC,6013357
Fareham Borough Council,http://statistics.data.gov.uk/id/local-authority/24UE,CAPITAL PROGRAMME - OTHER SERVICES,CP,SCHEMES FUNDED FROM BALANCES,CP20,CAPITAL - SCHEMES FUNDED FROM BALANCES,SUPPLIES & SERVICES,4,Consultancy,15,CONSULTANTS FEES,4401,11/11/2016,571404,133.90 ,Capital,BAQUS GROUP PLC,6013357
Fareham Borough Council,http://statistics.data.gov.uk/id/local-authority/24UE,GENERAL FUND HOUSING,BV05,HOUSING BENEFIT ADMINISTRATION,BV05H,DEPT of COMMUNITY and STREETSCENE,SUPPLIES & SERVICES,4,Financial Services,20,SOFTWARE LICENCES,4530,11/11/2016,571406,2170.00 ,Revenue,CALL CREDIT LIMITED,3961870
Fareham Borough Council,http://statistics.data.gov.uk/id/local-authority/24UE,CENTRAL SERVICES,BV07,CENTRAL SERVICES TO THE PUBLIC,BV07B,DEPT of COMMUNITY and STREETSCENE,SUPPLIES & SERVICES,4,Financial Services,20,BANK CHARGES,4954,11/11/2016,571407,1067.93 ,Revenue,ALLPAY LIMITED,02933191
Fareham Borough Council,http://statistics.data.gov.uk/id/local-authority/24UE,CENTRAL SERVICES,BV07,CENTRAL SERVICES TO THE PUBLIC,BV07B,DEPT of COMMUNITY and STREETSCENE,SUPPLIES & SERVICES,4,Financial Services,20,SPECIAL EXPENDITURE,4999,11/11/2016,571407,228.86 ,Revenue,ALLPAY LIMITED,02933191
Fareham Borough Council,http://statistics.data.gov.uk/id/local-authority/24UE,CENTRAL SERVICES,BV07,CENTRAL SERVICES TO THE PUBLIC,BV07B,DEPT of COMMUNITY and STREETSCENE,SUPPLIES & SERVICES,4,Financial Services,20,BANK CHARGES,4954,11/11/2016,571407,47.86 ,Revenue,ALLPAY LIMITED,02933191
Fareham Borough Council,http://statistics.data.gov.uk/id/local-authority/24UE,CENTRAL SERVICES,BV07,CENTRAL SERVICES TO THE PUBLIC,BV07B,DEPT of COMMUNITY and STREETSCENE,SUPPLIES & SERVICES,4,Financial Services,20,SPECIAL EXPENDITURE,4999,11/11/2016,571407,2.15 ,Revenue,ALLPAY LIMITED,02933191
Fareham Borough Council,http://statistics.data.gov.uk/id/local-authority/24UE,CENTRAL SERVICES,BV07,CENTRAL SERVICES TO THE PUBLIC,BV07B,DEPT of COMMUNITY and STREETSCENE,SUPPLIES & SERVICES,4,Information Communication Technology,27,COMPUTER SOFTWARE,4531,11/11/2016,571411,654.99 ,Revenue,FORENSIC MOBILE SERVICES LIMITED,04705881
Fareham Borough Council,http://statistics.data.gov.uk/id/local-authority/24UE,CORPORATE & DEMOCRATIC CORE,BV07A,CORPORATE MANAGEMENT,BV07AB,DEPT of FINANCE and RESOURCES,SUPPLIES & SERVICES,4,Financial Services,20,EXTERNAL AUDIT FEES,4419,18/11/2016,571412,14886.00 ,Revenue,ERNST & YOUNG LLP,OC300001
Fareham Borough Council,http://statistics.data.gov.uk/id/local-authority/24UE,HOUSING REVENUE ACCOUNT,BV06,RESPONSIVE & VOID MAINTENANCE,5901,DEPT STREETSCENE,PREMISES RELATED EXPENDITURE,2,Environmental Services,18,GENERAL REPAIRS,2018,11/11/2016,571428,720.00 ,Revenue,R H INSULATION SERVICES LIMITED,02062526
Fareham Borough Council,http://statistics.data.gov.uk/id/local-authority/24UE,HOUSING REVENUE ACCOUNT,BV06,RESPONSIVE & VOID MAINTENANCE,5901,DEPT STREETSCENE,PREMISES RELATED EXPENDITURE,2,Building Construction Materials,10,GENERAL REPAIRS,2018,11/11/2016,571431,-1264.89 ,Revenue,P R JACOBS FENCING,
Fareham Borough Council,http://statistics.data.gov.uk/id/local-authority/24UE,HOUSING REVENUE ACCOUNT,BV06,RESPONSIVE & VOID MAINTENANCE,5901,DEPT STREETSCENE,PREMISES RELATED EXPENDITURE,2,Building Construction Materials,10,GENERAL REPAIRS,2018,11/11/2016,571431,679.89 ,Revenue,P R JACOBS FENCING,
Fareham Borough Council,http://statistics.data.gov.uk/id/local-authority/24UE,HOUSING REVENUE ACCOUNT,BV06,RESPONSIVE & VOID MAINTENANCE,5901,DEPT STREETSCENE,PREMISES RELATED EXPENDITURE,2,Building Construction Materials,10,GENERAL REPAIRS,2018,11/11/2016,571431,585.00 ,Revenue,P R JACOBS FENCING,
Fareham Borough Council,http://statistics.data.gov.uk/id/local-authority/24UE,HOUSING REVENUE ACCOUNT,BV06,RESPONSIVE & VOID MAINTENANCE,5901,DEPT STREETSCENE,PREMISES RELATED EXPENDITURE,2,Building Construction Materials,10,GENERAL REPAIRS,2018,11/11/2016,571431,1264.89 ,Revenue,P R JACOBS FENCING,
Fareham Borough Council,http://statistics.data.gov.uk/id/local-authority/24UE,HOUSING REVENUE ACCOUNT,BV06,RESPONSIVE & VOID MAINTENANCE,5901,DEPT STREETSCENE,SUPPLIES & SERVICES,4,Building Construction Materials,10,MATERIALS (OPERATIONAL),4007,11/11/2016,571432,616.31 ,Revenue,WRP WINDOWS LTD T/A MILTON GLASS SUPPLIES,2164547
Fareham Borough Council,http://statistics.data.gov.uk/id/local-authority/24UE,OTHER REVENUE ACCOUNTS,RV,NON WORK GROUP HOLDING ACCOUNT,RV18,DEPT of FINANCE and RESOURCES,SUPPLIES & SERVICES,4,Building Construction Materials,10,MATERIALS (OPERATIONAL),4007,11/11/2016,571432,523.51 ,Revenue,WRP WINDOWS LTD T/A MILTON GLASS SUPPLIES,2164547
Fareham Borough Council,http://statistics.data.gov.uk/id/local-authority/24UE,HOUSING REVENUE ACCOUNT,BV06,RESPONSIVE & VOID MAINTENANCE,5901,DEPT STREETSCENE,SUPPLIES & SERVICES,4,"Works - Construction, Repair & Maintenance",39,MATERIALS (OPERATIONAL),4007,11/11/2016,571451,1527.77 ,Revenue,HOWDENS JOINERY LTD,00526923
Fareham Borough Council,http://statistics.data.gov.uk/id/local-authority/24UE,OTHER REVENUE ACCOUNTS,RV,CONTRACT SERVICES D.S.O.,RV14,DEPT STREETSCENE,SUPPLIES & SERVICES,4,"Works - Construction, Repair & Maintenance",39,MATERIALS (OPERATIONAL),4007,11/11/2016,571451,175.39 ,Revenue,HOWDENS JOINERY LTD,00526923
Fareham Borough Council,http://statistics.data.gov.uk/id/local-authority/24UE,OTHER REVENUE ACCOUNTS,RV,NON WORK GROUP HOLDING ACCOUNT,RV18,DEPT of FINANCE and RESOURCES,SUPPLIES & SERVICES,4,"Works - Construction, Repair & Maintenance",39,MATERIALS (OPERATIONAL),4007,11/11/2016,571451,15.96 ,Revenue,HOWDENS JOINERY LTD,00526923
Fareham Borough Council,http://statistics.data.gov.uk/id/local-authority/24UE,CULTURAL AND RELATED SERVICES,BV09,RECREATION AND SPORT,BV09B,DEPT of COMMUNITY and STREETSCENE,SUPPLIES & SERVICES,4,Building Construction Materials,10,MATERIALS (OPERATIONAL),4007,11/11/2016,571455,169.89 ,Revenue,CITY ELECTRICAL FACTORS LTD,00336408
Fareham Borough Council,http://statistics.data.gov.uk/id/local-authority/24UE,HOUSING REVENUE ACCOUNT,BV06,RESPONSIVE & VOID MAINTENANCE,5901,DEPT STREETSCENE,SUPPLIES & SERVICES,4,Building Construction Materials,10,MATERIALS (OPERATIONAL),4007,11/11/2016,571455,161.41 ,Revenue,CITY ELECTRICAL FACTORS LTD,00336408
Fareham Borough Council,http://statistics.data.gov.uk/id/local-authority/24UE,OTHER REVENUE ACCOUNTS,RV,CONTRACT SERVICES D.S.O.,RV14,DEPT STREETSCENE,SUPPLIES & SERVICES,4,Building Construction Materials,10,MATERIALS (OPERATIONAL),4007,11/11/2016,571455,1588.26 ,Revenue,CITY ELECTRICAL FACTORS LTD,00336408
Fareham Borough Council,http://statistics.data.gov.uk/id/local-authority/24UE,CORPORATE & DEMOCRATIC CORE,BV07A,CORPORATE MANAGEMENT,BV07AB,DEPT of FINANCE and RESOURCES,SUPPLIES & SERVICES,4,Information Communication Technology,27,PUBLICITY AND PROMOTION,4912,18/11/2016,571732,25.00 ,Revenue,TIMICO LTD,04841830
Fareham Borough Council,http://statistics.data.gov.uk/id/local-authority/24UE,OTHER REVENUE ACCOUNTS,RV,NON WORK GROUP HOLDING ACCOUNT,RV18,DEPT of FINANCE and RESOURCES,SUPPLIES & SERVICES,4,Information Communication Technology,27,SOFTWARE LICENCES,4530,18/11/2016,571732,2151.83 ,Revenue,TIMICO LTD,04841830
Fareham Borough Council,http://statistics.data.gov.uk/id/local-authority/24UE,OTHER REVENUE ACCOUNTS,RV,CONTRACT SERVICES D.S.O.,RV14,DEPT of STRATEGIC PLANNING and ENVIRONMENT,SUPPLIES & SERVICES,4,Local/Central Government,98,SUB-CONTRACTORS CHARGES,4432,18/11/2016,571733,554.40 ,Revenue,RUSHMOOR BOROUGH COUNCIL,
Fareham Borough Council,http://statistics.data.gov.uk/id/local-authority/24UE,ENVIRONMENT AND REGULATORY SER,BV03,CEMETERIES CREM & MORTUARY,BV03A,DEPT STREETSCENE,PREMISES RELATED EXPENDITURE,2,Utilities,37,ELECTRICITY,2120,18/11/2016,571736,23.54 ,Revenue,BRITISH GAS BUSINESS,03078711
Fareham Borough Council,http://statistics.data.gov.uk/id/local-authority/24UE,FINANCING & INVESTMENT I&E,BVB02,INVESTMENT PROPERTIES,BVB170,DEPT of FINANCE and RESOURCES,PREMISES RELATED EXPENDITURE,2,Utilities,37,ELECTRICITY,2120,18/11/2016,571736,265.06 ,Revenue,BRITISH GAS BUSINESS,03078711
Fareham Borough Council,http://statistics.data.gov.uk/id/local-authority/24UE,CULTURAL AND RELATED SERVICES,BV09,RECREATION AND SPORT,BV09B,DEPT of COMMUNITY and STREETSCENE,PREMISES RELATED EXPENDITURE,2,Utilities,37,ELECTRICITY,2120,18/11/2016,571736,224.40 ,Revenue,BRITISH GAS BUSINESS,03078711
Fareham Borough Council,http://statistics.data.gov.uk/id/local-authority/24UE,CULTURAL AND RELATED SERVICES,BV09,RECREATION AND SPORT,BV09B,DEPT of COMMUNITY and STREETSCENE,PREMISES RELATED EXPENDITURE,2,Utilities,37,ELECTRICITY,2120,18/11/2016,571736,710.22 ,Revenue,BRITISH GAS BUSINESS,03078711
Fareham Borough Council,http://statistics.data.gov.uk/id/local-authority/24UE,HIGHWAYS ROADS AND TRANSPORT,BV12,PARKING SERVICES,BV12D,DEPT STREETSCENE,PREMISES RELATED EXPENDITURE,2,Utilities,37,ELECTRICITY,2120,18/11/2016,571736,923.55 ,Revenue,BRITISH GAS BUSINESS,03078711
Fareham Borough Council,http://statistics.data.gov.uk/id/local-authority/24UE,ENVIRONMENT AND REGULATORY SER,BV03,ENVIRONMENTAL HEALTH,BV03C,DEPT STREETSCENE,PREMISES RELATED EXPENDITURE,2,Utilities,37,ELECTRICITY,2120,18/11/2016,571736,281.02 ,Revenue,BRITISH GAS BUSINESS,03078711
Fareham Borough Council,http://statistics.data.gov.uk/id/local-authority/24UE,HOUSING REVENUE ACCOUNT,BV06,COMMUNAL HEATING SERVICES,5025,DEPT of COMMUNITY and STREETSCENE,PREMISES RELATED EXPENDITURE,2,Utilities,37,ELECTRICITY,2120,18/11/2016,571736,69.60 ,Revenue,BRITISH GAS BUSINESS,03078711
Fareham Borough Council,http://statistics.data.gov.uk/id/local-authority/24UE,HOUSING REVENUE ACCOUNT,BV06,COMMUNAL HEATING SERVICES,5025,DEPT of COMMUNITY and STREETSCENE,PREMISES RELATED EXPENDITURE,2,Utilities,37,ELECTRICITY,2120,18/11/2016,571736,3171.83 ,Revenue,BRITISH GAS BUSINESS,03078711
Fareham Borough Council,http://statistics.data.gov.uk/id/local-authority/24UE,HOUSING REVENUE ACCOUNT,BV06,COMMUNAL LIGHTING,5026,DEPT of COMMUNITY and STREETSCENE,PREMISES RELATED EXPENDITURE,2,Utilities,37,ELECTRICITY,2120,18/11/2016,571736,402.87 ,Revenue,BRITISH GAS BUSINESS,03078711
Fareham Borough Council,http://statistics.data.gov.uk/id/local-authority/24UE,HOUSING REVENUE ACCOUNT,BV06,COMMUNAL LIGHTING,5026,DEPT of COMMUNITY and STREETSCENE,PREMISES RELATED EXPENDITURE,2,Utilities,37,ELECTRICITY,2120,18/11/2016,571736,1200.40 ,Revenue,BRITISH GAS BUSINESS,03078711
Fareham Borough Council,http://statistics.data.gov.uk/id/local-authority/24UE,HOUSING REVENUE ACCOUNT,BV06,OTHER COMMUNAL SERVICES,5034,DEPT of COMMUNITY and STREETSCENE,PREMISES RELATED EXPENDITURE,2,Utilities,37,AERIALS & TV OUTLETS,2540,18/11/2016,571736,23.46 ,Revenue,BRITISH GAS BUSINESS,03078711
Fareham Borough Council,http://statistics.data.gov.uk/id/local-authority/24UE,BALANCE SHEET,BS,BAL. SHEET - GENERAL FUND,BS1,BAL. SHEET - GENERAL FUND,BALANCES & RESERVES,BS190,Local/Central Government,98,SOLENT DISTURBANCE MIT PROJECT,E326,18/11/2016,571738,6364.00 ,Balance Sheet,TEST VALLEY BOROUGH COUNCIL,
Fareham Borough Council,http://statistics.data.gov.uk/id/local-authority/24UE,CAPITAL PROGRAMME - HOUSING SERVICES,CP,HOUSE RENOVATION GRANTS,CP11,CAPITAL - HOUSE RENOVATION GRANTS,SUPPLIES & SERVICES,4,Unclassified,,GRANTS AND SUBSCRIPTIONS,4700,18/11/2016,571739,6630.00 ,Capital,J WASSELL BUILDERS LIMITED,04487976
Fareham Borough Council,http://statistics.data.gov.uk/id/local-authority/24UE,CAPITAL PROGRAMME - HOUSING SERVICES,CP,HOUSE RENOVATION GRANTS,CP11,CAPITAL - HOUSE RENOVATION GRANTS,SUPPLIES & SERVICES,4,Unclassified,,GRANTS AND SUBSCRIPTIONS,4700,18/11/2016,571741,7740.82 ,Capital,VISTAR CONSTRUCTION LTD,03576772
Fareham Borough Council,http://statistics.data.gov.uk/id/local-authority/24UE,CAPITAL PROGRAMME - OTHER SERVICES,CP,SCHEMES FUNDED FROM BALANCES,CP20,CAPITAL - SCHEMES FUNDED FROM BALANCES,PREMISES RELATED EXPENDITURE,2,Unclassified,,LAND/BUILDINGS ACQUISITIONS,2601,18/11/2016,571742,11150000.00 ,Capital,NABARRD LLP CLIENT ACCOUNT,
Fareham Borough Council,http://statistics.data.gov.uk/id/local-authority/24UE,CULTURAL AND RELATED SERVICES,BV09,CULTURE AND HERITAGE,BV09A,DEPT of COMMUNITY and STREETSCENE,SUPPLIES & SERVICES,4,Financial Services,20,CREDIT CARD CHARGES,4957,18/11/2016,571751,97.39 ,Revenue,WORLDPAY,07316500
Fareham Borough Council,http://statistics.data.gov.uk/id/local-authority/24UE,CULTURAL AND RELATED SERVICES,BV09,CULTURE AND HERITAGE,BV09A,DEPT of COMMUNITY and STREETSCENE,SUPPLIES & SERVICES,4,Financial Services,20,CREDIT CARD CHARGES,4957,18/11/2016,571751,725.71 ,Revenue,WORLDPAY,07316500
Fareham Borough Council,http://statistics.data.gov.uk/id/local-authority/24UE,FINANCING & INVESTMENT I&E,BVB02,INVESTMENT PROPERTIES,BVB170,DEPT of FINANCE and RESOURCES,PREMISES RELATED EXPENDITURE,2,Facilities & Management Services,19,SERVICE CHARGES,2260,18/11/2016,571760,1081.08 ,Revenue,HALL & WOODHOUSE LTD,00057696
Fareham Borough Council,http://statistics.data.gov.uk/id/local-authority/24UE,OTHER REVENUE ACCOUNTS,RV,NON WORK GROUP HOLDING ACCOUNT,RV18,DEPT of FINANCE and RESOURCES,PREMISES RELATED EXPENDITURE,2,Facilities & Management Services,19,R & M OF FIXED PLANT,2040,25/11/2016,571762,1146.80 ,Revenue,HONEYWELL CONTROL SYSTEMS LTD,00217803
Fareham Borough Council,http://statistics.data.gov.uk/id/local-authority/24UE,CULTURAL AND RELATED SERVICES,BV09,CULTURE AND HERITAGE,BV09A,DEPT of COMMUNITY and STREETSCENE,PREMISES RELATED EXPENDITURE,2,"Works - Construction, Repair & Maintenance",39,R & M OF FIXED PLANT,2040,18/11/2016,571764,572.25 ,Revenue,SES CONTROLS LTD,1352963
Fareham Borough Council,http://statistics.data.gov.uk/id/local-authority/24UE,OTHER REVENUE ACCOUNTS,RV,NON WORK GROUP HOLDING ACCOUNT,RV18,DEPT of FINANCE and RESOURCES,SUPPLIES & SERVICES,4,Environmental Services,18,TIPPING / INCINERATOR FEES,4425,18/11/2016,571770,660.48 ,Revenue,ZEBRA WASTE SKIP HIRE,01506942
Fareham Borough Council,http://statistics.data.gov.uk/id/local-authority/24UE,ENVIRONMENT AND REGULATORY SER,BV03,WASTE COLLECTION,BV03G,DEPT STREETSCENE,EMPLOYEES RELATED EXPENDITURE,1,Human Resources,26,AGENCY WORKERS,1050,18/11/2016,571775,3361.52 ,Revenue,BUZZ PEOPLE RECRUITMENT LTD,07908887
Fareham Borough Council,http://statistics.data.gov.uk/id/local-authority/24UE,ENVIRONMENT AND REGULATORY SER,BV03,WASTE COLLECTION,BV03G,DEPT STREETSCENE,EMPLOYEES RELATED EXPENDITURE,1,Human Resources,26,AGENCY WORKERS,1050,18/11/2016,571775,705.15 ,Revenue,BUZZ PEOPLE RECRUITMENT LTD,07908887
Fareham Borough Council,http://statistics.data.gov.uk/id/local-authority/24UE,ENVIRONMENT AND REGULATORY SER,BV03,WASTE COLLECTION,BV03G,DEPT STREETSCENE,EMPLOYEES RELATED EXPENDITURE,1,Human Resources,26,AGENCY WORKERS,1050,18/11/2016,571775,4227.67 ,Revenue,BUZZ PEOPLE RECRUITMENT LTD,07908887
Fareham Borough Council,http://statistics.data.gov.uk/id/local-authority/24UE,ENVIRONMENT AND REGULATORY SER,BV03,WASTE COLLECTION,BV03G,DEPT STREETSCENE,EMPLOYEES RELATED EXPENDITURE,1,Human Resources,26,AGENCY WORKERS,1050,18/11/2016,571775,2900.34 ,Revenue,BUZZ PEOPLE RECRUITMENT LTD,07908887
Fareham Borough Council,http://statistics.data.gov.uk/id/local-authority/24UE,OTHER REVENUE ACCOUNTS,RV,CONTRACT SERVICES D.S.O.,RV14,DEPT STREETSCENE,EMPLOYEES RELATED EXPENDITURE,1,Human Resources,26,AGENCY WORKERS,1050,18/11/2016,571776,1890.00 ,Revenue,BUZZ PEOPLE RECRUITMENT LTD,07908887
Fareham Borough Council,http://statistics.data.gov.uk/id/local-authority/24UE,OTHER REVENUE ACCOUNTS,RV,CONTRACT SERVICES D.S.O.,RV14,DEPT of STRATEGIC PLANNING and ENVIRONMENT,SUPPLIES & SERVICES,4,Local/Central Government,,SUB-CONTRACTORS CHARGES,4432,18/11/2016,571784,617.00 ,Revenue,SOUTHAMPTON CITY COUNCIL,
Fareham Borough Council,http://statistics.data.gov.uk/id/local-authority/24UE,OTHER REVENUE ACCOUNTS,RV,NON WORK GROUP HOLDING ACCOUNT,RV18,DEPT of FINANCE and RESOURCES,PREMISES RELATED EXPENDITURE,2,Vehicle Management,38,R&M OF FOOTPATHSROADS & SEATG,2070,25/11/2016,571791,575.00 ,Revenue,WESSEX PETROLEUM LTD,01024472
Fareham Borough Council,http://statistics.data.gov.uk/id/local-authority/24UE,OTHER REVENUE ACCOUNTS,RV,CONTRACT SERVICES D.S.O.,RV14,DEPT of STRATEGIC PLANNING and ENVIRONMENT,SUPPLIES & SERVICES,4,Local/Central Government,98,SUB-CONTRACTORS CHARGES,4432,18/11/2016,571792,554.40 ,Revenue,WINCHESTER CITY COUNCIL,
Fareham Borough Council,http://statistics.data.gov.uk/id/local-authority/24UE,OTHER REVENUE ACCOUNTS,RV,CONTRACT SERVICES D.S.O.,RV14,DEPT of STRATEGIC PLANNING and ENVIRONMENT,SUPPLIES & SERVICES,4,Local/Central Government,98,SUB-CONTRACTORS CHARGES,4432,18/11/2016,571794,591.00 ,Revenue,WINCHESTER CITY COUNCIL,
Fareham Borough Council,http://statistics.data.gov.uk/id/local-authority/24UE,OTHER REVENUE ACCOUNTS,RV,CONTRACT SERVICES D.S.O.,RV14,DEPT of STRATEGIC PLANNING and ENVIRONMENT,SUPPLIES & SERVICES,4,Local/Central Government,98,SUB-CONTRACTORS CHARGES,4432,18/11/2016,571795,1010.00 ,Revenue,WINCHESTER CITY COUNCIL,
Fareham Borough Council,http://statistics.data.gov.uk/id/local-authority/24UE,OTHER REVENUE ACCOUNTS,RV,CONTRACT SERVICES D.S.O.,RV14,DEPT of STRATEGIC PLANNING and ENVIRONMENT,SUPPLIES & SERVICES,4,Local/Central Government,,SUB-CONTRACTORS CHARGES,4432,18/11/2016,571797,1059.40 ,Revenue,BASINGSTOKE and DEANE BOROUGH COUNCIL,
Fareham Borough Council,http://statistics.data.gov.uk/id/local-authority/24UE,GENERAL FUND HOUSING,BV05,HOMELESSNESS,BV05F,DEPT of COMMUNITY and STREETSCENE,SUPPLIES & SERVICES,4,Social Community Care Supplies & Services,32,LOCAL ASSISTANCE PAYMENT,4727,18/11/2016,571805,700.00 ,Revenue,redacted personal data,IP26511R
Fareham Borough Council,http://statistics.data.gov.uk/id/local-authority/24UE,CULTURAL AND RELATED SERVICES,BV09,CULTURE AND HERITAGE,BV09A,DEPT of COMMUNITY and STREETSCENE,SUPPLIES & SERVICES,4,Art & Leisure Services,29,PROMOTER,4916,18/11/2016,571806,2084.66 ,Revenue,ALAN WILLIAMS ENTERTAINMENT LIMITED,1247387
Fareham Borough Council,http://statistics.data.gov.uk/id/local-authority/24UE,FINANCING & INVESTMENT I&E,BVB02,INVESTMENT PROPERTIES,BVB170,DEPT of FINANCE and RESOURCES,PREMISES RELATED EXPENDITURE,2,"Works - Construction, Repair & Maintenance",39,R & M OF BUILDINGS,2000,18/11/2016,571812,226.47 ,Revenue,BEAVEN GROUNDWORKS,08786314
Fareham Borough Council,http://statistics.data.gov.uk/id/local-authority/24UE,CULTURAL AND RELATED SERVICES,BV09,RECREATION AND SPORT,BV09B,DEPT of COMMUNITY and STREETSCENE,PREMISES RELATED EXPENDITURE,2,"Works - Construction, Repair & Maintenance",39,GENERAL REPAIRS,2018,18/11/2016,571812,1164.20 ,Revenue,BEAVEN GROUNDWORKS,08786314
Fareham Borough Council,http://statistics.data.gov.uk/id/local-authority/24UE,CULTURAL AND RELATED SERVICES,BV09,RECREATION AND SPORT,BV09B,DEPT of COMMUNITY and STREETSCENE,PREMISES RELATED EXPENDITURE,2,"Works - Construction, Repair & Maintenance",39,GENERAL REPAIRS,2018,18/11/2016,571812,510.43 ,Revenue,BEAVEN GROUNDWORKS,08786314
Fareham Borough Council,http://statistics.data.gov.uk/id/local-authority/24UE,HIGHWAYS ROADS AND TRANSPORT,BV12,PARKING SERVICES,BV12D,DEPT STREETSCENE,PREMISES RELATED EXPENDITURE,2,"Works - Construction, Repair & Maintenance",39,GENERAL REPAIRS,2018,18/11/2016,571812,969.47 ,Revenue,BEAVEN GROUNDWORKS,08786314
Fareham Borough Council,http://statistics.data.gov.uk/id/local-authority/24UE,ENVIRONMENT AND REGULATORY SER,BV03,ENVIRONMENTAL HEALTH,BV03C,DEPT STREETSCENE,PREMISES RELATED EXPENDITURE,2,"Works - Construction, Repair & Maintenance",39,GENERAL REPAIRS,2018,18/11/2016,571812,774.40 ,Revenue,BEAVEN GROUNDWORKS,08786314
Fareham Borough Council,http://statistics.data.gov.uk/id/local-authority/24UE,HOUSING REVENUE ACCOUNT,BV06,RESPONSIVE & VOID MAINTENANCE,5901,DEPT STREETSCENE,PREMISES RELATED EXPENDITURE,2,"Works - Construction, Repair & Maintenance",39,GENERAL REPAIRS,2018,18/11/2016,571812,8280.60 ,Revenue,BEAVEN GROUNDWORKS,08786314
Fareham Borough Council,http://statistics.data.gov.uk/id/local-authority/24UE,HOUSING REVENUE ACCOUNT,BV06,RESPONSIVE & VOID MAINTENANCE,5901,DEPT STREETSCENE,PREMISES RELATED EXPENDITURE,2,"Works - Construction, Repair & Maintenance",39,GENERAL REPAIRS,2018,18/11/2016,571812,-8280.60 ,Revenue,BEAVEN GROUNDWORKS,08786314
Fareham Borough Council,http://statistics.data.gov.uk/id/local-authority/24UE,HOUSING REVENUE ACCOUNT,BV06,RESPONSIVE & VOID MAINTENANCE,5901,DEPT STREETSCENE,PREMISES RELATED EXPENDITURE,2,"Works - Construction, Repair & Maintenance",39,GENERAL REPAIRS,2018,18/11/2016,571812,3517.04 ,Revenue,BEAVEN GROUNDWORKS,08786314
Fareham Borough Council,http://statistics.data.gov.uk/id/local-authority/24UE,HOUSING REVENUE ACCOUNT,BV06,RESPONSIVE & VOID MAINTENANCE,5901,DEPT STREETSCENE,PREMISES RELATED EXPENDITURE,2,"Works - Construction, Repair & Maintenance",39,GENERAL REPAIRS,2018,18/11/2016,571812,4763.56 ,Revenue,BEAVEN GROUNDWORKS,08786314
Fareham Borough Council,http://statistics.data.gov.uk/id/local-authority/24UE,OTHER REVENUE ACCOUNTS,RV,NON WORK GROUP HOLDING ACCOUNT,RV18,DEPT of FINANCE and RESOURCES,PREMISES RELATED EXPENDITURE,2,"Works - Construction, Repair & Maintenance",39,R & M OF BUILDINGS,2000,18/11/2016,571812,48.40 ,Revenue,BEAVEN GROUNDWORKS,08786314
Fareham Borough Council,http://statistics.data.gov.uk/id/local-authority/24UE,OTHER REVENUE ACCOUNTS,RV,CONTRACT SERVICES D.S.O.,RV14,DEPT STREETSCENE,EMPLOYEES RELATED EXPENDITURE,1,Human Resources,26,AGENCY WORKERS,1050,18/11/2016,571815,827.46 ,Revenue,BUILDING RECRUITMENT COMPANY LTD,3750125
Fareham Borough Council,http://statistics.data.gov.uk/id/local-authority/24UE,OTHER REVENUE ACCOUNTS,RV,CONTRACT SERVICES D.S.O.,RV14,DEPT STREETSCENE,EMPLOYEES RELATED EXPENDITURE,1,Human Resources,26,AGENCY WORKERS,1050,18/11/2016,571816,822.69 ,Revenue,BUILDING RECRUITMENT COMPANY LTD,3750125
Fareham Borough Council,http://statistics.data.gov.uk/id/local-authority/24UE,ENVIRONMENT AND REGULATORY SER,BV03,ENVIRONMENTAL HEALTH,BV03C,DEPT of COMMUNITY and STREETSCENE,SUPPLIES & SERVICES,4,Human Resources,26,LEGAL FEES,4400,18/11/2016,571817,924.00 ,Revenue,DISCLOSURE AND BARRING SERVICE,
Fareham Borough Council,http://statistics.data.gov.uk/id/local-authority/24UE,CULTURAL AND RELATED SERVICES,BV09,RECREATION AND SPORT,BV09B,DEPT of COMMUNITY and STREETSCENE,SUPPLIES & SERVICES,4,Human Resources,26,LEGAL FEES,4400,18/11/2016,571817,44.00 ,Revenue,DISCLOSURE AND BARRING SERVICE,
Fareham Borough Council,http://statistics.data.gov.uk/id/local-authority/24UE,CULTURAL AND RELATED SERVICES,BV09,CULTURE AND HERITAGE,BV09A,DEPT of COMMUNITY and STREETSCENE,SUPPLIES & SERVICES,4,Human Resources,26,LEGAL FEES,4400,18/11/2016,571817,44.00 ,Revenue,DISCLOSURE AND BARRING SERVICE,
Fareham Borough Council,http://statistics.data.gov.uk/id/local-authority/24UE,CAPITAL PROGRAMME - OTHER SERVICES,CP,NEW SCHEMES,CP23,CAPITAL - NEW SCHEMES,SUPPLIES & SERVICES,4,Furniture,21,FURNITURE & EQUIPT. PURCHASES,4000,18/11/2016,571820,2092.32 ,Capital,PORTSDOWN OFFICE LIMITED,01779525
Fareham Borough Council,http://statistics.data.gov.uk/id/local-authority/24UE,PLANNING SERVICES,BV13,DEVELOPMENT CONTROL,BV13B,DEPT of STRATEGIC PLANNING and ENVIRONMENT,SUPPLIES & SERVICES,4,Consultancy,15,CONSULTANTS FEES,4401,18/11/2016,571826,1813.80 ,Revenue,CORBIL ESTATES & PLANNING LTD,09991331
Fareham Borough Council,http://statistics.data.gov.uk/id/local-authority/24UE,CAPITAL PROGRAMME - OTHER SERVICES,CP,COMPUTER APPROVED,CP23,CAPITAL - COMPUTER APPROVED,SUPPLIES & SERVICES,4,Information Communication Technology,27,FURNITURE & EQUIPT. PURCHASES,4000,18/11/2016,571827,416.00 ,Capital,CHARTERHOUSE VOICE AND DATA PLC,02804354
Fareham Borough Council,http://statistics.data.gov.uk/id/local-authority/24UE,CAPITAL PROGRAMME - OTHER SERVICES,CP,COMPUTER APPROVED,CP23,CAPITAL - COMPUTER APPROVED,SUPPLIES & SERVICES,4,Information Communication Technology,27,FURNITURE & EQUIPT. PURCHASES,4000,18/11/2016,571827,248.00 ,Capital,CHARTERHOUSE VOICE AND DATA PLC,02804354
Fareham Borough Council,http://statistics.data.gov.uk/id/local-authority/24UE,CAPITAL PROGRAMME - OTHER SERVICES,CP,COMPUTER APPROVED,CP23,CAPITAL - COMPUTER APPROVED,SUPPLIES & SERVICES,4,Information Communication Technology,27,FURNITURE & EQUIPT. PURCHASES,4000,18/11/2016,571827,785.00 ,Capital,CHARTERHOUSE VOICE AND DATA PLC,02804354
Fareham Borough Council,http://statistics.data.gov.uk/id/local-authority/24UE,HIGHWAYS ROADS AND TRANSPORT,BV12,PARKING SERVICES,BV12D,DEPT STREETSCENE,SUPPLIES & SERVICES,4,Information Communication Technology,27,FURNITURE & EQUIPT. MAINT.,4030,18/11/2016,571830,6723.00 ,Revenue,CHIPSIDE LTD,04049461
Fareham Borough Council,http://statistics.data.gov.uk/id/local-authority/24UE,HIGHWAYS ROADS AND TRANSPORT,BV12,PARKING SERVICES,BV12D,DEPT STREETSCENE,SUPPLIES & SERVICES,4,Information Communication Technology,27,FURNITURE & EQUIPT. MAINT.,4030,18/11/2016,571830,217.90 ,Revenue,CHIPSIDE LTD,04049461
Fareham Borough Council,http://statistics.data.gov.uk/id/local-authority/24UE,HIGHWAYS ROADS AND TRANSPORT,BV12,PARKING SERVICES,BV12D,DEPT STREETSCENE,SUPPLIES & SERVICES,4,Information Communication Technology,27,FURNITURE & EQUIPT. MAINT.,4030,18/11/2016,571830,57.60 ,Revenue,CHIPSIDE LTD,04049461
Fareham Borough Council,http://statistics.data.gov.uk/id/local-authority/24UE,HIGHWAYS ROADS AND TRANSPORT,BV12,PARKING SERVICES,BV12D,DEPT STREETSCENE,SUPPLIES & SERVICES,4,Information Communication Technology,27,FURNITURE & EQUIPT. MAINT.,4030,18/11/2016,571830,20.25 ,Revenue,CHIPSIDE LTD,04049461
Fareham Borough Council,http://statistics.data.gov.uk/id/local-authority/24UE,HIGHWAYS ROADS AND TRANSPORT,BV12,PARKING SERVICES,BV12D,DEPT STREETSCENE,SUPPLIES & SERVICES,4,Information Communication Technology,27,FURNITURE & EQUIPT. MAINT.,4030,18/11/2016,571830,304.24 ,Revenue,CHIPSIDE LTD,04049461
Fareham Borough Council,http://statistics.data.gov.uk/id/local-authority/24UE,HIGHWAYS ROADS AND TRANSPORT,BV12,PARKING SERVICES,BV12D,DEPT STREETSCENE,SUPPLIES & SERVICES,4,Information Communication Technology,27,FURNITURE & EQUIPT. MAINT.,4030,18/11/2016,571830,842.98 ,Revenue,CHIPSIDE LTD,04049461
Fareham Borough Council,http://statistics.data.gov.uk/id/local-authority/24UE,CAPITAL PROGRAMME - HOUSING SERVICES,CP,RENOVATION OF L.A. DWELLINGS,CP10,CAPITAL - ENERGY CONSERVATION,PREMISES RELATED EXPENDITURE,2,Consultancy,15,R & M OF BUILDINGS,2000,18/11/2016,571833,38.00 ,Capital,GAS CONTRACT SERVICES LIMITED,3400365
Fareham Borough Council,http://statistics.data.gov.uk/id/local-authority/24UE,CAPITAL PROGRAMME - HOUSING SERVICES,CP,RENOVATION OF L.A. DWELLINGS,CP10,CAPITAL - ENERGY CONSERVATION,PREMISES RELATED EXPENDITURE,2,Consultancy,15,R & M OF BUILDINGS,2000,18/11/2016,571833,38.00 ,Capital,GAS CONTRACT SERVICES LIMITED,3400365
Fareham Borough Council,http://statistics.data.gov.uk/id/local-authority/24UE,HOUSING REVENUE ACCOUNT,BV06,RESPONSIVE & VOID MAINTENANCE,5901,DEPT STREETSCENE,PREMISES RELATED EXPENDITURE,2,Consultancy,15,GAS SERVICING & ASSOC REPAIRS,2029,18/11/2016,571833,38.00 ,Revenue,GAS CONTRACT SERVICES LIMITED,3400365
Fareham Borough Council,http://statistics.data.gov.uk/id/local-authority/24UE,HOUSING REVENUE ACCOUNT,BV06,RESPONSIVE & VOID MAINTENANCE,5901,DEPT STREETSCENE,PREMISES RELATED EXPENDITURE,2,Consultancy,15,GAS SERVICING & ASSOC REPAIRS,2029,18/11/2016,571833,38.00 ,Revenue,GAS CONTRACT SERVICES LIMITED,3400365
Fareham Borough Council,http://statistics.data.gov.uk/id/local-authority/24UE,HOUSING REVENUE ACCOUNT,BV06,RESPONSIVE & VOID MAINTENANCE,5901,DEPT STREETSCENE,PREMISES RELATED EXPENDITURE,2,Consultancy,15,GAS SERVICING & ASSOC REPAIRS,2029,18/11/2016,571833,38.00 ,Revenue,GAS CONTRACT SERVICES LIMITED,3400365
Fareham Borough Council,http://statistics.data.gov.uk/id/local-authority/24UE,HOUSING REVENUE ACCOUNT,BV06,RESPONSIVE & VOID MAINTENANCE,5901,DEPT STREETSCENE,PREMISES RELATED EXPENDITURE,2,Consultancy,15,GAS SERVICING & ASSOC REPAIRS,2029,18/11/2016,571833,38.00 ,Revenue,GAS CONTRACT SERVICES LIMITED,3400365
Fareham Borough Council,http://statistics.data.gov.uk/id/local-authority/24UE,HOUSING REVENUE ACCOUNT,BV06,RESPONSIVE & VOID MAINTENANCE,5901,DEPT STREETSCENE,PREMISES RELATED EXPENDITURE,2,Consultancy,15,GAS SERVICING & ASSOC REPAIRS,2029,18/11/2016,571833,38.00 ,Revenue,GAS CONTRACT SERVICES LIMITED,3400365
Fareham Borough Council,http://statistics.data.gov.uk/id/local-authority/24UE,HOUSING REVENUE ACCOUNT,BV06,RESPONSIVE & VOID MAINTENANCE,5901,DEPT STREETSCENE,PREMISES RELATED EXPENDITURE,2,Consultancy,15,GAS SERVICING & ASSOC REPAIRS,2029,18/11/2016,571833,38.00 ,Revenue,GAS CONTRACT SERVICES LIMITED,3400365
Fareham Borough Council,http://statistics.data.gov.uk/id/local-authority/24UE,HOUSING REVENUE ACCOUNT,BV06,RESPONSIVE & VOID MAINTENANCE,5901,DEPT STREETSCENE,PREMISES RELATED EXPENDITURE,2,Consultancy,15,GAS SERVICING & ASSOC REPAIRS,2029,18/11/2016,571833,38.00 ,Revenue,GAS CONTRACT SERVICES LIMITED,3400365
Fareham Borough Council,http://statistics.data.gov.uk/id/local-authority/24UE,HOUSING REVENUE ACCOUNT,BV06,RESPONSIVE & VOID MAINTENANCE,5901,DEPT STREETSCENE,PREMISES RELATED EXPENDITURE,2,Consultancy,15,GAS SERVICING & ASSOC REPAIRS,2029,18/11/2016,571833,38.00 ,Revenue,GAS CONTRACT SERVICES LIMITED,3400365
Fareham Borough Council,http://statistics.data.gov.uk/id/local-authority/24UE,HOUSING REVENUE ACCOUNT,BV06,RESPONSIVE & VOID MAINTENANCE,5901,DEPT STREETSCENE,PREMISES RELATED EXPENDITURE,2,Consultancy,15,GAS SERVICING & ASSOC REPAIRS,2029,18/11/2016,571833,38.00 ,Revenue,GAS CONTRACT SERVICES LIMITED,3400365
Fareham Borough Council,http://statistics.data.gov.uk/id/local-authority/24UE,HOUSING REVENUE ACCOUNT,BV06,RESPONSIVE & VOID MAINTENANCE,5901,DEPT STREETSCENE,PREMISES RELATED EXPENDITURE,2,Consultancy,15,GAS SERVICING & ASSOC REPAIRS,2029,18/11/2016,571833,38.00 ,Revenue,GAS CONTRACT SERVICES LIMITED,3400365
Fareham Borough Council,http://statistics.data.gov.uk/id/local-authority/24UE,HOUSING REVENUE ACCOUNT,BV06,RESPONSIVE & VOID MAINTENANCE,5901,DEPT STREETSCENE,PREMISES RELATED EXPENDITURE,2,Consultancy,15,GAS SERVICING & ASSOC REPAIRS,2029,18/11/2016,571833,38.00 ,Revenue,GAS CONTRACT SERVICES LIMITED,3400365
Fareham Borough Council,http://statistics.data.gov.uk/id/local-authority/24UE,HOUSING REVENUE ACCOUNT,BV06,RESPONSIVE & VOID MAINTENANCE,5901,DEPT STREETSCENE,PREMISES RELATED EXPENDITURE,2,Consultancy,15,GAS SERVICING & ASSOC REPAIRS,2029,18/11/2016,571833,38.00 ,Revenue,GAS CONTRACT SERVICES LIMITED,3400365
Fareham Borough Council,http://statistics.data.gov.uk/id/local-authority/24UE,HOUSING REVENUE ACCOUNT,BV06,RESPONSIVE & VOID MAINTENANCE,5901,DEPT STREETSCENE,PREMISES RELATED EXPENDITURE,2,Consultancy,15,GAS SERVICING & ASSOC REPAIRS,2029,18/11/2016,571833,38.00 ,Revenue,GAS CONTRACT SERVICES LIMITED,3400365
Fareham Borough Council,http://statistics.data.gov.uk/id/local-authority/24UE,HOUSING REVENUE ACCOUNT,BV06,RESPONSIVE & VOID MAINTENANCE,5901,DEPT STREETSCENE,PREMISES RELATED EXPENDITURE,2,Consultancy,15,GENERAL REPAIRS,2018,18/11/2016,571834,8450.00 ,Revenue,TNG CONSULTING ENGINEERS LIMITED,03988764
Fareham Borough Council,http://statistics.data.gov.uk/id/local-authority/24UE,HOUSING REVENUE ACCOUNT,BV06,RESPONSIVE & VOID MAINTENANCE,5901,DEPT STREETSCENE,PREMISES RELATED EXPENDITURE,2,Social Community Care Supplies & Services,32,R & M OF BUILDINGS,2000,18/11/2016,571835,1650.00 ,Revenue,LIFTECH SYSTEMS (SE) LTD,04834054
Fareham Borough Council,http://statistics.data.gov.uk/id/local-authority/24UE,HOUSING REVENUE ACCOUNT,BV06,RESPONSIVE & VOID MAINTENANCE,5901,DEPT STREETSCENE,PREMISES RELATED EXPENDITURE,2,Social Community Care Supplies & Services,32,R & M OF BUILDINGS,2000,18/11/2016,571835,-1650.00 ,Revenue,LIFTECH SYSTEMS (SE) LTD,04834054
Fareham Borough Council,http://statistics.data.gov.uk/id/local-authority/24UE,HOUSING REVENUE ACCOUNT,BV06,RESPONSIVE & VOID MAINTENANCE,5901,DEPT STREETSCENE,PREMISES RELATED EXPENDITURE,2,Social Community Care Supplies & Services,32,R & M OF BUILDINGS,2000,18/11/2016,571835,1350.00 ,Revenue,LIFTECH SYSTEMS (SE) LTD,04834054
Fareham Borough Council,http://statistics.data.gov.uk/id/local-authority/24UE,HOUSING REVENUE ACCOUNT,BV06,RESPONSIVE & VOID MAINTENANCE,5901,DEPT STREETSCENE,PREMISES RELATED EXPENDITURE,2,Social Community Care Supplies & Services,32,R & M OF BUILDINGS,2000,18/11/2016,571835,300.00 ,Revenue,LIFTECH SYSTEMS (SE) LTD,04834054
Fareham Borough Council,http://statistics.data.gov.uk/id/local-authority/24UE,CAPITAL PROGRAMME - HOUSING SERVICES,CP,NEW HOUSE BUILDING,CP10,CAPITAL - NEW HOUSE BUILDING,SUPPLIES & SERVICES,4,Consultancy,15,CONSULTANTS FEES,4401,18/11/2016,571845,1455.99 ,Capital,WELLING PARTNERSHIP PROPERTY &,
Fareham Borough Council,http://statistics.data.gov.uk/id/local-authority/24UE,CULTURAL AND RELATED SERVICES,BV09,CULTURE AND HERITAGE,BV09A,DEPT of COMMUNITY and STREETSCENE,SUPPLIES & SERVICES,4,Art & Leisure Services,29,EQUIPMENT PURCHASES - TECH'L,4011,18/11/2016,571850,1422.00 ,Revenue,LOADING BAY SPECIALIST LTD,1699363
Fareham Borough Council,http://statistics.data.gov.uk/id/local-authority/24UE,CULTURAL AND RELATED SERVICES,BV09,CULTURE AND HERITAGE,BV09A,DEPT of COMMUNITY and STREETSCENE,SUPPLIES & SERVICES,4,Catering,11,BAR PROVISIONS,4106,25/11/2016,571851,1142.10 ,Revenue,MOLSON COORS BREWING COMPANY (UK) LTD,26018
Fareham Borough Council,http://statistics.data.gov.uk/id/local-authority/24UE,CULTURAL AND RELATED SERVICES,BV09,CULTURE AND HERITAGE,BV09A,DEPT of COMMUNITY and STREETSCENE,SUPPLIES & SERVICES,4,Art & Leisure Services,29,PERFORMING RIGHTS SOCIETY,4717,18/11/2016,571855,1941.59 ,Revenue,PERFORMING RIGHT SOCIETY LTD,00134396
Fareham Borough Council,http://statistics.data.gov.uk/id/local-authority/24UE,CULTURAL AND RELATED SERVICES,BV09,CULTURE AND HERITAGE,BV09A,DEPT of COMMUNITY and STREETSCENE,SUPPLIES & SERVICES,4,Art & Leisure Services,29,PROMOTER,4916,18/11/2016,571857,5139.12 ,Revenue,ENTERTAINMENT TRADE MGT (AGENCIES) LTD,05124512
Fareham Borough Council,http://statistics.data.gov.uk/id/local-authority/24UE,OTHER REVENUE ACCOUNTS,RV,NON WORK GROUP HOLDING ACCOUNT,RV18,DEPT STREETSCENE,SUPPLIES & SERVICES,4,Vehicle Management,38,MATERIALS (OPERATIONAL),4007,18/11/2016,571861,900.00 ,Revenue,EURO MUNICIPAL,06999176
Fareham Borough Council,http://statistics.data.gov.uk/id/local-authority/24UE,CULTURAL AND RELATED SERVICES,BV09,CULTURE AND HERITAGE,BV09A,DEPT of COMMUNITY and STREETSCENE,SUPPLIES & SERVICES,4,Catering,11,EQUIPMENT PURCHASES - CATERING,4004,18/11/2016,571876,3390.00 ,Revenue,SBM EPOS,
Fareham Borough Council,http://statistics.data.gov.uk/id/local-authority/24UE,CULTURAL AND RELATED SERVICES,BV09,CULTURE AND HERITAGE,BV09A,DEPT of COMMUNITY and STREETSCENE,SUPPLIES & SERVICES,4,Catering,11,EQUIPMENT PURCHASES - CATERING,4004,18/11/2016,571876,55.00 ,Revenue,SBM EPOS,
Fareham Borough Council,http://statistics.data.gov.uk/id/local-authority/24UE,CULTURAL AND RELATED SERVICES,BV09,CULTURE AND HERITAGE,BV09A,DEPT of COMMUNITY and STREETSCENE,SUPPLIES & SERVICES,4,Catering,11,EQUIPMENT PURCHASES - CATERING,4004,18/11/2016,571876,108.60 ,Revenue,SBM EPOS,
Fareham Borough Council,http://statistics.data.gov.uk/id/local-authority/24UE,CULTURAL AND RELATED SERVICES,BV09,CULTURE AND HERITAGE,BV09A,DEPT of COMMUNITY and STREETSCENE,SUPPLIES & SERVICES,4,Art & Leisure Services,29,PROMOTER,4916,18/11/2016,571877,4179.83 ,Revenue,NETT (UK) ENTERTAINMENT LTD,03700897
Fareham Borough Council,http://statistics.data.gov.uk/id/local-authority/24UE,CULTURAL AND RELATED SERVICES,BV09,CULTURE AND HERITAGE,BV09A,DEPT of COMMUNITY and STREETSCENE,SUPPLIES & SERVICES,4,Facilities & Management Services,19,ADVERTISING,4910,18/11/2016,571888,1067.00 ,Revenue,JOHNSTON NEWSPAPERS SOUTH,02536455
Fareham Borough Council,http://statistics.data.gov.uk/id/local-authority/24UE,ENVIRONMENT AND REGULATORY SER,BV03,ENVIRONMENTAL HEALTH,BV03C,DEPT of COMMUNITY and STREETSCENE,SUPPLIES & SERVICES,4,Human Resources,26,LEGAL FEES,4400,25/11/2016,571891,880.00 ,Revenue,DISCLOSURE AND BARRING SERVICE,
Fareham Borough Council,http://statistics.data.gov.uk/id/local-authority/24UE,CULTURAL AND RELATED SERVICES,BV09,CULTURE AND HERITAGE,BV09A,DEPT of COMMUNITY and STREETSCENE,SUPPLIES & SERVICES,4,Human Resources,26,LEGAL FEES,4400,25/11/2016,571891,44.00 ,Revenue,DISCLOSURE AND BARRING SERVICE,
Fareham Borough Council,http://statistics.data.gov.uk/id/local-authority/24UE,OTHER REVENUE ACCOUNTS,RV,NON WORK GROUP HOLDING ACCOUNT,RV18,DEPT of FINANCE and RESOURCES,SUPPLIES & SERVICES,4,Human Resources,26,LEGAL FEES,4400,25/11/2016,571891,5.00 ,Revenue,DISCLOSURE AND BARRING SERVICE,
Fareham Borough Council,http://statistics.data.gov.uk/id/local-authority/24UE,ENVIRONMENT AND REGULATORY SER,BV03,COAST PROTECTION,BV03B,DEPT of STRATEGIC PLANNING and ENVIRONMENT,THIRD PARTY PAYMENTS,5,Local/Central Government,98,COASTAL DEFENCE PARTNERSHIP,5230,18/11/2016,571892,20355.60 ,Revenue,HAVANT BOROUGH COUNCIL,
Fareham Borough Council,http://statistics.data.gov.uk/id/local-authority/24UE,ENVIRONMENT AND REGULATORY SER,BV03,CEMETERIES CREM & MORTUARY,BV03A,DEPT STREETSCENE,PREMISES RELATED EXPENDITURE,2,Horticultural,24,R&M OF TREE PRESERVATION,2063,18/11/2016,571893,41.00 ,Revenue,SHAWYERS TREE SPECIALISTS,07350007
Fareham Borough Council,http://statistics.data.gov.uk/id/local-authority/24UE,CULTURAL AND RELATED SERVICES,BV09,RECREATION AND SPORT,BV09B,DEPT STREETSCENE,PREMISES RELATED EXPENDITURE,2,Horticultural,24,R&M OF TREE PRESERVATION,2063,18/11/2016,571893,41.00 ,Revenue,SHAWYERS TREE SPECIALISTS,07350007
Fareham Borough Council,http://statistics.data.gov.uk/id/local-authority/24UE,CULTURAL AND RELATED SERVICES,BV09,RECREATION AND SPORT,BV09B,DEPT STREETSCENE,PREMISES RELATED EXPENDITURE,2,Horticultural,24,R&M OF TREE PRESERVATION,2063,18/11/2016,571893,372.50 ,Revenue,SHAWYERS TREE SPECIALISTS,07350007
Fareham Borough Council,http://statistics.data.gov.uk/id/local-authority/24UE,CULTURAL AND RELATED SERVICES,BV09,RECREATION AND SPORT,BV09B,DEPT STREETSCENE,PREMISES RELATED EXPENDITURE,2,Horticultural,24,R&M OF TREE PRESERVATION,2063,18/11/2016,571893,41.00 ,Revenue,SHAWYERS TREE SPECIALISTS,07350007
Fareham Borough Council,http://statistics.data.gov.uk/id/local-authority/24UE,CULTURAL AND RELATED SERVICES,BV09,RECREATION AND SPORT,BV09B,DEPT STREETSCENE,PREMISES RELATED EXPENDITURE,2,Horticultural,24,R&M OF TREE PRESERVATION,2063,18/11/2016,571893,39.00 ,Revenue,SHAWYERS TREE SPECIALISTS,07350007
Fareham Borough Council,http://statistics.data.gov.uk/id/local-authority/24UE,CULTURAL AND RELATED SERVICES,BV09,RECREATION AND SPORT,BV09B,DEPT STREETSCENE,PREMISES RELATED EXPENDITURE,2,Horticultural,24,R&M OF TREE PRESERVATION,2063,18/11/2016,571893,54.00 ,Revenue,SHAWYERS TREE SPECIALISTS,07350007
Fareham Borough Council,http://statistics.data.gov.uk/id/local-authority/24UE,HOUSING REVENUE ACCOUNT,BV06,MAINT OF LAWNS VERGES ETC,5030,DEPT of COMMUNITY and STREETSCENE,PREMISES RELATED EXPENDITURE,2,Horticultural,24,R&M OF TREE PRESERVATION,2063,18/11/2016,571893,131.50 ,Revenue,SHAWYERS TREE SPECIALISTS,07350007
Fareham Borough Council,http://statistics.data.gov.uk/id/local-authority/24UE,CULTURAL AND RELATED SERVICES,BV09,RECREATION AND SPORT,BV09B,DEPT STREETSCENE,PREMISES RELATED EXPENDITURE,2,Horticultural,24,R&M OF TREE PRESERVATION,2063,18/11/2016,571894,1000.00 ,Revenue,TITCHFIELD TREE SERVICES LTD,
Fareham Borough Council,http://statistics.data.gov.uk/id/local-authority/24UE,OTHER REVENUE ACCOUNTS,RV,NON WORK GROUP HOLDING ACCOUNT,RV18,DEPT of FINANCE and RESOURCES,SUPPLIES & SERVICES,4,Human Resources,26,COMPUTER SOFTWARE,4531,18/11/2016,571895,6700.00 ,Revenue,SKILLGATE LTD,3647432
Fareham Borough Council,http://statistics.data.gov.uk/id/local-authority/24UE,CENTRAL SERVICES,BV07,CENTRAL SERVICES TO THE PUBLIC,BV07B,DEPT of FINANCE and RESOURCES,SUPPLIES & SERVICES,4,Legal Services,28,POSTAGES,4500,18/11/2016,571900,2449.04 ,Revenue,ELECTORAL REFORM SERVICES,02263092
Fareham Borough Council,http://statistics.data.gov.uk/id/local-authority/24UE,OTHER REVENUE ACCOUNTS,RV,NON WORK GROUP HOLDING ACCOUNT,RV18,DEPT of FINANCE and RESOURCES,SUPPLIES & SERVICES,4,Information Communication Technology,27,SOFTWARE LICENCES,4530,25/11/2016,571914,1523.56 ,Revenue,GREY MATTER LTD,01671407
Fareham Borough Council,http://statistics.data.gov.uk/id/local-authority/24UE,BALANCE SHEET,BS,BAL. SHEET - COLLECTION FUND,BS1,BAL. SHEET - COLLECTION FUND,PERSONAL ACCOUNTS,BS210,Local/Central Government,98,HAMPSHIRE C.C. PRECEPT ACCOUNT,P157,18/11/2016,571986,4136242.00 ,Balance Sheet,HAMPSHIRE COUNTY COUNCIL,
Fareham Borough Council,http://statistics.data.gov.uk/id/local-authority/24UE,BALANCE SHEET,BS,BAL. SHEET - COLLECTION FUND,BS1,BAL. SHEET - COLLECTION FUND,PERSONAL ACCOUNTS,BS210,Local/Central Government,,HAMPSHIRE POLICE PRECEPT,P159,18/11/2016,571987,574418.00 ,Balance Sheet,POLICE & CRIME COMMISSIONER HAMPSHIRE,
Fareham Borough Council,http://statistics.data.gov.uk/id/local-authority/24UE,BALANCE SHEET,BS,BAL. SHEET - COLLECTION FUND,BS1,BAL. SHEET - COLLECTION FUND,PERSONAL ACCOUNTS,BS210,Local/Central Government,,HAMPSHIRE FIRE/RESCUE PRECEPT,P161,18/11/2016,571988,254569.00 ,Balance Sheet,HAMPSHIRE FIRE & RESCUE AUTHORITY,
Fareham Borough Council,http://statistics.data.gov.uk/id/local-authority/24UE,OTHER REVENUE ACCOUNTS,RV,CONTRACT SERVICES D.S.O.,RV14,DEPT of STRATEGIC PLANNING and ENVIRONMENT,SUPPLIES & SERVICES,4,Local/Central Government,98,SUB-CONTRACTORS CHARGES,4432,18/11/2016,571998,600.60 ,Revenue,EAST HAMPSHIRE DISTRICT COUNCIL,
Fareham Borough Council,http://statistics.data.gov.uk/id/local-authority/24UE,HIGHWAYS ROADS AND TRANSPORT,BV12,PARKING SERVICES,BV12D,DEPT STREETSCENE,PREMISES RELATED EXPENDITURE,2,Facilities & Management Services,19,R & M OF LIFTS,2050,18/11/2016,572011,345.16 ,Revenue,TEMPLE LIFTS LTD,2388497
Fareham Borough Council,http://statistics.data.gov.uk/id/local-authority/24UE,HOUSING REVENUE ACCOUNT,BV06,RESPONSIVE & VOID MAINTENANCE,5901,DEPT STREETSCENE,PREMISES RELATED EXPENDITURE,2,Facilities & Management Services,19,SERVICING,2083,18/11/2016,572011,745.70 ,Revenue,TEMPLE LIFTS LTD,2388497
Fareham Borough Council,http://statistics.data.gov.uk/id/local-authority/24UE,OTHER REVENUE ACCOUNTS,RV,NON WORK GROUP HOLDING ACCOUNT,RV18,DEPT of FINANCE and RESOURCES,PREMISES RELATED EXPENDITURE,2,Facilities & Management Services,19,R & M OF LIFTS,2050,18/11/2016,572011,269.16 ,Revenue,TEMPLE LIFTS LTD,2388497
Fareham Borough Council,http://statistics.data.gov.uk/id/local-authority/24UE,OTHER REVENUE ACCOUNTS,RV,CONTRACT SERVICES D.S.O.,RV14,DEPT of STRATEGIC PLANNING and ENVIRONMENT,SUPPLIES & SERVICES,4,Local/Central Government,98,SUB-CONTRACTORS CHARGES,4432,18/11/2016,572014,605.93 ,Revenue,RUSHMOOR BOROUGH COUNCIL,
Fareham Borough Council,http://statistics.data.gov.uk/id/local-authority/24UE,CAPITAL PROGRAMME - HOUSING SERVICES,CP,RENOVATION OF L.A. DWELLINGS,CP10,CAPITAL - IMPROVEMENTS WORK/MODERNIS'N,PREMISES RELATED EXPENDITURE,2,"Works - Construction, Repair & Maintenance",39,R & M OF BUILDINGS,2000,18/11/2016,572017,693.82 ,Capital,T COLEBORN & SON LTD,03608296
Fareham Borough Council,http://statistics.data.gov.uk/id/local-authority/24UE,CAPITAL PROGRAMME - HOUSING SERVICES,CP,HOUSE RENOVATION GRANTS,CP11,CAPITAL - HOUSE RENOVATION GRANTS,SUPPLIES & SERVICES,4,Unclassified,,GRANTS AND SUBSCRIPTIONS,4700,18/11/2016,572019,3474.00 ,Capital,KINCLIFF LTD,
Fareham Borough Council,http://statistics.data.gov.uk/id/local-authority/24UE,CAPITAL PROGRAMME - OTHER SERVICES,CP,SCHEMES FUNDED FROM BALANCES,CP20,CAPITAL - SCHEMES FUNDED FROM BALANCES,SUPPLIES & SERVICES,4,Unclassified,,CONSULTANTS FEES,4401,18/11/2016,572022,3178.00 ,Capital,PORTSMOUTH CITY COUNCIL,
Fareham Borough Council,http://statistics.data.gov.uk/id/local-authority/24UE,ENVIRONMENT AND REGULATORY SER,BV03,WASTE COLLECTION,BV03G,DEPT STREETSCENE,TRANSPORT RELATED EXPENDITURE,3,Vehicle Management,38,ROUTINE REPAIRS VEHICLES/PLANT,3010,18/11/2016,572028,560.00 ,Revenue,KEYS ELECTRICAL LTD,07882866
Fareham Borough Council,http://statistics.data.gov.uk/id/local-authority/24UE,ENVIRONMENT AND REGULATORY SER,BV03,WASTE COLLECTION,BV03G,DEPT STREETSCENE,TRANSPORT RELATED EXPENDITURE,3,Vehicle Management,38,ROUTINE REPAIRS VEHICLES/PLANT,3010,18/11/2016,572028,117.84 ,Revenue,KEYS ELECTRICAL LTD,07882866
Fareham Borough Council,http://statistics.data.gov.uk/id/local-authority/24UE,ENVIRONMENT AND REGULATORY SER,BV03,WASTE COLLECTION,BV03G,DEPT STREETSCENE,EMPLOYEES RELATED EXPENDITURE,1,Human Resources,26,AGENCY WORKERS,1050,25/11/2016,572029,557.62 ,Revenue,BERRY RECRUITMENT LIMITED,07036111
Fareham Borough Council,http://statistics.data.gov.uk/id/local-authority/24UE,ENVIRONMENT AND REGULATORY SER,BV03,WASTE COLLECTION,BV03G,DEPT STREETSCENE,EMPLOYEES RELATED EXPENDITURE,1,Human Resources,26,AGENCY WORKERS,1050,25/11/2016,572029,107.93 ,Revenue,BERRY RECRUITMENT LIMITED,07036111
Fareham Borough Council,http://statistics.data.gov.uk/id/local-authority/24UE,HOUSING REVENUE ACCOUNT,BV06,MAINT OF LAWNS VERGES ETC,5030,DEPT of COMMUNITY and STREETSCENE,PREMISES RELATED EXPENDITURE,2,"Works - Construction, Repair & Maintenance",39,ENVIRONMENTAL IMPROVEMENTS,2030,18/11/2016,572041,641.40 ,Revenue,BEAVEN GROUNDWORKS,08786314
Fareham Borough Council,http://statistics.data.gov.uk/id/local-authority/24UE,HOUSING REVENUE ACCOUNT,BV06,MAINT OF LAWNS VERGES ETC,5030,DEPT of COMMUNITY and STREETSCENE,PREMISES RELATED EXPENDITURE,2,"Works - Construction, Repair & Maintenance",39,ENVIRONMENTAL IMPROVEMENTS,2030,18/11/2016,572041,248.60 ,Revenue,BEAVEN GROUNDWORKS,08786314
Fareham Borough Council,http://statistics.data.gov.uk/id/local-authority/24UE,CAPITAL PROGRAMME - OTHER SERVICES,CP,SCHEMES FUNDED FROM BALANCES,CP20,CAPITAL - SCHEMES FUNDED FROM BALANCES,PREMISES RELATED EXPENDITURE,2,Unclassified,,R & M OF BUILDINGS,2000,30/11/2016,572042,2000.00 ,Capital,PRIMESIGHT LIMITED,
Fareham Borough Council,http://statistics.data.gov.uk/id/local-authority/24UE,CAPITAL PROGRAMME - HOUSING SERVICES,CP,RENOVATION OF L.A. DWELLINGS,CP10,CAPITAL - IMPROVEMENTS WORK/MODERNIS'N,SUPPLIES & SERVICES,4,Building Construction Materials,10,MATERIALS (OPERATIONAL),4007,18/11/2016,572077,1120.02 ,Capital,SPECIALIST BUILDING DISTRIBUTION LTD,2599297
